Workbook

Sheet FAV
G3: Regnskab 2025
G7: Favrskov Kommune | I7: Budget 2025 (2025B-1) | O7: Regnskab 2025 (2025R) | U7: Afvigelse (2025R-2025B-1) | Y7: 2025R
G8: Rutetype | H8: Rute | I8: Timer | J8: Timeafhængige omkostninger | K8: Busafhængige omkostninger | L8: Ekstrakørsel | M8: Andet | N8: Udgifter i alt | O8: Timer | P8: Timeafhængige omkostninger | Q8: Busafhængige omkostninger | R8: Ekstrakørsel | S8: Andet | T8: Udgifter i alt | U8: Timer | V8: Anslået indekseffekt | W8: Anden afvigelse | X8: Udgifter i alt | Y8: Indtægter
G9: Regional- og lokalkørsel | H9: 115 | I9: 3572.45 | J9: 2547365.84 | K9: 955003.77 | L9: 413297.75 | M9: 0 | N9: 3915667.36 | O9: 3495.66 | P9: 2399113.88 | Q9: 849350.86 | R9: 456803.26 | S9: 0 | T9: 3705268 | U9: -76.79 | V9: -73574.15 | W9: -136825.21 | X9: -210399.36 | Y9: 1784637.42
H10: 223 | I10: 24.39 | J10: 14830.34 | K10: 2470.7 | L10: 0 | M10: 0 | N10: 17301.04 | O10: 24.16 | P10: 14338.71 | Q10: 2812.74 | R10: 0 | S10: 0 | T10: 17151.45 | U10: -0.23 | V10: -365.7 | W10: 216.11 | X10: -149.59 | Y10: 5068.535582
H11: 314 | I11: 3867.93 | J11: 2762240.42 | K11: 760096.74 | L11: 0 | M11: 0 | N11: 3522337.16 | O11: 3702.01 | P11: 2545324.2 | Q11: 822885.94 | R11: 0 | S11: 0 | T11: 3368210.14 | U11: -165.92 | V11: -71816.84 | W11: -82310.18 | X11: -154127.02 | Y11: 2068381.688
H12: 851 | I12: 0 | J12: 0 | K12: 0 | L12: 0 | M12: 0 | N12: 0 | O12: 742.5 | P12: 432268.73 | Q12: 304443.48 | R12: 0 | S12: 0 | T12: 736712.21 | U12: 742.5 | V12: -15708.15 | W12: 752420.36 | X12: 736712.21 | Y12: 67897.08261
U13: 0 | V13: 0 | W13: 0 | X13: 0
U14: 0 | V14: 0 | W14: 0 | X14: 0
G15: Regional- og lokalkørsel i alt | I15: 7464.77 | J15: 5324436.6 | K15: 1717571.21 | L15: 413297.75 | M15: 0 | N15: 7455305.56 | O15: 7964.33 | P15: 5391045.52 | Q15: 1979493.02 | R15: 456803.26 | S15: 0 | T15: 7827341.8 | U15: 499.56 | V15: -161464.84 | W15: 533501.08 | X15: 372036.24 | Y15: =SUM(Y9:Y12) -> 3925984.726
G17: Ikke rutefordelt | U17: 0 | V17: 0 | W17: 0 | X17: 0 | Y17: 144912.419
G18: Faste køretøjsomkostninger | H18: IR | I18: 0 | J18: 0 | K18: 0 | L18: 0 | M18: 0 | N18: 0 | O18: 0 | P18: 0 | Q18: 27926.88 | R18: 0 | S18: 0 | T18: 27926.88 | U18: 0 | V18: -595.46 | W18: 28522.34 | X18: 27926.88
G19: Ekstrakørsel | H19: Grp. | I19: 0 | J19: 0 | K19: 0 | L19: 0 | M19: 0 | N19: 0 | O19: 0 | P19: 0 | Q19: 0 | R19: 85081.11 | S19: 0 | T19: 85081.11 | U19: 0 | V19: -1814.1 | W19: 86895.21 | X19: 85081.11
U20: 0 | V20: 0 | W20: 0 | X20: 0
G22: Ikke rutefordelt i alt | I22: 0 | J22: 0 | K22: 0 | L22: 0 | M22: 0 | N22: 0 | O22: 0 | P22: 0 | Q22: 27926.88 | R22: 85081.11 | S22: 0 | T22: 113007.99 | U22: 0 | V22: -2409.56 | W22: 115417.55 | X22: 113007.99 | Y22: =+Y17 -> 144912.419
G24: Skolekørsel | H24: Bod | I24: 0 | J24: 0 | K24: 0 | L24: 0 | M24: 0 | N24: 0 | O24: 0 | P24: 0 | Q24: 0 | R24: 0 | S24: -225400 | T24: -225400 | U24: 0 | V24: 4805.97 | W24: -230205.97 | X24: -225400
H25: Rute 1 | I25: 908.89 | J25: 766243.42 | K25: 0 | L25: 0 | M25: 0 | N25: 766243.42 | O25: 908.62 | P25: 759692.6 | Q25: 0 | R25: 0 | S25: 0 | T25: 759692.6 | U25: -0.27 | V25: -16198.13 | W25: 9647.31 | X25: -6550.82
H26: Rute 10 | I26: 556.72 | J26: 614997.88 | K26: 0 | L26: 0 | M26: 0 | N26: 614997.88 | O26: 556.54 | P26: 592549.68 | Q26: 0 | R26: 0 | S26: 0 | T26: 592549.68 | U26: -0.18 | V26: -12634.32 | W26: -9813.88 | X26: -22448.2
H27: Rute 101 | I27: 128.97 | J27: 51601.78 | K27: 0 | L27: 0 | M27: 0 | N27: 51601.78 | O27: 100.43 | P27: 47748.85 | Q27: 0 | R27: 0 | S27: 0 | T27: 47748.85 | U27: -28.54 | V27: -1018.1 | W27: -2834.83 | X27: -3852.93
H28: Rute 102 | I28: 20 | J28: 8150.43 | K28: 0 | L28: 0 | M28: 0 | N28: 8150.43 | O28: 17.22 | P28: 8549.22 | Q28: 0 | R28: 0 | S28: 0 | T28: 8549.22 | U28: -2.78 | V28: -182.29 | W28: 581.08 | X28: 398.79
H29: Rute 103 | I29: 98.63 | J29: 67280.49 | K29: 0 | L29: 0 | M29: 0 | N29: 67280.49 | O29: 82.62 | P29: 55266.28 | Q29: 0 | R29: 0 | S29: 0 | T29: 55266.28 | U29: -16.01 | V29: -1178.38 | W29: -10835.83 | X29: -12014.21
H30: Rute 104 | I30: 31.67 | J30: 13989.06 | K30: 0 | L30: 0 | M30: 0 | N30: 13989.06 | O30: 27.67 | P30: 14397.14 | Q30: 0 | R30: 0 | S30: 0 | T30: 14397.14 | U30: -4 | V30: -306.97 | W30: 715.05 | X30: 408.08
H31: Rute 11 | I31: 626.68 | J31: 642168.49 | K31: 0 | L31: 0 | M31: 0 | N31: 642168.49 | O31: 626.56 | P31: 624272.08 | Q31: 0 | R31: 0 | S31: 0 | T31: 624272.08 | U31: -0.12 | V31: -13310.71 | W31: -4585.7 | X31: -17896.41
H32: Rute 12 | I32: 959.51 | J32: 771422.99 | K32: 0 | L32: 0 | M32: 0 | N32: 771422.99 | O32: 960.06 | P32: 775339.85 | Q32: 0 | R32: 0 | S32: 0 | T32: 775339.85 | U32: 0.55 | V32: -16531.76 | W32: 20448.62 | X32: 3916.86
H33: Rute 13 | I33: 654.4 | J33: 678850.74 | K33: 0 | L33: 0 | M33: 0 | N33: 678850.74 | O33: 653.44 | P33: 649940.08 | Q33: 0 | R33: 0 | S33: 0 | T33: 649940.08 | U33: -0.96 | V33: -13858 | W33: -15052.66 | X33: -28910.66
H34: Rute 14 | I34: 943.1 | J34: 806360.13 | K34: 0 | L34: 0 | M34: 0 | N34: 806360.13 | O34: 919.63 | P34: 778178.56 | Q34: 0 | R34: 0 | S34: 0 | T34: 778178.56 | U34: -23.47 | V34: -16592.29 | W34: -11589.28 | X34: -28181.57
H35: Rute 15 | I35: 742.91 | J35: 698594.86 | K35: 0 | L35: 0 | M35: 0 | N35: 698594.86 | O35: 730.93 | P35: 676606.71 | Q35: 0 | R35: 0 | S35: 0 | T35: 676606.71 | U35: -11.98 | V35: -14426.58 | W35: -7561.57 | X35: -21988.15
H36: Rute 2 | I36: 1262.85 | J36: 910506.02 | K36: 0 | L36: 0 | M36: 0 | N36: 910506.02 | O36: 1276.83 | P36: 930294.05 | Q36: 0 | R36: 0 | S36: 0 | T36: 930294.05 | U36: 13.98 | V36: -19835.69 | W36: 39623.72 | X36: 19788.03
H37: Rute 3 | I37: 596.93 | J37: 639096.73 | K37: 0 | L37: 0 | M37: 0 | N37: 639096.73 | O37: 612.31 | P37: 622419.73 | Q37: 0 | R37: 0 | S37: 0 | T37: 622419.73 | U37: 15.38 | V37: -13271.21 | W37: -3405.79 | X37: -16677
H38: Rute 4 | I38: 622.92 | J38: 649692.29 | K38: 0 | L38: 0 | M38: 0 | N38: 649692.29 | O38: 623.07 | P38: 627352.26 | Q38: 0 | R38: 0 | S38: 0 | T38: 627352.26 | U38: 0.15 | V38: -13376.38 | W38: -8963.65 | X38: -22340.03
H39: Rute 5 | I39: 979.88 | J39: 795177.45 | K39: 0 | L39: 0 | M39: 0 | N39: 795177.45 | O39: 979.64 | P39: 792599.73 | Q39: 0 | R39: 0 | S39: 0 | T39: 792599.73 | U39: -0.24 | V39: -16899.78 | W39: 14322.06 | X39: -2577.72
H40: Rute 6 | I40: 780.46 | J40: 701535.91 | K40: 0 | L40: 0 | M40: 0 | N40: 701535.91 | O40: 865.83 | P40: 738476.54 | Q40: 0 | R40: 0 | S40: 0 | T40: 738476.54 | U40: 85.37 | V40: -15745.77 | W40: 52686.4 | X40: 36940.63
H41: Rute 7 | I41: 809.69 | J41: 721474.5 | K41: 0 | L41: 0 | M41: 0 | N41: 721474.5 | O41: 840.07 | P41: 722457.73 | Q41: 0 | R41: 0 | S41: 0 | T41: 722457.73 | U41: 30.38 | V41: -15404.21 | W41: 16387.44 | X41: 983.23
H42: Rute 8 | I42: 856.69 | J42: 753537.14 | K42: 0 | L42: 0 | M42: 0 | N42: 753537.14 | O42: 856.66 | P42: 732554.07 | Q42: 0 | R42: 0 | S42: 0 | T42: 732554.07 | U42: -0.03 | V42: -15619.49 | W42: -5363.58 | X42: -20983.07
H43: Rute 851 | I43: 1483.14 | J43: 1487196.23 | K43: 0 | L43: 0 | M43: 0 | N43: 1487196.23 | O43: 529.29 | P43: 508172.39 | Q43: 0 | R43: 0 | S43: 0 | T43: 508172.39 | U43: -953.85 | V43: -10835.23 | W43: -968188.61 | X43: -979023.84
H44: Rute 9 | I44: 922.53 | J44: 757061.38 | K44: 0 | L44: 0 | M44: 0 | N44: 757061.38 | O44: 833.6 | P44: 710795.29 | Q44: 0 | R44: 0 | S44: 0 | T44: 710795.29 | U44: -88.93 | V44: -15155.55 | W44: -31110.54 | X44: -46266.09
U45: 0 | V45: 0 | W45: 0 | X45: 0
U46: 0 | V46: 0 | W46: 0 | X46: 0
U47: 0 | V47: 0 | W47: 0 | X47: 0
G48: Skolekørsel i alt | I48: 13986.57 | J48: 12534937.92 | K48: 0 | L48: 0 | M48: 0 | N48: 12534937.92 | O48: 13001.02 | P48: 11367662.84 | Q48: 0 | R48: 0 | S48: -225400 | T48: 11142262.84 | U48: -985.55 | V48: -237574.87 | W48: -1155100.21 | X48: -1392675.08
G50: Total, Favrskov Kommune | I50: 21451.34 | J50: 17859374.52 | K50: 1717571.21 | L50: 413297.75 | M50: 0 | N50: 19990243.48 | O50: 20965.35 | P50: 16758708.36 | Q50: 2007419.9 | R50: 541884.37 | S50: -225400 | T50: 19082612.63 | U50: -485.99 | V50: -401449.27 | W50: -506181.58 | X50: -907630.85 | Y50: =+Y15+Y22 -> 4070897.145
G51: Udgifter til skolekørsel er for nuværende ikke opdelt i timeafhængige og busafhængige omkostninger. Alle udgifter står således angivet som timeafhængige.

Sheet HED
G3: =titel -> Regnskab 2025
G7: Hedensted Kommune | I7: Budget 2025 (2025B-1) | O7: Regnskab 2025 (2025R) | U7: Afvigelse (2025R-2025B-1) | Y7: 2025R
G8: Rutetype | H8: Rute | I8: Timer | J8: Timeafhængige omkostninger | K8: Busafhængige omkostninger | L8: Ekstrakørsel | M8: Andet | N8: Udgifter i alt | O8: Timer | P8: Timeafhængige omkostninger | Q8: Busafhængige omkostninger | R8: Ekstrakørsel | S8: Andet | T8: Udgifter i alt | U8: Timer | V8: Anslået indekseffekt | W8: Anden afvigelse | X8: Udgifter i alt | Y8: Indtægter
G10: Regional- og lokalkørsel | H10: 104 | I10: 3196.99 | J10: 2006590.47 | K10: 457276.88 | L10: 0 | M10: 0 | N10: 2463867.35 | O10: 3167.73 | P10: 1972438.71 | Q10: 360427.2 | R10: 0 | S10: 0 | T10: 2332865.91 | U10: -29.26 | V10: -66002.05 | W10: -64999.39 | X10: -131001.44 | Y10: 876412.6794
H11: 1114 | I11: 2289.09 | J11: 1428781.64 | K11: 342855.38 | L11: 0 | M11: 0 | N11: 1771637.01 | O11: 2302.71 | P11: 1399053.43 | Q11: 328304.12 | R11: 0 | S11: 0 | T11: 1727357.55 | U11: 13.62 | V11: -55468.29 | W11: 11188.83 | X11: -44279.46 | Y11: 295667.2777
H12: 116 | I12: 0 | J12: 0 | K12: 0 | L12: 0 | M12: 0 | N12: 0 | O12: 4.7 | P12: 3080.08 | Q12: 438.86 | R12: 0 | S12: 0 | T12: 3518.94 | U12: 4.7 | V12: -75.03 | W12: 3593.97 | X12: 3518.94 | Y12: 74.57120656
H13: 220 | I13: 1459.5 | J13: 916792.52 | K13: 237956.7 | L13: 0 | M13: 0 | N13: 1154749.22 | O13: 1459.52 | P13: 907358.05 | Q13: 241112.4 | R13: 0 | S13: 0 | T13: 1148470.45 | U13: 0.02 | V13: -32556.51 | W13: 26277.74 | X13: -6278.77 | Y13: 338041.8508
H14: 504 | I14: 48.14 | J14: 31092.53 | K14: 8960.86 | L14: 0 | M14: 0 | N14: 40053.39 | O14: 46.67 | P14: 29198.72 | Q14: 8345.72 | R14: 0 | S14: 0 | T14: 37544.44 | U14: -1.47 | V14: -1013.52 | W14: -1495.43 | X14: -2508.95 | Y14: 26452.10653
H15: 694 | I15: 627.98 | J15: 397909.46 | K15: 173987.85 | L15: 0 | M15: 0 | N15: 571897.31 | O15: 690.63 | P15: 422182.74 | Q15: 269303.39 | R15: 8313.27 | S15: 0 | T15: 699799.4 | U15: 62.65 | V15: -22363.1 | W15: 150265.19 | X15: 127902.09 | Y15: 173699.3731
H16: 696 | I16: 1649.89 | J16: 1051664.28 | K16: 321471 | L16: 210995.87 | M16: 0 | N16: 1584131.15 | O16: 1636.99 | P16: 1012236.76 | Q16: 400088.39 | R16: 276301.76 | S16: 0 | T16: 1688626.91 | U16: -12.9 | V16: -50624.22 | W16: 155119.98 | X16: 104495.76 | Y16: 287491.9254
H17: 704 | I17: 469.4 | J17: 296648.18 | K17: 161926.22 | L17: 0 | M17: 0 | N17: 458574.4 | O17: 461.74 | P17: 282409.26 | Q17: 263301.65 | R17: 0 | S17: 0 | T17: 545710.91 | U17: -7.66 | V17: -17195.28 | W17: 104331.79 | X17: 87136.51 | Y17: 19229.13569
U18: 0 | V18: 0 | W18: 0 | X18: 0
G19: Regional- og lokalkørsel i alt | I19: 9740.99 | J19: 6129479.08 | K19: 1704434.89 | L19: 210995.87 | M19: 0 | N19: 8044909.83 | O19: 9770.69 | P19: 6027957.75 | Q19: 1871321.73 | R19: 284615.03 | S19: 0 | T19: 8183894.51 | U19: 29.7 | V19: -245298 | W19: 384282.68 | X19: 138984.68 | Y19: =SUM(Y10:Y17) -> 2017068.92
G20: Ikke rutefordelt | U20: 0 | V20: 0 | W20: 0 | X20: 0 | Y20: 524608.722
G21: Faste køretøjsomkostninger | H21: IR | I21: 0 | J21: 0 | K21: 0 | L21: 0 | M21: 0 | N21: 0 | O21: 0 | P21: 0 | Q21: 179507.6 | R21: 0 | S21: 0 | T21: 179507.6 | U21: 0 | V21: -7722.12 | W21: 187229.72 | X21: 179507.6
G22: Administrationstillæg | H22: IR | I22: 0 | J22: 0 | K22: 0 | L22: 0 | M22: 292008.83 | N22: 292008.83 | O22: 0 | P22: 0 | Q22: 0 | R22: 0 | S22: 305737.6 | T22: 305737.6 | U22: 0 | V22: -13152.32 | W22: 26881.09 | X22: 13728.77
G23: Omkørsel | H23: IR | I23: 0 | J23: 0 | K23: 0 | L23: 0 | M23: 0 | N23: 0 | O23: 0 | P23: 0 | Q23: 0 | R23: 23288.46 | S23: 0 | T23: 23288.46 | U23: 0 | V23: -496.56 | W23: 23785.02 | X23: 23288.46
G25: Ikke rutefordelt i alt | I25: =SUM(I21:I23) -> 0 | J25: =SUM(J21:J23) -> 0 | K25: =SUM(K21:K23) -> 0 | L25: 0 | M25: 292008.83 | N25: 292008.83 | O25: 0 | P25: 0 | Q25: 179507.6 | R25: 23288.46 | S25: 305737.6 | T25: 508533.66 | U25: 0 | V25: -21371 | W25: 237895.83 | X25: 216524.83 | Y25: =+Y20 -> 524608.722
G27: Total, Hedensted Kommune | I27: 9740.99 | J27: 6129479.08 | K27: 1704434.89 | L27: 210995.87 | M27: 292008.83 | N27: 8336918.66 | O27: 9770.69 | P27: 6027957.75 | Q27: 2050829.33 | R27: 307903.49 | S27: 305737.6 | T27: 8692428.17 | U27: 29.7 | V27: -266669 | W27: 622178.51 | X27: 355509.51 | Y27: =Y19+Y25 -> 2541677.642

Sheet HER
G3: =titel -> Regnskab 2025
G7: Herning Kommune | I7: Budget 2025 (2025B-1) | O7: Regnskab 2025 (2025R) | U7: Afvigelse (2025R-2025B-1) | Y7: 2025R
G8: Rutetype | H8: Rute | I8: Timer | J8: Timeafhængige omkostninger | K8: Busafhængige omkostninger | L8: Ekstrakørsel | M8: Andet | N8: Udgifter i alt | O8: Timer | P8: Timeafhængige omkostninger | Q8: Busafhængige omkostninger | R8: Ekstrakørsel | S8: Andet | T8: Udgifter i alt | U8: Timer | V8: Anslået indekseffekt | W8: Anden afvigelse | X8: Udgifter i alt | Y8: Indtægter
G9: Bybus | H9: 1 HE | I9: 6773.45 | J9: 3616018.78 | K9: 1041635.81 | L9: 0 | M9: 0 | N9: 4657654.6 | O9: 6744.06 | P9: 3452157.69 | Q9: 1127181.04 | R9: 0 | S9: 0 | T9: 4579338.73 | U9: -29.39 | V9: -196995.53 | W9: 118679.66 | X9: -78315.87 | Y9: 1369871.793
H10: 10 HE | I10: 4044.82 | J10: 2163236.93 | K10: 357693.41 | L10: 0 | M10: 0 | N10: 2520930.34 | O10: 4049.86 | P10: 2074095.57 | Q10: 426065.38 | R10: 0 | S10: 0 | T10: 2500160.95 | U10: 5.04 | V10: -107552.76 | W10: 86783.37 | X10: -20769.39 | Y10: 419927.4133
H11: 101 | I11: 375.91 | J11: 214477.41 | K11: 72911.52 | L11: 0 | M11: 0 | N11: 287388.94 | O11: 373.96 | P11: 204700.74 | Q11: 81726.71 | R11: 0 | S11: 0 | T11: 286427.45 | U11: -1.95 | V11: -11828.57 | W11: 10867.08 | X11: -961.49 | Y11: 178849.3452
H12: 102 | I12: 270.22 | J12: 162354.02 | K12: 43818.38 | L12: 0 | M12: 0 | N12: 206172.4 | O12: 233.13 | P12: 134025.15 | Q12: 51941.1 | R12: 0 | S12: 0 | T12: 185966.25 | U12: -37.09 | V12: -7999.96 | W12: -12206.19 | X12: -20206.15 | Y12: 67317.69195
H13: 11 HE | I13: 4017.9 | J13: 2147807.7 | K13: 393264.68 | L13: 0 | M13: 0 | N13: 2541072.38 | O13: 3996.55 | P13: 2045788.45 | Q13: 419933.42 | R13: 0 | S13: 0 | T13: 2465721.87 | U13: -21.35 | V13: -106071.25 | W13: 30720.74 | X13: -75350.51 | Y13: 556380.0739
H14: 2 HE | I14: 2531.68 | J14: 1348034.1 | K14: 412172.56 | L14: 0 | M14: 0 | N14: 1760206.66 | O14: 2545.61 | P14: 1303574.87 | Q14: 456430.9 | R14: 0 | S14: 0 | T14: 1760005.77 | U14: 13.93 | V14: -75712.52 | W14: 75511.63 | X14: -200.89 | Y14: 512946.1974
H15: 3 HE | I15: 2304.98 | J15: 1232662.48 | K15: 383428.3 | L15: 0 | M15: 0 | N15: 1616090.79 | O15: 2296.53 | P15: 1175473.46 | Q15: 421814.38 | R15: 0 | S15: 0 | T15: 1597287.84 | U15: -8.45 | V15: -68712.66 | W15: 49909.71 | X15: -18802.95 | Y15: 296464.7923
H16: 4 HE | I16: 2137.6 | J16: 1142307.7 | K16: 282848.09 | L16: 0 | M16: 0 | N16: 1425155.79 | O16: 2125.68 | P16: 1089421.48 | Q16: 379147.08 | R16: 0 | S16: 0 | T16: 1468568.56 | U16: -11.92 | V16: -63175.38 | W16: 106588.15 | X16: 43412.77 | Y16: 417536.0704
H17: 5 HE | I17: 3710.47 | J17: 1985491.82 | K17: 487962.02 | L17: 0 | M17: 0 | N17: 2473453.84 | O17: 3707.7 | P17: 1897656.28 | Q17: 571601.6 | R17: 0 | S17: 0 | T17: 2469257.88 | U17: -2.77 | V17: -106223.37 | W17: 102027.41 | X17: -4195.96 | Y17: 692357.9177
H18: 6 HE | I18: 937.35 | J18: 500663.52 | K18: 132199.37 | L18: 0 | M18: 0 | N18: 632862.88 | O18: 931.49 | P18: 476711.21 | Q18: 167458.75 | R18: 0 | S18: 0 | T18: 644169.96 | U18: -5.86 | V18: -27711.12 | W18: 39018.2 | X18: 11307.08 | Y18: 89465.38041
H19: 7 HE | I19: 1529.47 | J19: 818341.73 | K19: 250479.88 | L19: 0 | M19: 0 | N19: 1068821.62 | O19: 1533.88 | P19: 786174.08 | Q19: 289850.04 | R19: 0 | S19: 0 | T19: 1076024.12 | U19: 4.41 | V19: -46288.77 | W19: 53491.27 | X19: 7202.5 | Y19: 244114.4246
H20: 8 HE | I20: 1937.19 | J20: 1033159.29 | K20: 358613.02 | L20: 0 | M20: 0 | N20: 1391772.31 | O20: 1937.05 | P20: 991963.39 | Q20: 360988.99 | R20: 0 | S20: 0 | T20: 1352952.38 | U20: -0.14 | V20: -58201.77 | W20: 19381.84 | X20: -38819.93 | Y20: 305315.9069
H21: 9 HE | I21: 1523.38 | J21: 812161.58 | K21: 286196.78 | L21: 0 | M21: 0 | N21: 1098358.36 | O21: 1524.96 | P21: 780958.66 | Q21: 315289.67 | R21: 0 | S21: 0 | T21: 1096248.33 | U21: 1.58 | V21: -47158.78 | W21: 45048.75 | X21: -2110.03 | Y21: 370084.5875
G22: Bybus i alt | I22: 32094.42 | J22: 17176717.06 | K22: 4503223.82 | L22: 0 | M22: 0 | N22: 21679940.91 | O22: 32000.46 | P22: 16412701.03 | Q22: 5069429.06 | R22: 0 | S22: 0 | T22: 21482130.09 | U22: -93.96 | V22: -923632.44 | W22: 725821.62 | X22: -197810.82 | Y22: =SUM(Y9:Y21) -> 5520631.595
G24: Regional- og lokalkørsel | H24: 1013 | I24: 108.8 | J24: 65447.86 | K24: 24562.44 | L24: 0 | M24: 0 | N24: 90010.29 | O24: 108.28 | P24: 62162.26 | Q24: 31404.87 | R24: 0 | S24: 0 | T24: 93567.13 | U24: -0.52 | V24: -4025.11 | W24: 7581.95 | X24: 3556.84 | Y24: 27316.57507
H25: 140 | I25: 1339.07 | J25: 809804.82 | K25: 302807.01 | L25: 0 | M25: 0 | N25: 1112611.84 | O25: 1406.7 | P25: 808123.61 | Q25: 407813.91 | R25: 0 | S25: 0 | T25: 1215937.52 | U25: 67.63 | V25: -52307.61 | W25: 155633.29 | X25: 103325.68 | Y25: 65366.60898
H26: 150 | I26: 5218.94 | J26: 3156159.13 | K26: 1180169.7 | L26: 0 | M26: 0 | N26: 4336328.83 | O26: 5204.32 | P26: 2988100.63 | Q26: 907953.77 | R26: 0 | S26: 0 | T26: 3896054.4 | U26: -14.62 | V26: -167601.78 | W26: -272672.65 | X26: -440274.43 | Y26: 302451.0887
H27: 160 | I27: 1891.44 | J27: 1143848.55 | K27: 427714.62 | L27: 0 | M27: 0 | N27: 1571563.16 | O27: 1882.01 | P27: 1080659.86 | Q27: 399614.73 | R27: 0 | S27: 0 | T27: 1480274.59 | U27: -9.43 | V27: -63678.94 | W27: -27609.63 | X27: -91288.57 | Y27: 4710.860704
H28: 168U | I28: 1170.4 | J28: 623269.18 | K28: 282128.13 | L28: 0 | M28: 0 | N28: 905397.31 | O28: 1153.08 | P28: 591404.23 | Q28: 230413.5 | R28: 0 | S28: 0 | T28: 821817.73 | U28: -17.32 | V28: -35353.24 | W28: -48226.34 | X28: -83579.58 | Y28: 21306.42279
H29: 169U | I29: 1194.49 | J29: 639342.53 | K29: 289814.84 | L29: 0 | M29: 0 | N29: 929157.37 | O29: 1194.4 | P29: 612956.81 | Q29: 289647.84 | R29: 0 | S29: 0 | T29: 902604.65 | U29: -0.09 | V29: -38828.55 | W29: 12275.83 | X29: -26552.72 | Y29: 32773.61625
H30: 621 | I30: 22.86 | J30: 13479.75 | K30: 4083.1 | L30: 0 | M30: 1420.05 | N30: 18982.9 | O30: 0 | P30: 0 | Q30: 0 | R30: 0 | S30: 0 | T30: 0 | U30: -22.86 | V30: 0 | W30: -18982.9 | X30: -18982.9
G31: Regional- og lokalkørsel i alt | I31: 10946 | J31: 6451351.82 | K31: 2511279.84 | L31: 0 | M31: 1420.05 | N31: 8964051.7 | O31: 10948.79 | P31: 6143407.4 | Q31: 2266848.62 | R31: 0 | S31: 0 | T31: 8410256.02 | U31: 2.79 | V31: -361795.23 | W31: -192000.45 | X31: -553795.68 | Y31: =SUM(Y24:Y30) -> 453925.1725
G33: Natbus- og arrangementskørsel | H33: 2N HE | I33: 27.27 | J33: 14632.87 | K33: 4728.77 | L33: 0 | M33: 0 | N33: 19361.63 | O33: 27.6 | P33: 14327.1 | Q33: 4342.66 | R33: 0 | S33: 0 | T33: 18669.76 | U33: 0.33 | V33: -803.14 | W33: 111.27 | X33: -691.87 | Y33: 4293.23
H34: 6M HE | I34: 0 | J34: 0 | K34: 0 | L34: 0 | M34: 0 | N34: 0 | O34: 0 | P34: 0 | Q34: 0 | R34: 620795.97 | S34: 0 | T34: 620795.97 | U34: 0 | V34: -26705.61 | W34: 647501.58 | X34: 620795.97 | Y34: 66654.3
G36: Natbus- og arrangementskørsel i alt | I36: 27.27 | J36: 14632.87 | K36: 4728.77 | L36: 0 | M36: 0 | N36: 19361.63 | O36: 27.6 | P36: 14327.1 | Q36: 4342.66 | R36: 620795.97 | S36: 0 | T36: 639465.73 | U36: 0.33 | V36: -27508.75 | W36: 647612.85 | X36: 620104.1 | Y36: =SUM(Y33:Y34) -> 70947.53
G38: Ikke rutefordelt | U38: 0 | V38: 0 | W38: 0 | X38: 0 | Y38: 467280.2621
G39: Faste køretøjsomkostninger | H39: IR | I39: 0 | J39: 0 | K39: 955268.13 | L39: 0 | M39: 0 | N39: 955268.13 | O39: 0 | P39: 0 | Q39: 1538754.94 | R39: 0 | S39: 0 | T39: 1538754.94 | U39: 0 | V39: -55796.59 | W39: 639283.4 | X39: 583486.81
G40: Administrationstillæg | H40: IR | I40: 0 | J40: 0 | K40: 0 | L40: 0 | M40: 5183538.18 | N40: 5183538.18 | O40: 0 | P40: 0 | Q40: 0 | R40: 0 | S40: 4730881.6 | T40: 4730881.6 | U40: 0 | V40: -203514.65 | W40: -249141.93 | X40: -452656.58
G41: Omkørsel | H41: IR | I41: 0 | J41: 0 | K41: 0 | L41: 0 | M41: 0 | N41: 0 | O41: 0 | P41: 0 | Q41: 0 | R41: 104118.32 | S41: 0 | T41: 104118.32 | U41: 0 | V41: -4260.79 | W41: 108379.11 | X41: 104118.32
G42: Bonus | H42: IR | I42: 0 | J42: 0 | K42: 0 | L42: 0 | M42: 625398.8 | N42: 625398.8 | O42: 0 | P42: 0 | Q42: 0 | R42: 0 | S42: 490827.3 | T42: 490827.3 | U42: 0 | V42: -21114.57 | W42: -113456.93 | X42: -134571.5
U43: 0 | V43: 0 | W43: 0 | X43: 0
U44: 0 | V44: 0 | W44: 0 | X44: 0
G45: Ikke rutefordelt i alt | I45: 0 | J45: 0 | K45: 955268.13 | L45: 0 | M45: 5808936.98 | N45: 6764205.11 | O45: 0 | P45: 0 | Q45: 1538754.94 | R45: 104118.32 | S45: 5221708.9 | T45: 6864582.16 | U45: 0 | V45: -284686.6 | W45: 385063.65 | X45: 100377.05 | Y45: =+Y38 -> 467280.2621
G47: Skolekørsel | H47: 135 | I47: 731.95 | J47: 980971.92 | K47: 0 | L47: 0 | M47: 0 | N47: 980971.92 | O47: 695.17 | P47: 633688.19 | Q47: 283190.37 | R47: 0 | S47: 0 | T47: 916878.56 | U47: -36.78 | V47: -19549.65 | W47: -44543.71 | X47: -64093.36
H48: 137 | I48: 502.71 | J48: 771137.82 | K48: 0 | L48: 0 | M48: 0 | N48: 771137.82 | O48: 527.82 | P48: 481819.94 | Q48: 283190.37 | R48: 0 | S48: 0 | T48: 765010.31 | U48: 25.11 | V48: -16311.52 | W48: 10184.01 | X48: -6127.51
H49: 139 | I49: 579.13 | J49: 841014 | K49: 0 | L49: 0 | M49: 0 | N49: 841014 | O49: 522.89 | P49: 476440.16 | Q49: 283190.37 | R49: 0 | S49: 0 | T49: 759630.53 | U49: -56.24 | V49: -16196.81 | W49: -65186.66 | X49: -81383.47
H50: 142 | I50: 691.89 | J50: 812619.6 | K50: 0 | L50: 0 | M50: 0 | N50: 812619.6 | O50: 474.77 | P50: 414097.23 | Q50: 188734.12 | R50: 0 | S50: 0 | T50: 602831.35 | U50: -217.12 | V50: -12853.55 | W50: -196934.7 | X50: -209788.25
H51: 144 | I51: 558.33 | J51: 695821.35 | K51: 0 | L51: 0 | M51: 0 | N51: 695821.35 | O51: 610.62 | P51: 532643.22 | Q51: 188734.12 | R51: 0 | S51: 0 | T51: 721377.34 | U51: 52.29 | V51: -15381.18 | W51: 40937.17 | X51: 25555.99
H52: 145 | I52: 602.52 | J52: 734461.37 | K52: 0 | L52: 0 | M52: 0 | N52: 734461.37 | O52: 484.77 | P52: 422924.44 | Q52: 188734.12 | R52: 0 | S52: 0 | T52: 611658.56 | U52: -117.75 | V52: -13041.76 | W52: -109761.05 | X52: -122802.81
H53: 148 | I53: 616.33 | J53: 875032.67 | K53: 0 | L53: 0 | M53: 0 | N53: 875032.67 | O53: 701.56 | P53: 640436.05 | Q53: 283190.37 | R53: 0 | S53: 0 | T53: 923626.42 | U53: 85.23 | V53: -19693.52 | W53: 68287.27 | X53: 48593.75
H54: 151 | I54: 555 | J54: 818947.84 | K54: 0 | L54: 0 | M54: 0 | N54: 818947.84 | O54: 503.07 | P54: 459460.58 | Q54: 307589.81 | R54: 0 | S54: 0 | T54: 767050.39 | U54: -51.93 | V54: -16355.02 | W54: -35542.43 | X54: -51897.45
H55: 152 | I55: 380.05 | J55: 658968.15 | K55: 0 | L55: 0 | M55: 0 | N55: 658968.15 | O55: 376.48 | P55: 343510.69 | Q55: 258790.93 | R55: 0 | S55: 0 | T55: 602301.62 | U55: -3.57 | V55: -12842.25 | W55: -43824.28 | X55: -56666.53
H56: 153 | I56: 521.96 | J56: 741807.08 | K56: 0 | L56: 0 | M56: 0 | N56: 741807.08 | O56: 531.67 | P56: 433362.86 | Q56: 287070.3 | R56: 0 | S56: 0 | T56: 720433.16 | U56: 9.71 | V56: -15361.05 | W56: -6012.87 | X56: -21373.92
H57: 154 | I57: 693.61 | J57: 881933.1 | K57: 0 | L57: 0 | M57: 0 | N57: 881933.1 | O57: 509.45 | P57: 414465.81 | Q57: 287070.3 | R57: 0 | S57: 0 | T57: 701536.11 | U57: -184.16 | V57: -14958.12 | W57: -165438.87 | X57: -180396.99
H58: 155 | I58: 460.73 | J58: 691820.61 | K58: 0 | L58: 0 | M58: 0 | N58: 691820.61 | O58: 530.06 | P58: 432452.31 | Q58: 287070.3 | R58: 0 | S58: 0 | T58: 719522.61 | U58: 69.33 | V58: -15341.63 | W58: 43043.63 | X58: 27702
H59: 156 | I59: 513.93 | J59: 735251.48 | K59: 0 | L59: 0 | M59: 0 | N59: 735251.48 | O59: 541.92 | P59: 441688.15 | Q59: 287070.3 | R59: 0 | S59: 0 | T59: 728758.45 | U59: 27.99 | V59: -15538.56 | W59: 9045.53 | X59: -6493.03
H60: 157 | I60: 535.2 | J60: 629158.81 | K60: 0 | L60: 0 | M60: 0 | N60: 629158.81 | O60: 642.98 | P60: 580175.61 | Q60: 131962.23 | R60: 0 | S60: 0 | T60: 712137.84 | U60: 107.78 | V60: -15184.17 | W60: 98163.2 | X60: 82979.03
H61: 158 | I61: 419.72 | J61: 524722.6 | K61: 0 | L61: 0 | M61: 0 | N61: 524722.6 | O61: 463.4 | P61: 418264.4 | Q61: 131962.23 | R61: 0 | S61: 0 | T61: 550226.63 | U61: 43.68 | V61: -11731.91 | W61: 37235.94 | X61: 25504.03
H62: 159 | I62: 515.12 | J62: 610995.99 | K62: 0 | L62: 0 | M62: 0 | N62: 610995.99 | O62: 359.18 | P62: 324716.51 | Q62: 131962.23 | R62: 0 | S62: 0 | T62: 456678.74 | U62: -155.94 | V62: -9737.28 | W62: -144579.97 | X62: -154317.25
H63: 162 | I63: 0 | J63: 0 | K63: 0 | L63: 0 | M63: 0 | N63: 0 | O63: 596.5 | P63: 538735.14 | Q63: 131580.42 | R63: 0 | S63: 0 | T63: 670315.56 | U63: 596.5 | V63: -14292.44 | W63: 684608 | X63: 670315.56
H64: 163 | I64: 502.1 | J64: 646643.15 | K64: 0 | L64: 0 | M64: 0 | N64: 646643.15 | O64: 541.67 | P64: 473021.98 | Q64: 188734.12 | R64: 0 | S64: 0 | T64: 661756.1 | U64: 39.57 | V64: -14109.94 | W64: 29222.89 | X64: 15112.95
H65: 164 | I65: 627.62 | J65: 756415.93 | K65: 0 | L65: 0 | M65: 0 | N65: 756415.93 | O65: 684.75 | P65: 597895.52 | Q65: 188734.12 | R65: 0 | S65: 0 | T65: 786629.64 | U65: 57.13 | V65: -16772.49 | W65: 46986.2 | X65: 30213.71
H66: 165 | I66: 659.71 | J66: 741768.3 | K66: 0 | L66: 0 | M66: 0 | N66: 741768.3 | O66: 533.1 | P66: 481571.36 | Q66: 131962.23 | R66: 0 | S66: 0 | T66: 613533.59 | U66: -126.61 | V66: -13081.74 | W66: -115152.97 | X66: -128234.71
H67: 166 | I67: 807.32 | J67: 875265.03 | K67: 0 | L67: 0 | M67: 0 | N67: 875265.03 | O67: 468.63 | P67: 423250.89 | Q67: 131962.23 | R67: 0 | S67: 0 | T67: 555213.12 | U67: -338.69 | V67: -11838.23 | W67: -308213.68 | X67: -320051.91
H68: 167 | I68: 612.56 | J68: 743243.2 | K68: 0 | L68: 0 | M68: 0 | N68: 743243.2 | O68: 671.05 | P68: 586093.03 | Q68: 188734.12 | R68: 0 | S68: 0 | T68: 774827.15 | U68: 58.49 | V68: -16520.83 | W68: 48104.78 | X68: 31583.95
U69: 0 | V69: 0 | W69: 0 | X69: 0
U70: 0 | V70: 0 | W70: 0 | X70: 0
U71: 0 | V71: 0 | W71: 0 | X71: 0
U72: 0 | V72: 0 | W72: 0 | X72: 0
U73: 0 | V73: 0 | W73: 0 | X73: 0
G74: Skolekørsel i alt | I74: 12087.49 | J74: 15768000 | K74: 0 | L74: 0 | M74: 0 | N74: 15768000 | O74: 11971.51 | P74: 10550714.07 | Q74: 4771219.71 | R74: 0 | S74: 0 | T74: 15321933.78 | U74: -115.98 | V74: -326693.65 | W74: -119372.57 | X74: -446066.22
G76: Total, Herning Kommune | I76: 55155.18 | J76: 39410701.75 | K76: 7974500.56 | L76: 0 | M76: 5810357.03 | N76: 53195559.35 | O76: 54948.36 | P76: 33121149.6 | Q76: 13650594.99 | R76: 724914.29 | S76: 5221708.9 | T76: 52718367.78 | U76: -206.82 | V76: -1924316.67 | W76: 1447125.1 | X76: -477191.57 | Y76: =Y22+Y31+Y36+Y45 -> 6512784.559

Sheet HOL
G3: =titel -> Regnskab 2025
G7: Holstebro Kommune | I7: Budget 2025 (2025B-1) | O7: Regnskab 2025 (2025R) | U7: Afvigelse (2025R-2025B-1) | Y7: 2025R
G8: Rutetype | H8: Rute | I8: Timer | J8: Timeafhængige omkostninger | K8: Busafhængige omkostninger | L8: Ekstrakørsel | M8: Andet | N8: Udgifter i alt | O8: Timer | P8: Timeafhængige omkostninger | Q8: Busafhængige omkostninger | R8: Ekstrakørsel | S8: Andet | T8: Udgifter i alt | U8: Timer | V8: Anslået indekseffekt | W8: Anden afvigelse | X8: Udgifter i alt | Y8: Indtægter
G10: Regional- og lokalkørsel | H10: 270 | I10: 4192.77 | J10: 2630747.26 | K10: 986571.04 | L10: 0 | M10: 0 | N10: 3617318.3 | O10: 4009.83 | P10: 2506258.14 | Q10: 883829.82 | R10: 0 | S10: 0 | T10: 3390087.96 | U10: -182.94 | V10: -72283.33 | W10: -154947.01 | X10: -227230.34
H11: 283 | I11: 1435.46 | J11: 793036.56 | K11: 781475.28 | L11: 0 | M11: 0 | N11: 1574511.83 | O11: 1441.53 | P11: 918553.42 | Q11: 616890.66 | R11: 0 | S11: 0 | T11: 1535444.08 | U11: 6.07 | V11: -33567.54 | W11: -5500.21 | X11: -39067.75
H12: 296 | I12: 1419.92 | J12: 786202.33 | K12: 772854.68 | L12: 0 | M12: 0 | N12: 1559057.01 | O12: 1402.58 | P12: 891565.73 | Q12: 618469.84 | R12: 0 | S12: 0 | T12: 1510035.57 | U12: -17.34 | V12: -33012.06 | W12: -16009.38 | X12: -49021.44
H13: 297 | I13: 543.61 | J13: 300990.87 | K13: 302056.03 | L13: 0 | M13: 0 | N13: 603046.9 | O13: 529.51 | P13: 336917.63 | Q13: 203522.16 | R13: 0 | S13: 0 | T13: 540439.79 | U13: -14.1 | V13: -11814.98 | W13: -50792.13 | X13: -62607.11
H14: 298 | I14: 1453 | J14: 804517.28 | K14: 861250.26 | L14: 0 | M14: 0 | N14: 1665767.54 | O14: 1466.34 | P14: 933375.44 | Q14: 609262.69 | R14: 0 | S14: 0 | T14: 1542638.13 | U14: 13.34 | V14: -33724.82 | W14: -89404.59 | X14: -123129.41
U16: 0 | V16: 0 | W16: 0 | X16: 0
G17: Regional- og lokalkørsel i alt | I17: 9044.76 | J17: 5315494.3 | K17: 3704207.29 | L17: 0 | M17: 0 | N17: 9019701.58 | O17: 8849.79 | P17: 5586670.36 | Q17: 2931975.17 | R17: 0 | S17: 0 | T17: 8518645.53 | U17: -194.97 | V17: -184402.73 | W17: -316653.32 | X17: -501056.05 | Y17: =SUM(Y10:Y14) -> 0
G19: Ikke rutefordelt | U19: 0 | V19: 0 | W19: 0 | X19: 0 | Y19: 31427.26
G20: Faste køretøjsomkostninger | H20: IR | I20: 0 | J20: 0 | K20: 0 | L20: 0 | M20: 0 | N20: 0 | O20: 0 | P20: 0 | Q20: 169822.08 | R20: 0 | S20: 0 | T20: 169822.08 | U20: 0 | V20: -3669.27 | W20: 173491.35 | X20: 169822.08
G21: Bonus | H21: IR | I21: 0 | J21: 0 | K21: 0 | L21: 0 | M21: 129143.57 | N21: 129143.57 | O21: 0 | P21: 0 | Q21: 0 | R21: 0 | S21: 117739.28 | T21: 117739.28 | U21: 0 | V21: -2573.99 | W21: -8830.3 | X21: -11404.29
G22: Andre udgifter | H22: IR | I22: 0 | J22: 0 | K22: 0 | L22: 0 | M22: 0 | N22: 0 | O22: 0 | P22: 0 | Q22: 0 | R22: 0 | S22: 4637.99 | T22: 4637.99 | U22: 0 | V22: -98.89 | W22: 4736.88 | X22: 4637.99
U23: 0 | V23: 0 | W23: 0 | X23: 0
U24: 0 | V24: 0 | W24: 0 | X24: 0
G25: Ikke rutefordelt i alt | I25: 0 | J25: 0 | K25: 0 | L25: 0 | M25: 129143.57 | N25: 129143.57 | O25: 0 | P25: 0 | Q25: 169822.08 | R25: 0 | S25: 122377.27 | T25: 292199.35 | U25: 0 | V25: -6342.15 | W25: 169397.93 | X25: 163055.78 | Y25: 31427.26
G27: Total, Holstebro Kommune | I27: 9044.76 | J27: 5315494.3 | K27: 3704207.29 | L27: 0 | M27: 129143.57 | N27: 9148845.15 | O27: 8849.79 | P27: 5586670.36 | Q27: 3101797.25 | R27: 0 | S27: 122377.27 | T27: 8810844.88 | U27: -194.97 | V27: -190744.88 | W27: -147255.39 | X27: -338000.27 | Y27: =Y17+Y25 -> 31427.26

Sheet HOR
G3: =titel -> Regnskab 2025
G7: Horsens Kommune | I7: Budget 2025 (2025B-1) | O7: Regnskab 2025 (2025R) | U7: Afvigelse (2025R-2025B-1) | Y7: 2025R
G8: Rutetype | H8: Rute | I8: Timer | J8: Timeafhængige omkostninger | K8: Busafhængige omkostninger | L8: Ekstrakørsel | M8: Andet | N8: Udgifter i alt | O8: Timer | P8: Timeafhængige omkostninger | Q8: Busafhængige omkostninger | R8: Ekstrakørsel | S8: Andet | T8: Udgifter i alt | U8: Timer | V8: Anslået indekseffekt | W8: Anden afvigelse | X8: Udgifter i alt | Y8: Indtægter
G9: Bybus | H9: 1 HO | I9: 7598.87 | J9: 4596096.45 | K9: 608425 | L9: 0 | M9: 0 | N9: 5204521.45 | O9: 7589.47 | P9: 4443956.55 | Q9: 676613.49 | R9: 4991.14 | S9: 0 | T9: 5125561.18 | U9: -9.4 | V9: -220493.11 | W9: 141532.84 | X9: -78960.27 | Y9: 1623544.628
H10: 11 HO | I10: 443.21 | J10: 264784.99 | K10: 63075.79 | L10: 0 | M10: 0 | N10: 327860.78 | O10: 437.72 | P10: 256011.52 | Q10: 51653.86 | R10: 0 | S10: 0 | T10: 307665.38 | U10: -5.49 | V10: -13235.25 | W10: -6960.15 | X10: -20195.4 | Y10: 219581.0959
H11: 13 HO | I11: 3730.88 | J11: 2254230.08 | K11: 305335.7 | L11: 0 | M11: 0 | N11: 2559565.78 | O11: 3743.15 | P11: 2194551.29 | Q11: 364946.61 | R11: 0 | S11: 0 | T11: 2559497.9 | U11: 12.27 | V11: -110105.34 | W11: 110037.46 | X11: -67.88 | Y11: 1118009.167
H12: 14 HO | I12: 2155.01 | J12: 1302233.63 | K12: 167389.26 | L12: 0 | M12: 0 | N12: 1469622.9 | O12: 2141.92 | P12: 1254753.5 | Q12: 206479.18 | R12: 0 | S12: 0 | T12: 1461232.68 | U12: -13.09 | V12: -62859.8 | W12: 54469.58 | X12: -8390.22 | Y12: 251858.4236
H13: 2 HO | I13: 4969.23 | J13: 3007838.34 | K13: 428603.76 | L13: 0 | M13: 0 | N13: 3436442.1 | O13: 4941.73 | P13: 2890815.46 | Q13: 491420.57 | R13: 4914.2 | S13: 0 | T13: 3387150.23 | U13: -27.5 | V13: -145709.57 | W13: 96417.7 | X13: -49291.87 | Y13: 868122.1447
H14: 3 HO | I14: 5318.65 | J14: 3219015.82 | K14: 442609.69 | L14: 0 | M14: 2461.41 | N14: 3664086.92 | O14: 5281.64 | P14: 3094978.77 | Q14: 505205.85 | R14: 0 | S14: 0 | T14: 3600184.62 | U14: -37.01 | V14: -154036.21 | W14: 90133.91 | X14: -63902.3 | Y14: 1084135.957
H15: 4 HO | I15: 3047.04 | J15: 1845001.22 | K15: 243820.27 | L15: 0 | M15: 0 | N15: 2088821.49 | O15: 3026.32 | P15: 1773149.08 | Q15: 300953.8 | R15: 0 | S15: 0 | T15: 2074102.88 | U15: -20.72 | V15: -89224.45 | W15: 74505.84 | X15: -14718.61 | Y15: 489138.3253
H16: 5 HO | I16: 5133.03 | J16: 3093083.74 | K16: 412889.1 | L16: 0 | M16: 0 | N16: 3505972.84 | O16: 5107.46 | P16: 2985721.56 | Q16: 478222.86 | R16: 5500.83 | S16: 0 | T16: 3469445.25 | U16: -25.57 | V16: -149249.77 | W16: 112722.18 | X16: -36527.59 | Y16: 888764.3527
H17: 6 HO | I17: 2536.63 | J17: 1532427 | K17: 174128.71 | L17: 0 | M17: 0 | N17: 1706555.71 | O17: 2561.03 | P17: 1501338.93 | Q17: 332385.04 | R17: 0 | S17: 0 | T17: 1833723.97 | U17: 24.4 | V17: -78883.75 | W17: 206052.01 | X17: 127168.26 | Y17: 155152.8433
H18: 7 HO | I18: 5596.65 | J18: 3378109.84 | K18: 445582.73 | L18: 0 | M18: 0 | N18: 3823692.57 | O18: 5570.77 | P18: 3257973.42 | Q18: 536750.82 | R18: 5500.83 | S18: 0 | T18: 3800225.07 | U18: -25.88 | V18: -163479.37 | W18: 140011.87 | X18: -23467.5 | Y18: 520347.0604
H19: 8 HO | I19: 3731.46 | J19: 2256896.48 | K19: 279363.36 | L19: 0 | M19: 0 | N19: 2536259.85 | O19: 3709.13 | P19: 2173127.25 | Q19: 319779.93 | R19: 0 | S19: 0 | T19: 2492907.18 | U19: -22.33 | V19: -107240.72 | W19: 63888.05 | X19: -43352.67 | Y19: 448304.856
H20: 9 HO | I20: 3053.35 | J20: 1844506.46 | K20: 208578.75 | L20: 0 | M20: 0 | N20: 2053085.21 | O20: 3044.05 | P20: 1773303.54 | Q20: 265324.07 | R20: 8269.45 | S20: 0 | T20: 2046897.06 | U20: -9.3 | V20: -88054.1 | W20: 81865.95 | X20: -6188.15 | Y20: 534706.6285
U21: 0 | V21: 0 | W21: 0 | X21: 0
U22: 0 | V22: 0 | W22: 0 | X22: 0
G23: Bybus i alt | I23: 47314.01 | J23: 28594224.05 | K23: 3779802.12 | L23: 0 | M23: 2461.41 | N23: 32376487.6 | O23: 47154.39 | P23: 27599680.87 | Q23: 4529736.08 | R23: 29176.45 | S23: 0 | T23: 32158593.4 | U23: -159.62 | V23: -1382571.44 | W23: 1164677.24 | X23: -217894.2 | Y23: =SUM(Y9:Y20) -> 8201665.483
G25: Regional- og lokalkørsel | H25: 104 | I25: 1673.21 | J25: 1050683.81 | K25: 237366.86 | L25: 0 | M25: 52778.38 | N25: 1340829.05 | O25: 1638.75 | P25: 1020041.17 | Q25: 188626.54 | R25: 0 | S25: 0 | T25: 1208667.71 | U25: -34.46 | V25: -34220.7 | W25: -97940.64 | X25: -132161.34 | Y25: 462118.0762
H26: 107 | I26: 671.42 | J26: 451735.24 | K26: 307511.12 | L26: 0 | M26: 0 | N26: 759246.36 | O26: 663.71 | P26: 437124.66 | Q26: 280038.15 | R26: 0 | S26: 0 | T26: 717162.81 | U26: -7.71 | V26: -15291.32 | W26: -26792.23 | X26: -42083.55 | Y26: 200392.9952
H27: 110 | I27: 2361.2 | J27: 1529547.68 | K27: 768896.24 | L27: 84472.29 | M27: 152295.22 | N27: 2535211.43 | O27: 3379.05 | P27: 2127804.66 | Q27: 555586.27 | R27: 383313.93 | S27: 0 | T27: 3066704.86 | U27: 1017.85 | V27: -84548.57 | W27: 616042 | X27: 531493.43 | Y27: 1627712.397
H28: 1112 | I28: 2769.02 | J28: 1785130.66 | K28: 813465.82 | L28: 0 | M28: 176725.27 | N28: 2775321.76 | O28: 3940.94 | P28: 2390353.42 | Q28: 557005.09 | R28: 0 | S28: 0 | T28: 2947358.51 | U28: 1171.92 | V28: -94594.58 | W28: 266631.33 | X28: 172036.75 | Y28: 1236990.542
H29: 1114 | I29: 1823.64 | J29: 1137051.76 | K29: 279281.39 | L29: 0 | M29: 58424.91 | N29: 1474758.06 | O29: 1812.22 | P29: 1101497.12 | Q29: 257784.08 | R29: 0 | S29: 0 | T29: 1359281.2 | U29: -11.42 | V29: -43644.7 | W29: -71832.16 | X29: -115476.86 | Y29: 231360.8463
H30: 116 | I30: 0 | J30: 0 | K30: 0 | L30: 0 | M30: 0 | N30: 0 | O30: 2.72 | P30: 1783.19 | Q30: 245.05 | R30: 0 | S30: 0 | T30: 2028.24 | U30: 2.72 | V30: -43.24 | W30: 2071.48 | X30: 2028.24 | Y30: 37.28560328
H31: 202 | I31: 351.48 | J31: 215930.69 | K31: 83370.55 | L31: 0 | M31: 19657.65 | N31: 318958.89 | O31: 216.78 | P31: 132269.74 | Q31: 19249.34 | R31: 0 | S31: 0 | T31: 151519.08 | U31: -134.7 | V31: -4710.5 | W31: -162729.31 | X31: -167439.81 | Y31: 101910.114
H32: 220 | I32: 855.43 | J32: 537588.9 | K32: 137970.95 | L32: 0 | M32: 27306.96 | N32: 702866.81 | O32: 828.1 | P32: 515025.13 | Q32: 136406.59 | R32: 0 | S32: 0 | T32: 651431.72 | U32: -27.33 | V32: -18432.71 | W32: -33002.38 | X32: -51435.09 | Y32: 194012.9443
H33: 501 | I33: 91.05 | J33: 53679.35 | K33: 16259.83 | L33: 0 | M33: 5654.94 | N33: 75594.12 | O33: 0 | P33: 0 | Q33: 0 | R33: 0 | S33: 0 | T33: 0 | U33: -91.05 | V33: 0 | W33: -75594.12 | X33: -75594.12
H34: 502 | I34: 681.3 | J34: 426520.7 | K34: 163394.85 | L34: 0 | M34: 21906.58 | N34: 611822.12 | O34: 671.89 | P34: 421717.69 | Q34: 222774.65 | R34: 0 | S34: 0 | T34: 644492.34 | U34: -9.41 | V34: -17441.01 | W34: 50111.23 | X34: 32670.22 | Y34: 227723.7091
H35: 504 | I35: 5.6 | J35: 3762.09 | K35: 597.16 | L35: 0 | M35: 0 | N35: 4359.25 | O35: 6.8 | P35: 4441.83 | Q35: 720.07 | R35: 0 | S35: 0 | T35: 5161.9 | U35: 1.2 | V35: -110.06 | W35: 912.71 | X35: 802.65 | Y35: 2209.831276
H36: 518 | I36: 47.25 | J36: 27858.15 | K36: 8438.41 | L36: 0 | M36: 2934.76 | N36: 39231.32 | O36: 0 | P36: 0 | Q36: 0 | R36: 0 | S36: 0 | T36: 0 | U36: -47.25 | V36: 0 | W36: -39231.32 | X36: -39231.32
H37: 671 | I37: 403.33 | J37: 270534.77 | K37: 137718.53 | L37: 0 | M37: 0 | N37: 408253.3 | O37: 401.9 | P37: 261949.4 | Q37: 115670.08 | R37: 0 | S37: 0 | T37: 377619.48 | U37: -1.43 | V37: -8051.58 | W37: -22582.24 | X37: -30633.82 | Y37: 52857.33715
U38: 0 | V38: 0 | W38: 0 | X38: 0
U39: 0 | V39: 0 | W39: 0 | X39: 0
G40: Regional- og lokalkørsel i alt | I40: 11733.93 | J40: 7490023.8 | K40: 2954271.71 | L40: 84472.29 | M40: 517684.67 | N40: 11046452.47 | O40: 13562.86 | P40: 8414008.01 | Q40: 2334105.91 | R40: 383313.93 | S40: 0 | T40: 11131427.85 | U40: 1828.93 | V40: -321088.97 | W40: 406064.35 | X40: 84975.38 | Y40: =SUM(Y25:Y37) -> 4337326.078
G42: Natbus- og arrangementskørsel | H42: 851 | I42: 27.37 | J42: 16135.76 | K42: 4887.63 | L42: 0 | M42: 1699.85 | N42: 22723.23 | O42: 30.3 | P42: 17421.29 | Q42: 2927.35 | R42: 0 | S42: 0 | T42: 20348.64 | U42: 2.93 | V42: -875.36 | W42: -1499.23 | X42: -2374.59 | Y42: 716.3572906
H43: 852 | I43: 15.72 | J43: 9266.08 | K43: 2806.76 | L43: 0 | M43: 976.15 | N43: 13048.98 | O43: 17.4 | P43: 10004.31 | Q43: 3154.51 | R43: 0 | S43: 0 | T43: 13158.82 | U43: 1.68 | V43: -566.07 | W43: 675.91 | X43: 109.84 | Y43: 130.4270619
G46: Natbus- og arrangementskørsel i alt | I46: 43.09 | J46: 25401.84 | K46: 7694.39 | L46: 0 | M46: 2676 | N46: 35772.21 | O46: 47.7 | P46: 27425.6 | Q46: 6081.86 | R46: 0 | S46: 0 | T46: 33507.46 | U46: 4.61 | V46: -1441.43 | W46: -823.32 | X46: -2264.75 | Y46: =SUM(Y42:Y43) -> 846.7843525
G48: Ikke rutefordelt | U48: 0 | V48: 0 | W48: 0 | X48: 0 | Y48: 138814.74
G49: Faste køretøjsomkostninger | H49: IR | I49: 0 | J49: 0 | K49: 981336.01 | L49: 0 | M49: 0 | N49: 981336.01 | O49: 0 | P49: 0 | Q49: 743836.43 | R49: 0 | S49: 0 | T49: 743836.43 | U49: 0 | V49: -31652.31 | W49: -205847.27 | X49: -237499.58
G50: Administrationstillæg | H50: IR | I50: 0 | J50: 0 | K50: 0 | L50: 0 | M50: 2511839.95 | N50: 2511839.95 | O50: 0 | P50: 0 | Q50: 0 | R50: 0 | S50: 2917302 | T50: 2917302 | U50: 0 | V50: -125497.48 | W50: 530959.53 | X50: 405462.05
G51: Omkørsel | H51: IR | I51: 0 | J51: 0 | K51: 0 | L51: 0 | M51: 0 | N51: 0 | O51: 0 | P51: 0 | Q51: 0 | R51: 1787.51 | S51: 0 | T51: 1787.51 | U51: 0 | V51: -38.11 | W51: 1825.62 | X51: 1787.51
G52: Bonus | H52: IR | I52: 0 | J52: 0 | K52: 0 | L52: 0 | M52: 1326826 | N52: 1326826 | O52: 0 | P52: 0 | Q52: 0 | R52: 0 | S52: 718715.75 | T52: 718715.75 | U52: 0 | V52: -30917.96 | W52: -577192.29 | X52: -608110.25
U53: 0 | V53: 0 | W53: 0 | X53: 0
G54: Ikke rutefordelt i alt | I54: 0 | J54: 0 | K54: 981336.01 | L54: 0 | M54: 3838665.95 | N54: 4820001.96 | O54: 0 | P54: 0 | Q54: 743836.43 | R54: 1787.51 | S54: 3636017.75 | T54: 4381641.69 | U54: 0 | V54: -188105.86 | W54: -250254.41 | X54: -438360.27 | Y54: =+Y48 -> 138814.74
G56: Dublering med B-kontrakt | H56: 104 | I56: 0 | J56: 24000 | K56: 0 | L56: 0 | M56: 0 | N56: 24000 | O56: 0 | P56: 16557.43 | Q56: 0 | R56: 0 | S56: 0 | T56: 16557.43 | U56: 0 | V56: -353.04 | W56: -7089.53 | X56: -7442.57
U57: 0 | V57: 0 | W57: 0 | X57: 0
G59: Dublering med B-kontrakt i alt | I59: 0 | J59: 24000 | K59: 0 | L59: 0 | M59: 0 | N59: 24000 | O59: 0 | P59: 16557.43 | Q59: 0 | R59: 0 | S59: 0 | T59: 16557.43 | U59: 0 | V59: -353.04 | W59: -7089.53 | X59: -7442.57
G61: Skolekørsel | H61: 620 | I61: 443.8 | J61: 569235.78 | K61: 0 | L61: 0 | M61: 0 | N61: 569235.78 | O61: 467.43 | P61: 549540.23 | Q61: 0 | R61: 0 | S61: 0 | T61: 549540.23 | U61: 23.63 | V61: -11717.28 | W61: -7978.27 | X61: -19695.55
H62: 621 | I62: 599.03 | J62: 683072.04 | K62: 0 | L62: 0 | M62: 0 | N62: 683072.04 | O62: 637.76 | P62: 695812.12 | Q62: 0 | R62: 0 | S62: 0 | T62: 695812.12 | U62: 38.73 | V62: -14836.08 | W62: 27576.16 | X62: 12740.08
H63: 622 | I63: 601.02 | J63: 684531.48 | K63: 0 | L63: 0 | M63: 0 | N63: 684531.48 | O63: 635.44 | P63: 697813.67 | Q63: 0 | R63: 0 | S63: 0 | T63: 697813.67 | U63: 34.42 | V63: -14878.76 | W63: 28160.95 | X63: 13282.19
H64: 623 | I64: 816.95 | J64: 1086661.46 | K64: 0 | L64: 0 | M64: 0 | N64: 1086661.46 | O64: 1000.02 | P64: 1147312.71 | Q64: 0 | R64: 0 | S64: 0 | T64: 1147312.71 | U64: 183.07 | V64: -24462.95 | W64: 85114.2 | X64: 60651.25
H65: 624 | I65: 532.36 | J65: 634180.82 | K65: 0 | L65: 0 | M65: 0 | N65: 634180.82 | O65: 560.08 | P65: 630948.22 | Q65: 0 | R65: 0 | S65: 0 | T65: 630948.22 | U65: 27.72 | V65: -13453.05 | W65: 10220.45 | X65: -3232.6
H66: 625 | I66: 559.23 | J66: 653883.25 | K66: 0 | L66: 0 | M66: 0 | N66: 653883.25 | O66: 589.8 | P66: 657363.96 | Q66: 0 | R66: 0 | S66: 0 | T66: 657363.96 | U66: 30.57 | V66: -14016.29 | W66: 17497 | X66: 3480.71
H67: 630 | I67: 649.78 | J67: 720287.74 | K67: 0 | L67: 0 | M67: 0 | N67: 720287.74 | O67: 698.01 | P67: 746716.71 | Q67: 0 | R67: 0 | S67: 0 | T67: 746716.71 | U67: 48.23 | V67: -15921.46 | W67: 42350.43 | X67: 26428.97
H68: 631 | I68: 466.68 | J68: 586019.33 | K68: 0 | L68: 0 | M68: 0 | N68: 586019.33 | O68: 710.82 | P68: 763744.44 | Q68: 0 | R68: 0 | S68: 0 | T68: 763744.44 | U68: 244.14 | V68: -16284.53 | W68: 194009.64 | X68: 177725.11
H69: 633 | I69: 593.06 | J69: 678693.72 | K69: 0 | L69: 0 | M69: 0 | N69: 678693.72 | O69: 508.66 | P69: 583218.98 | Q69: 0 | R69: 0 | S69: 0 | T69: 583218.98 | U69: -84.4 | V69: -12435.37 | W69: -83039.37 | X69: -95474.74
H70: 634 | I70: 486.59 | J70: 600613.72 | K70: 0 | L70: 0 | M70: 0 | N70: 600613.72 | O70: 513.61 | P70: 590380.3 | Q70: 0 | R70: 0 | S70: 0 | T70: 590380.3 | U70: 27.02 | V70: -12588.07 | W70: 2354.65 | X70: -10233.42
H71: 635 | I71: 513.45 | J71: 620316.15 | K71: 0 | L71: 0 | M71: 0 | N71: 620316.15 | O71: 591.83 | P71: 668272.3 | Q71: 0 | R71: 0 | S71: 0 | T71: 668272.3 | U71: 78.38 | V71: -14248.88 | W71: 62205.03 | X71: 47956.15
H72: 670 | I72: 363.2 | J72: 510128.49 | K72: 0 | L72: 0 | M72: 0 | N72: 510128.49 | O72: 488.23 | P72: 563439.46 | Q72: 0 | R72: 0 | S72: 0 | T72: 563439.46 | U72: 125.03 | V72: -12013.64 | W72: 65324.61 | X72: 53310.97
H73: 671 | I73: 0 | J73: 0 | K73: 0 | L73: 0 | M73: 0 | N73: 0 | O73: 123.72 | P73: 131336.61 | Q73: 0 | R73: 0 | S73: 0 | T73: 131336.61 | U73: 123.72 | V73: -2800.35 | W73: 134136.96 | X73: 131336.61
H74: 672 | I74: 903.52 | J74: 1150147.06 | K74: 0 | L74: 0 | M74: 0 | N74: 1150147.06 | O74: 905.99 | P74: 1065396.14 | Q74: 0 | R74: 0 | S74: 0 | T74: 1065396.14 | U74: 2.47 | V74: -22716.34 | W74: -62034.58 | X74: -84750.92
H75: 673 | I75: 636.84 | J75: 710801.38 | K75: 0 | L75: 0 | M75: 0 | N75: 710801.38 | O75: 638.82 | P75: 694547.75 | Q75: 0 | R75: 0 | S75: 0 | T75: 694547.75 | U75: 1.98 | V75: -14809.12 | W75: -1444.51 | X75: -16253.63
H76: 674 | I76: 367.18 | J76: 513047.36 | K76: 0 | L76: 0 | M76: 0 | N76: 513047.36 | O76: 422.58 | P76: 516595.5 | Q76: 0 | R76: 0 | S76: 0 | T76: 516595.5 | U76: 55.4 | V76: -11014.83 | W76: 14562.97 | X76: 3548.14
H77: Bod | I77: 0 | J77: 0 | K77: 0 | L77: 0 | M77: 0 | N77: 0 | O77: 0 | P77: 0 | Q77: 0 | R77: 0 | S77: -30500 | T77: -30500 | U77: 0 | V77: 650.32 | W77: -31150.32 | X77: -30500
U78: 0 | V78: 0 | W78: 0 | X78: 0
G79: Skolekørsel i alt | I79: 8532.69 | J79: 10401619.78 | K79: 0 | L79: 0 | M79: 0 | N79: 10401619.78 | O79: 9492.8 | P79: 10702439.1 | Q79: 0 | R79: 0 | S79: -30500 | T79: 10671939.1 | U79: 960.11 | V79: -227546.68 | W79: 497866 | X79: 270319.32
G81: Total, Horsens Kommune | I81: 67623.72 | J81: 46535269.47 | K81: 7723104.23 | L81: 84472.29 | M81: 4361488.03 | N81: 58704334.02 | O81: 70257.75 | P81: 46760111.01 | Q81: 7613760.28 | R81: 414277.89 | S81: 3605517.75 | T81: 58393666.93 | U81: 2634.03 | V81: -2121107.42 | W81: 1810440.33 | X81: -310667.09 | Y81: =Y23+Y40+Y46+Y54+Y59+Y79 -> 12678653.09
G82: Udgifter til skolekørsel er for nuværende ikke opdelt i timeafhængige og busafhængige omkostninger. Alle udgifter står således angivet som timeafhængige.

Sheet IKB
G3: =titel -> Regnskab 2025
G7: Ikast-Brande Kommune | I7: Budget 2025 (2025B-1) | O7: Regnskab 2025 (2025R) | U7: Afvigelse (2025R-2025B-1)
G8: Rutetype | H8: Rute | I8: Timer | J8: Timeafhængige omkostninger | K8: Busafhængige omkostninger | L8: Ekstrakørsel | M8: Andet | N8: Udgifter i alt | O8: Timer | P8: Timeafhængige omkostninger | Q8: Busafhængige omkostninger | R8: Ekstrakørsel | S8: Andet | T8: Udgifter i alt | U8: Timer | V8: Anslået indekseffekt | W8: Anden afvigelse | X8: Udgifter i alt
G9: Bybus | H9: 1 IK | I9: 613.73 | J9: 313595.81 | K9: 153766.84 | L9: 0 | M9: 0 | N9: 467362.65 | O9: 606.4 | P9: 363415.27 | Q9: 106412.82 | R9: 0 | S9: 0 | T9: 469828.09 | U9: -7.33 | V9: -5403.36 | W9: 7868.8 | X9: 2465.44
H10: 2 IK | I10: 819.65 | J10: 418788.94 | K10: 204701.06 | L10: 0 | M10: 0 | N10: 623490 | O10: 811.7 | P10: 487157.41 | Q10: 142222.15 | R10: 0 | S10: 0 | T10: 629379.56 | U10: -7.95 | V10: -7240.27 | W10: 13129.83 | X10: 5889.56
H11: 2B IK | I11: 443.57 | J11: 226607.97 | K11: 108593.89 | L11: 0 | M11: 0 | N11: 335201.86 | O11: 438.47 | P11: 263589.13 | Q11: 76374.61 | R11: 0 | S11: 0 | T11: 339963.74 | U11: -5.1 | V11: -3848.78 | W11: 8610.66 | X11: 4761.88
U12: 0 | V12: 0 | W12: 0 | X12: 0
U13: 0 | V13: 0 | W13: 0 | X13: 0
G14: Bybus i alt | I14: 1876.95 | J14: 958992.72 | K14: 467061.79 | L14: 0 | M14: 0 | N14: 1426054.51 | O14: 1856.57 | P14: 1114161.81 | Q14: 325009.58 | R14: 0 | S14: 0 | T14: 1439171.39 | U14: -20.38 | V14: -16492.41 | W14: 29609.29 | X14: 13116.88
G16: Regional- og lokalkørsel | H16: 171 | I16: 1141.6 | J16: 603241.83 | K16: 228343.47 | L16: 0 | M16: 0 | N16: 831585.31 | O16: 1004.17 | P16: 588117.07 | Q16: 186458.41 | R16: 0 | S16: 0 | T16: 774575.48 | U16: -137.43 | V16: -10087.57 | W16: -46922.26 | X16: -57009.83
H17: 172 | I17: 1460.58 | J17: 830335.04 | K17: 238686.55 | L17: 0 | M17: 0 | N17: 1069021.58 | O17: 1328.5 | P17: 809529.17 | Q17: 191444.31 | R17: 0 | S17: 0 | T17: 1000973.48 | U17: -132.08 | V17: -13021.75 | W17: -55026.35 | X17: -68048.1
H18: 182 | I18: 1733.86 | J18: 1118392.39 | K18: 308022.23 | L18: 0 | M18: 0 | N18: 1426414.62 | O18: 1510.47 | P18: 992067.62 | Q18: 274722.72 | R18: 0 | S18: 0 | T18: 1266790.34 | U18: -223.39 | V18: -17181.52 | W18: -142442.76 | X18: -159624.28
H19: 189 | I19: 940.14 | J19: 683070.12 | K19: 140996.1 | L19: 0 | M19: 0 | N19: 824066.23 | O19: 894.29 | P19: 630013.95 | Q19: 112456.43 | R19: 0 | S19: 0 | T19: 742470.38 | U19: -45.85 | V19: -9837.93 | W19: -71757.92 | X19: -81595.85
H20: 190 | I20: 2710.81 | J20: 1958675.16 | K20: 337560.22 | L20: 0 | M20: 0 | N20: 2296235.38 | O20: 2455.58 | P20: 1723354.68 | Q20: 294688.51 | R20: 106052.74 | S20: 0 | T20: 2124095.93 | U20: -255.23 | V20: -28287.7 | W20: -143851.75 | X20: -172139.45
H21: 191 | I21: 1102.23 | J21: 785826.5 | K21: 124647.18 | L21: 0 | M21: 0 | N21: 910473.68 | O21: 597.07 | P21: 412868.25 | Q21: 59963.8 | R21: 0 | S21: 0 | T21: 472832.05 | U21: -505.16 | V21: -10081.7 | W21: -427559.93 | X21: -437641.63
U22: 0 | V22: 0 | W22: 0 | X22: 0
U23: 0 | V23: 0 | W23: 0 | X23: 0
G24: Regional- og lokalkørsel i alt | I24: 9089.22 | J24: 5979541.04 | K24: 1378255.75 | L24: 0 | M24: 0 | N24: 7357796.8 | O24: 7790.08 | P24: 5155950.74 | Q24: 1119734.18 | R24: 106052.74 | S24: 0 | T24: 6381737.66 | U24: -1299.14 | V24: -88498.17 | W24: -887560.97 | X24: -976059.14
G26: Ikke rutefordelt | U26: 0 | V26: 0 | W26: 0 | X26: 0
G27: Faste køretøjsomkostninger | H27: IR | I27: 0 | J27: 0 | K27: 0 | L27: 0 | M27: 0 | N27: 0 | O27: 0 | P27: 0 | Q27: 96476.73 | R27: 0 | S27: 0 | T27: 96476.73 | U27: 0 | V27: -273.31 | W27: 96750.04 | X27: 96476.73
G28: Administrationstillæg | H28: IR | I28: 0 | J28: 0 | K28: 0 | L28: 0 | M28: 0 | N28: 0 | O28: 0 | P28: 0 | Q28: 0 | R28: 0 | S28: 215750.65 | T28: 215750.65 | U28: 0 | V28: -611.19 | W28: 216361.84 | X28: 215750.65
G29: Andre udgifter | I29: 0 | J29: 0 | K29: 0 | L29: 0 | M29: 0 | N29: 0 | O29: 0 | P29: 0 | Q29: 0 | R29: 0 | S29: 57827.23 | T29: 57827.23 | U29: 0 | V29: -1232.99 | W29: 59060.22 | X29: 57827.23
U30: 0 | V30: 0 | W30: 0 | X30: 0
G31: Ikke rutefordelt i alt | I31: 0 | J31: 0 | K31: 0 | L31: 0 | M31: 0 | N31: 0 | O31: 0 | P31: 0 | Q31: 96476.73 | R31: 0 | S31: 273577.88 | T31: 370054.61 | U31: 0 | V31: -2117.49 | W31: 372172.1 | X31: 370054.61
G33: Skolekørsel | H33: 170 | I33: 791.81 | J33: 614154.12 | K33: 0 | L33: 0 | M33: 0 | N33: 614154.12 | O33: 784.56 | P33: 692868.9 | Q33: 0 | R33: 0 | S33: 0 | T33: 692868.9 | U33: -7.25 | V33: -14773.33 | W33: 93488.11 | X33: 78714.78
H34: 173 | I34: 818.69 | J34: 674165.15 | K34: 0 | L34: 0 | M34: 0 | N34: 674165.15 | O34: 729.97 | P34: 683017.25 | Q34: 0 | R34: 0 | S34: 0 | T34: 683017.25 | U34: -88.72 | V34: -14563.27 | W34: 23415.37 | X34: 8852.1
H35: 174 | I35: 582.02 | J35: 594561.14 | K35: 0 | L35: 0 | M35: 0 | N35: 594561.14 | O35: 562.69 | P35: 610737.75 | Q35: 0 | R35: 0 | S35: 0 | T35: 610737.75 | U35: -19.33 | V35: -13022.13 | W35: 29198.74 | X35: 16176.61
H36: 175 | I36: 566.12 | J36: 589211.08 | K36: 0 | L36: 0 | M36: 0 | N36: 589211.08 | O36: 577.58 | P36: 622046.62 | Q36: 0 | R36: 0 | S36: 0 | T36: 622046.62 | U36: 11.46 | V36: -13263.25 | W36: 46098.79 | X36: 32835.54
H37: 176 | I37: 653.9 | J37: 618737.79 | K37: 0 | L37: 0 | M37: 0 | N37: 618737.79 | O37: 728.63 | P37: 718920.62 | Q37: 0 | R37: 0 | S37: 0 | T37: 718920.62 | U37: 74.73 | V37: -15328.79 | W37: 115511.62 | X37: 100182.83
H38: 180 | I38: 739.79 | J38: 647627.29 | K38: 0 | L38: 0 | M38: 0 | N38: 647627.29 | O38: 622.45 | P38: 626792.65 | Q38: 0 | R38: 0 | S38: 0 | T38: 626792.65 | U38: -117.34 | V38: -13364.45 | W38: -7470.19 | X38: -20834.64
H39: 181 | I39: 652.27 | J39: 576201.06 | K39: 0 | L39: 0 | M39: 0 | N39: 576201.06 | O39: 679.07 | P39: 660056.76 | Q39: 0 | R39: 0 | S39: 0 | T39: 660056.76 | U39: 26.8 | V39: -14073.7 | W39: 97929.4 | X39: 83855.7
H40: 184 | I40: 518.01 | J40: 539684.8 | K40: 0 | L40: 0 | M40: 0 | N40: 539684.8 | O40: 523.32 | P40: 579784.56 | Q40: 0 | R40: 0 | S40: 0 | T40: 579784.56 | U40: 5.31 | V40: -12362.14 | W40: 52461.9 | X40: 40099.76
H41: 185 | I41: 711.38 | J41: 592279.12 | K41: 0 | L41: 0 | M41: 0 | N41: 592279.12 | O41: 686.78 | P41: 650419.33 | Q41: 0 | R41: 0 | S41: 0 | T41: 650419.33 | U41: -24.6 | V41: -13868.22 | W41: 72008.43 | X41: 58140.21
H42: 192 | I42: 922.18 | J42: 697896.31 | K42: 0 | L42: 0 | M42: 0 | N42: 697896.31 | O42: 913.83 | P42: 784454.92 | Q42: 0 | R42: 0 | S42: 0 | T42: 784454.92 | U42: -8.35 | V42: -16726.12 | W42: 103284.73 | X42: 86558.61
H43: 193 | I43: 659 | J43: 612537.19 | K43: 0 | L43: 0 | M43: 0 | N43: 612537.19 | O43: 360.08 | P43: 339883.54 | Q43: 0 | R43: 0 | S43: 0 | T43: 339883.54 | U43: -298.92 | V43: -7246.98 | W43: -265406.67 | X43: -272653.65
H44: 195 | I44: 782.33 | J44: 652537.83 | K44: 0 | L44: 0 | M44: 0 | N44: 652537.83 | O44: 761.5 | P44: 709104.31 | Q44: 0 | R44: 0 | S44: 0 | T44: 709104.31 | U44: -20.83 | V44: -15119.5 | W44: 71685.98 | X44: 56566.48
H45: 196 | I45: 943.33 | J45: 704756.63 | K45: 0 | L45: 0 | M45: 0 | N45: 704756.63 | O45: 854.48 | P45: 742003.95 | Q45: 0 | R45: 0 | S45: 0 | T45: 742003.95 | U45: -88.85 | V45: -15820.98 | W45: 53068.3 | X45: 37247.32
H46: Bod | I46: 0 | J46: 0 | K46: 0 | L46: 0 | M46: 0 | N46: 0 | O46: 0 | P46: 0 | Q46: 0 | R46: 0 | S46: -20000 | T46: -20000 | U46: 0 | V46: 426.44 | W46: -20426.44 | X46: -20000
U47: 0 | V47: 0 | W47: 0 | X47: 0
U48: 0 | V48: 0 | W48: 0 | X48: 0
G49: Skolekørsel i alt | I49: 9340.83 | J49: 8114349.51 | K49: 0 | L49: 0 | M49: 0 | N49: 8114349.51 | O49: 8784.94 | P49: 8420091.16 | Q49: 0 | R49: 0 | S49: -20000 | T49: 8400091.16 | U49: -555.89 | V49: -179106.42 | W49: 464848.07 | X49: 285741.65
G51: Total, Ikast-Brande Kommune | I51: 20307 | J51: 15052883.27 | K51: 1845317.54 | L51: 0 | M51: 0 | N51: 16898200.82 | O51: 18431.59 | P51: 14690203.71 | Q51: 1541220.49 | R51: 106052.74 | S51: 253577.88 | T51: 16591054.82 | U51: -1875.41 | V51: -286214.49 | W51: -20931.51 | X51: -307146
G52: Udgifter til skolekørsel er for nuværende ikke opdelt i timeafhængige og busafhængige omkostninger. Alle udgifter står således angivet som timeafhængige.

Sheet LEM
G3: =titel -> Regnskab 2025
G7: Lemvig Kommune | I7: Budget 2025 (2025B-1) | M7: Regnskab 2025 (2025R) | Q7: Afvigelse (2025R-2025B-1)
G8: Rutetype | H8: Rute | I8: Timer | J8: Timeafhængige omkostninger | K8: Busafhængige omkostninger | L8: Udgifter i alt | M8: Timer | N8: Timeafhængige omkostninger | O8: Busafhængige omkostninger | P8: Udgifter i alt | Q8: Timer | R8: Anslået indekseffekt | S8: Anden afvigelse | T8: Udgifter i alt
G9: Skolekørsel | H9: 481 | I9: 430.95 | J9: 464583.74 | K9: 0 | L9: 464583.74 | M9: 433.43 | N9: 509716.56 | O9: 0 | P9: 509716.56 | Q9: 2.48 | R9: -10868.16 | S9: 56000.98 | T9: 45132.82
H10: 482 | I10: 465.94 | J10: 493247.76 | K10: 0 | L10: 493247.76 | M10: 439.45 | N10: 507910.95 | O10: 0 | P10: 507910.95 | Q10: -26.49 | R10: -10829.66 | S10: 25492.85 | T10: 14663.19
H11: 483 | I11: 396.95 | J11: 436738.7 | K11: 0 | L11: 436738.7 | M11: 371.43 | N11: 436921.65 | O11: 0 | P11: 436921.65 | Q11: -25.52 | R11: -9316.02 | S11: 9498.97 | T11: 182.95
H12: 484 | I12: 362.96 | J12: 408893.66 | K12: 0 | L12: 408893.66 | M12: 346.28 | N12: 415970.71 | O12: 0 | P12: 415970.71 | Q12: -16.68 | R12: -8869.31 | S12: 15946.36 | T12: 7077.05
H13: 485 | I13: 595.93 | J13: 599714.1 | K13: 0 | L13: 599714.1 | M13: 564.42 | N13: 635062.12 | O13: 0 | P13: 635062.12 | Q13: -31.51 | R13: -13540.77 | S13: 48888.79 | T13: 35348.02
H14: 486 | I14: 371.96 | J14: 416264.41 | K14: 0 | L14: 416264.41 | M14: 330.8 | N14: 391384.5 | O14: 0 | P14: 391384.5 | Q14: -41.16 | R14: -8345.09 | S14: -16534.82 | T14: -24879.91
H15: 487 | I15: 401.95 | J15: 440837.54 | K15: 0 | L15: 440837.54 | M15: 369.34 | N15: 437406.33 | O15: 0 | P15: 437406.33 | Q15: -32.61 | R15: -9326.37 | S15: 5895.16 | T15: -3431.21
H16: 489 | I16: 316.96 | J16: 371220.95 | K16: 0 | L16: 371220.95 | M16: 300.84 | N16: 368239.71 | O16: 0 | P16: 368239.71 | Q16: -16.12 | R16: -7851.59 | S16: 4870.35 | T16: -2981.24
H17: 490 | I17: 216.97 | J17: 289323.77 | K17: 0 | L17: 289323.77 | M17: 220.71 | N17: 289158.93 | O17: 0 | P17: 289158.93 | Q17: 3.74 | R17: -6165.44 | S17: 6000.6 | T17: -164.84
H18: 491 | I18: 728.91 | J18: 708637.36 | K18: 0 | L18: 708637.36 | M18: 698.83 | N18: 769493.27 | O18: 0 | P18: 769493.27 | Q18: -30.08 | R18: -16407.1 | S18: 77263.01 | T18: 60855.91
H19: 496 | I19: 710.91 | J19: 693895.86 | K19: 0 | L19: 693895.86 | M19: 708.91 | N19: 781891.47 | O19: 0 | P19: 781891.47 | Q19: -2 | R19: -16671.46 | S19: 104667.07 | T19: 87995.61
H20: 497 | I20: 309.96 | J20: 365488.15 | K20: 0 | L20: 365488.15 | M20: 293.67 | N20: 361097.18 | O20: 0 | P20: 361097.18 | Q20: -16.29 | R20: -7699.3 | S20: 3308.33 | T20: -4390.97
H21: 498 | I21: 456.95 | J21: 485877.01 | K21: 0 | L21: 485877.01 | M21: 437.68 | N21: 508274.91 | O21: 0 | P21: 508274.91 | Q21: -19.27 | R21: -10837.42 | S21: 33235.32 | T21: 22397.9
H22: 499+a | I22: 56.99 | J22: 158288.27 | K22: 0 | L22: 158288.27 | M22: 0 | N22: 0 | O22: 0 | P22: 0 | Q22: -56.99 | R22: 0 | S22: -158288.27 | T22: -158288.27
H23: 499a | I23: 0 | J23: 0 | K23: 0 | L23: 0 | M23: 54.09 | N23: 118124.69 | O23: 0 | P23: 118124.69 | Q23: 54.09 | R23: -2518.65 | S23: 120643.34 | T23: 118124.69
H24: Bod | I24: 0 | J24: 0 | K24: 0 | L24: 0 | M24: 0 | N24: 0 | O24: 0 | P24: -5500 | Q24: 0 | R24: 117.27 | S24: -5617.27 | T24: -5500
Q25: 0 | R25: 0 | S25: 0 | T25: 0
Q26: 0 | R26: 0 | S26: 0 | T26: 0
G27: Skolekørsel i alt | I27: 5824.29 | J27: 6333011.28 | K27: 0 | L27: 6333011.28 | M27: 5569.88 | N27: 6530652.98 | O27: 0 | P27: 6525152.98 | Q27: -254.41 | R27: -139129.07 | S27: 331270.77 | T27: 192141.7
G29: Total, Lemvig Kommune | I29: 5824.29 | J29: 6333011.28 | K29: 0 | L29: 6333011.28 | M29: 5569.88 | N29: 6530652.98 | O29: 0 | P29: 6525152.98 | Q29: -254.41 | R29: -139129.07 | S29: 331270.77 | T29: 192141.7
G30: Udgifter til skolekørsel er for nuværende ikke opdelt i timeafhængige og busafhængige omkostninger. Alle udgifter står således angivet som timeafhængige.

Sheet NOR
G3: =titel -> Regnskab 2025
G7: Norddjurs Kommune | I7: Budget 2025 (2025B-1) | N7: Regnskab 2025 (2025R) | T7: Afvigelse (2025R-2025B-1) | X7: 2025R
G8: Rutetype | H8: Rute | I8: Timer | J8: Timeafhængige omkostninger | K8: Busafhængige omkostninger | L8: Andet | M8: Udgifter i alt | N8: Timer | O8: Timeafhængige omkostninger | P8: Busafhængige omkostninger | Q8: Ekstrakørsel | R8: Andet | S8: Udgifter i alt | T8: Timer | U8: Anslået indekseffekt | V8: Anden afvigelse | W8: Udgifter i alt | X8: Indtægter
G9: Bybus | H9: 1 GR | I9: 634.29 | J9: 423161.33 | K9: 204841.25 | L9: 0 | M9: 628002.59 | N9: 631.2 | O9: 419165.06 | P9: 273160.55 | Q9: 0 | R9: 0 | S9: 692325.61 | T9: -3.09 | U9: -29782.69 | V9: 94105.71 | W9: 64323.02 | X9: 68856.65374
H10: 2 GR | I10: 634.29 | J10: 423161.33 | K10: 204841.25 | L10: 0 | M10: 628002.59 | N10: 630.9 | O10: 419068.65 | P10: 273112.79 | Q10: 0 | R10: 0 | S10: 692181.44 | T10: -3.39 | U10: -29776.49 | V10: 93955.34 | W10: 64178.85 | X10: 236799.0915
H11: 3 GR | I11: 232.03 | J11: 154876.88 | K11: 97377.63 | L11: 0 | M11: 252254.51 | N11: 230.4 | O11: 152269.97 | P11: 107636.36 | Q11: 0 | R11: 0 | S11: 259906.33 | T11: -1.63 | U11: -11180.74 | V11: 18832.56 | W11: 7651.82 | X11: 14036.42488
H12: GR TEL | I12: 1646.69 | J12: 1098581.08 | K12: 512103.09 | L12: 0 | M12: 1610684.17 | N12: 1044 | O12: 680660.52 | P12: 323448.8 | Q12: 0 | R12: 0 | S12: 1004109.32 | T12: -602.69 | U12: -43195.11 | V12: -563379.74 | W12: -606574.85 | X12: 6233.234713
G14: Bybus i alt | I14: 3147.3 | J14: 2099780.62 | K14: 1019163.22 | L14: 0 | M14: 3118943.86 | N14: 2536.5 | O14: 1671164.2 | P14: 977358.5 | Q14: 0 | R14: 0 | S14: 2648522.7 | T14: -610.8 | U14: -113935.03 | V14: -356486.13 | W14: -470421.16 | X14: =SUM(X9:X12) -> 325925.4049
G16: Regional- og lokalkørsel | H16: 120 | I16: 917.4 | J16: 659218.47 | K16: 465865.37 | L16: 0 | M16: 1125083.83 | N16: 923.44 | O16: 649978.95 | P16: 455667.48 | Q16: 0 | R16: 0 | S16: 1105646.43 | T16: 6.04 | U16: -23574.55 | V16: 4137.15 | W16: -19437.4 | X16: 168566.197
H17: 211 | I17: 1673.84 | J17: 1157474.23 | K17: 337689.17 | L17: 0 | M17: 1495163.4 | N17: 1514.6 | O17: 1026385.46 | P17: 291359.82 | Q17: 0 | R17: 0 | S17: 1317745.28 | T17: -159.24 | U17: -28096.91 | V17: -149321.21 | W17: -177418.12 | X17: 482989.7936
H18: 213 | I18: 2289.01 | J18: 1582860.29 | K18: 762969.83 | L18: 0 | M18: 2345830.12 | N18: 2269.91 | O18: 1539653.63 | P18: 748790.58 | Q18: 0 | R18: 0 | S18: 2288444.21 | T18: -19.1 | U18: -48794.11 | V18: -8591.8 | W18: -57385.91 | X18: 181622.4415
H19: 319 | I19: 1087.99 | J19: 692212.4 | K19: 236767.7 | L19: 0 | M19: 928980.1 | N19: 1056.27 | O19: 655902.01 | P19: 339310 | Q19: 0 | R19: 0 | S19: 995212.01 | T19: -31.72 | U19: -21219.86 | V19: 87451.77 | W19: 66231.91 | X19: 83254.39291
H20: 351 | I20: 178.56 | J20: 122658.38 | K20: 30105 | L20: 0 | M20: 152763.38 | N20: 180.06 | O20: 122101.38 | P20: 59640.54 | Q20: 0 | R20: 0 | S20: 181741.92 | T20: 1.5 | U20: -3875.09 | V20: 32853.63 | W20: 28978.54 | X20: 71373.39639
H21: 352 | I21: 2506.64 | J21: 1801285.15 | K21: 939899.98 | L21: 0 | M21: 2741185.14 | N21: 2454.59 | O21: 1728030.62 | P21: 922286.76 | Q21: 0 | R21: 0 | S21: 2650317.38 | T21: -52.05 | U21: -56509.97 | V21: -34357.79 | W21: -90867.76 | X21: 249615.412
G23: Regional- og lokalkørsel i alt | I23: 8653.44 | J23: 6015708.92 | K23: 2773297.05 | L23: 0 | M23: 8789005.97 | N23: 8398.87 | O23: 5722052.05 | P23: 2817055.18 | Q23: 0 | R23: 0 | S23: 8539107.23 | T23: -254.57 | U23: -182070.49 | V23: -67828.25 | W23: -249898.74 | X23: =SUM(X16:X21) -> 1237421.633
G25: Ikke rutefordelt | T25: 0 | U25: 0 | V25: 0 | W25: 0 | X25: 93013.08578
G26: Administrationstillæg | H26: IR | I26: 0 | J26: 0 | K26: 0 | L26: 47377.11 | M26: 47377.11 | N26: 0 | O26: 0 | P26: 0 | Q26: 0 | R26: 69811.32 | S26: 69811.32 | T26: 0 | U26: -3003.17 | V26: 25437.38 | W26: 22434.21
G27: Ekstrakørsel | H27: Grp. | I27: 0 | J27: 0 | K27: 0 | L27: 0 | M27: 0 | N27: 0 | O27: 0 | P27: 0 | Q27: 4212.93 | R27: 0 | S27: 4212.93 | T27: 0 | U27: -89.83 | V27: 4302.76 | W27: 4212.93
G28: Andre udgifter | H28: IR | I28: 0 | J28: 0 | K28: 0 | L28: 0 | M28: 0 | N28: 0 | O28: 0 | P28: 0 | Q28: 0 | R28: 159435.1 | S28: 159435.1 | T28: 0 | U28: -6858.63 | V28: 166293.73 | W28: 159435.1
T30: 0 | U30: 0 | V30: 0 | W30: 0
G31: Ikke rutefordelt i alt | I31: 0 | J31: 0 | K31: 0 | L31: 47377.11 | M31: 47377.11 | N31: 0 | O31: 0 | P31: 0 | Q31: 4212.93 | R31: 229246.42 | S31: 233459.35 | T31: 0 | U31: -9951.63 | V31: 196033.87 | W31: 186082.24 | X31: =SUM(X25) -> 93013.08578
G33: Skolekørsel | H33: Ikke fordelt | I33: 0 | J33: 276000 | K33: 0 | L33: 0 | M33: 276000 | N33: 0 | O33: 0 | P33: 0 | Q33: 0 | R33: 0 | S33: 0 | T33: 0 | U33: 0 | V33: -276000 | W33: -276000
H34: Rute 1 | I34: 810.06 | J34: 820300.06 | K34: 0 | L34: 0 | M34: 820300.06 | N34: 808.96 | O34: 804235.37 | P34: 0 | Q34: 0 | R34: 0 | S34: 804235.37 | T34: -1.1 | U34: -17147.87 | V34: 1083.18 | W34: -16064.69
H35: Rute 10 | I35: 761.93 | J35: 769057.53 | K35: 0 | L35: 0 | M35: 769057.53 | N35: 790.7 | O35: 803882.49 | P35: 0 | Q35: 0 | R35: 0 | S35: 803882.49 | T35: 28.77 | U35: -17140.35 | V35: 51965.31 | W35: 34824.96
H36: Rute 11 | I36: 279.97 | J36: 282593.32 | K36: 0 | L36: 0 | M36: 282593.32 | N36: 300.98 | O36: 305979.8 | P36: 0 | Q36: 0 | R36: 0 | S36: 305979.8 | T36: 21.01 | U36: -6524.09 | V36: 29910.57 | W36: 23386.48
H37: Rute 12 | I37: 636.94 | J37: 642899.8 | K37: 0 | L37: 0 | M37: 642899.8 | N37: 420.11 | O37: 427445.7 | P37: 0 | Q37: 0 | R37: 0 | S37: 427445.7 | T37: -216.83 | U37: -9113.98 | V37: -206340.12 | W37: -215454.1
H38: Rute 13 | I38: 959.91 | J38: 968891.37 | K38: 0 | L38: 0 | M38: 968891.37 | N38: 878.74 | O38: 894168.61 | P38: 0 | Q38: 0 | R38: 0 | S38: 894168.61 | T38: -81.17 | U38: -19065.43 | V38: -55657.33 | W38: -74722.76
H39: Rute 14 | I39: 951.86 | J39: 924066.12 | K39: 0 | L39: 0 | M39: 924066.12 | N39: 1085.91 | O39: 1001022.61 | P39: 0 | Q39: 0 | R39: 0 | S39: 1001022.61 | T39: 134.05 | U39: -21343.77 | V39: 98300.26 | W39: 76956.49
H40: Rute 15 | I40: 950.2 | J40: 922850.35 | K40: 0 | L40: 0 | M40: 922850.35 | N40: 1086.22 | O40: 1001302.4 | P40: 0 | Q40: 0 | R40: 0 | S40: 1001302.4 | T40: 136.02 | U40: -21349.73 | V40: 99801.78 | W40: 78452.05
H41: Rute 16 | I41: 974.2 | J41: 940417.42 | K41: 0 | L41: 0 | M41: 940417.42 | N41: 1135.11 | O41: 1036177.64 | P41: 0 | Q41: 0 | R41: 0 | S41: 1036177.64 | T41: 160.91 | U41: -22093.34 | V41: 117853.56 | W41: 95760.22
H42: Rute 17 | I42: 1280.81 | J42: 1164795.67 | K42: 0 | L42: 0 | M42: 1164795.67 | N42: 1347.77 | O42: 1188980.65 | P42: 0 | Q42: 0 | R42: 0 | S42: 1188980.65 | T42: 66.96 | U42: -25351.39 | V42: 49536.37 | W42: 24184.98
H43: Rute 18 | I43: 965.2 | J43: 933829.77 | K43: 0 | L43: 0 | M43: 933829.77 | N43: 1108.59 | O43: 1017320.27 | P43: 0 | Q43: 0 | R43: 0 | S43: 1017320.27 | T43: 143.39 | U43: -21691.26 | V43: 105181.76 | W43: 83490.5
H44: Rute 19 | I44: 971.2 | J44: 938221.54 | K44: 0 | L44: 0 | M44: 938221.54 | N44: 1094.27 | O44: 1007046.27 | P44: 0 | Q44: 0 | R44: 0 | S44: 1007046.27 | T44: 123.07 | U44: -21472.2 | V44: 90296.93 | W44: 68824.73
H45: Rute 2 | I45: 760.06 | J45: 783706.66 | K45: 0 | L45: 0 | M45: 783706.66 | N45: 759.11 | O45: 768396.53 | P45: 0 | Q45: 0 | R45: 0 | S45: 768396.53 | T45: -0.95 | U45: -16383.72 | V45: 1073.59 | W45: -15310.13
H46: Rute 20 | I46: 973.2 | J46: 939685.46 | K46: 0 | L46: 0 | M46: 939685.46 | N46: 1105.92 | O46: 1015390.23 | P46: 0 | Q46: 0 | R46: 0 | S46: 1015390.23 | T46: 132.72 | U46: -21650.11 | V46: 97354.88 | W46: 75704.77
H47: Rute 21 | I47: 793.93 | J47: 801353.91 | K47: 0 | L47: 0 | M47: 801353.91 | N47: 813.22 | O47: 827661.55 | P47: 0 | Q47: 0 | R47: 0 | S47: 827661.55 | T47: 19.29 | U47: -17647.37 | V47: 43955.01 | W47: 26307.64
H48: Rute 22 | I48: 587.05 | J48: 657093.5 | K48: 0 | L48: 0 | M48: 657093.5 | N48: 481.55 | O48: 568848.69 | P48: 0 | Q48: 0 | R48: 0 | S48: 568848.69 | T48: -105.5 | U48: -12128.97 | V48: -76115.84 | W48: -88244.81
H49: Rute 3 | I49: 813.06 | J49: 822495.66 | K49: 0 | L49: 0 | M49: 822495.66 | N49: 851.93 | O49: 835128.25 | P49: 0 | Q49: 0 | R49: 0 | S49: 835128.25 | T49: 38.87 | U49: -17806.57 | V49: 30439.16 | W49: 12632.59
H50: Rute 4 | I50: 753.06 | J50: 778583.59 | K50: 0 | L50: 0 | M50: 778583.59 | N50: 851.73 | O50: 834985.3 | P50: 0 | Q50: 0 | R50: 0 | S50: 834985.3 | T50: 98.67 | U50: -17803.52 | V50: 74205.23 | W50: 56401.71
H51: Rute 5 | I51: 709.06 | J51: 746381.39 | K51: 0 | L51: 0 | M51: 746381.39 | N51: 722.65 | O51: 742184.23 | P51: 0 | Q51: 0 | R51: 0 | S51: 742184.23 | T51: 13.59 | U51: -15824.82 | V51: 11627.66 | W51: -4197.16
H52: Rute 6 | I52: 603.05 | J52: 668803.39 | K52: 0 | L52: 0 | M52: 668803.39 | N52: 590.78 | O52: 647377.63 | P52: 0 | Q52: 0 | R52: 0 | S52: 647377.63 | T52: -12.27 | U52: -13803.36 | V52: -7622.4 | W52: -21425.76
H53: Rute 7 | I53: 739.93 | J53: 746853.77 | K53: 0 | L53: 0 | M53: 746853.77 | N53: 751.7 | O53: 764679.29 | P53: 0 | Q53: 0 | R53: 0 | S53: 764679.29 | T53: 11.77 | U53: -16304.46 | V53: 34129.98 | W53: 17825.52
H54: Rute 8 | I54: 729.93 | J54: 736761.15 | K54: 0 | L54: 0 | M54: 736761.15 | N54: 784.6 | O54: 798474.26 | P54: 0 | Q54: 0 | R54: 0 | S54: 798474.26 | T54: 54.67 | U54: -17025.04 | V54: 78738.15 | W54: 61713.11
H55: Rute 9 | I55: 759.93 | J55: 767039 | K55: 0 | L55: 0 | M55: 767039 | N55: 443.24 | O55: 450991.16 | P55: 0 | Q55: 0 | R55: 0 | S55: 450991.16 | T55: -316.69 | U55: -9616.01 | V55: -306431.83 | W55: -316047.84
H56: Rute A | I56: 166.77 | J56: 144236.33 | K56: 0 | L56: 0 | M56: 144236.33 | N56: 164.81 | O56: 139693.55 | P56: 0 | Q56: 0 | R56: 0 | S56: 139693.55 | T56: -1.96 | U56: -2978.55 | V56: -1564.23 | W56: -4542.78
H57: Rute B | I57: 146.56 | J57: 126753.14 | K57: 0 | L57: 0 | M57: 126753.14 | N57: 145.39 | O57: 123241.86 | P57: 0 | Q57: 0 | R57: 0 | S57: 123241.86 | T57: -1.17 | U57: -2627.75 | V57: -883.53 | W57: -3511.28
H58: Rute C | I58: 173.33 | J58: 149909.07 | K58: 0 | L58: 0 | M58: 149909.07 | N58: 175.11 | O58: 148349.57 | P58: 0 | Q58: 0 | R58: 0 | S58: 148349.57 | T58: 1.78 | U58: -3163.1 | V58: 1603.6 | W58: -1559.5
H59: Rute D | I59: 121.26 | J59: 104872.76 | K59: 0 | L59: 0 | M59: 104872.76 | N59: 151.07 | O59: 128094.47 | P59: 0 | Q59: 0 | R59: 0 | S59: 128094.47 | T59: 29.81 | U59: -2731.23 | V59: 25952.94 | W59: 23221.71
H60: Rute E | I60: 77.88 | J60: 67357.3 | K60: 0 | L60: 0 | M60: 67357.3 | N60: 76.48 | O60: 64829.41 | P60: 0 | Q60: 0 | R60: 0 | S60: 64829.41 | T60: -1.4 | U60: -1382.29 | V60: -1145.6 | W60: -2527.89
H61: Rute F | I61: 193.33 | J61: 167206.27 | K61: 0 | L61: 0 | M61: 167206.27 | N61: 194.22 | O61: 164565.06 | P61: 0 | Q61: 0 | R61: 0 | S61: 164565.06 | T61: 0.89 | U61: -3508.85 | V61: 867.64 | W61: -2641.21
H62: Rute G | I62: 107.46 | J62: 92936.02 | K62: 0 | L62: 0 | M62: 92936.02 | N62: 111.77 | O62: 94750.68 | P62: 0 | Q62: 0 | R62: 0 | S62: 94750.68 | T62: 4.31 | U62: -2020.27 | V62: 3834.93 | W62: 1814.66
H63: Svømmekørsel | I63: 127.66 | J63: 114237.44 | K63: 0 | L63: 0 | M63: 114237.44 | N63: 0 | O63: 0 | P63: 0 | Q63: 0 | R63: 0 | S63: 0 | T63: -127.66 | U63: 0 | V63: -114237.44 | W63: -114237.44
T64: 0 | U64: 0 | V64: 0 | W64: 0
T65: 0 | U65: 0 | V65: 0 | W65: 0
G66: Skolekørsel i alt | I66: 18878.79 | J66: 19000188.76 | K66: 0 | L66: 0 | M66: 19000188.76 | N66: 19232.64 | O66: 18605203.53 | P66: 0 | Q66: 0 | R66: 0 | S66: 18605203.53 | T66: 353.85 | U66: -396699.4 | V66: 1714.17 | W66: -394985.23
G68: Total, Norddjurs Kommune | I68: 30679.53 | J68: 27115678.3 | K68: 3792460.27 | L68: 47377.11 | M68: 30955515.7 | N68: 30168.01 | O68: 25998419.78 | P68: 3794413.68 | Q68: 4212.93 | R68: 229246.42 | S68: 30026292.81 | T68: -511.52 | U68: -702656.55 | V68: -226566.34 | W68: -929222.89 | X68: =X14+X23+X31+X66 -> 1656360.124
G69: Udgifter til skolekørsel er for nuværende ikke opdelt i timeafhængige og busafhængige omkostninger. Alle udgifter står således angivet som timeafhængige.

Sheet NT
G3: =titel -> Regnskab 2025
G7: Region Nordjylland | I7: Budget 2025 (2025B-1) | N7: Regnskab 2025 (2025R) | S7: Afvigelse (2025R-2025B-1)
G8: Rutetype | H8: Rute | I8: Timer | J8: Timeafhængige omkostninger | K8: Busafhængige omkostninger | L8: Andet | M8: Udgifter i alt | N8: Timer | O8: Timeafhængige omkostninger | P8: Busafhængige omkostninger | Q8: Andet | R8: Udgifter i alt | S8: Timer | T8: Anslået indekseffekt | U8: Anden afvigelse | V8: Udgifter i alt
G9: Regional- og lokalkørsel | H9: 1040 | I9: 1425.8 | J9: 857159.78 | K9: 275414.31 | L9: 0 | M9: 1132574.09 | N9: 1391.95 | O9: 798816.22 | P9: 259722.85 | Q9: 0 | R9: 1058539.07 | S9: -33.85 | T9: -45536.58 | U9: -28498.44 | V9: -74035.02
H10: 230 | I10: 1429.95 | J10: 864061.63 | K10: 190986.38 | L10: 0 | M10: 1055048.01 | N10: 1351.36 | O10: 799491.3 | P10: 218030.65 | Q10: 0 | R10: 1017521.95 | S10: -78.59 | T10: -21695.56 | U10: -15830.5 | V10: -37526.06
H11: 235 | I11: 1219.91 | J11: 736502.61 | K11: 193425.41 | L11: 0 | M11: 929928.02 | N11: 1277.61 | O11: 756902.31 | P11: 210902.44 | Q11: 0 | R11: 967804.75 | S11: 57.7 | T11: -20635.5 | U11: 58512.23 | V11: 37876.73
H12: 237 | I12: 1609.44 | J12: 969204.96 | K12: 194896.95 | L12: 0 | M12: 1164101.91 | N12: 1587.66 | O12: 938970.37 | P12: 210224.32 | Q12: 0 | R12: 1149194.69 | S12: -21.78 | T12: -24503.08 | U12: 9595.86 | V12: -14907.22
H13: 61 | I13: 6047.27 | J13: 3894885.39 | K13: 675595.52 | L13: 0 | M13: 4570480.91 | N13: 5981.95 | O13: 3835890.07 | P13: 1010587.97 | Q13: 0 | R13: 4846478.04 | S13: -65.32 | T13: -23941.67 | U13: 299938.8 | V13: 275997.13
H14: 64 | I14: 1548.37 | J14: 922969.18 | K14: 307757.57 | L14: 59729.8 | M14: 1290456.55 | N14: 1549.74 | O14: 891925.04 | P14: 425757.31 | Q14: 0 | R14: 1317682.35 | S14: 1.37 | T14: -34813.34 | U14: 62039.14 | V14: 27225.8
S15: 0 | T15: 0 | U15: 0 | V15: 0
S16: 0 | T16: 0 | U16: 0 | V16: 0
G17: Regional- og lokalkørsel i alt | I17: 13280.74 | J17: 8244783.55 | K17: 1838076.14 | L17: 59729.8 | M17: 10142589.49 | N17: 13140.27 | O17: 8021995.31 | P17: 2335225.54 | Q17: 0 | R17: 10357220.85 | S17: -140.47 | T17: -171125.73 | U17: 385757.09 | V17: 214631.36
G19: Natbus- og arrangementskørsel | H19: 840 | I19: 5.39 | J19: 3257.16 | K19: 1217.94 | L19: 0 | M19: 4475.09 | N19: 5.7 | O19: 3310.95 | P19: 888.76 | Q19: 0 | R19: 4199.71 | S19: 0.31 | T19: -180.67 | U19: -94.71 | V19: -275.38
S20: 0 | T20: 0 | U20: 0 | V20: 0
G21: Natbus- og arrangementskørsel i alt | I21: 5.39 | J21: 3257.16 | K21: 1217.94 | L21: 0 | M21: 4475.09 | N21: 5.7 | O21: 3310.95 | P21: 888.76 | Q21: 0 | R21: 4199.71 | S21: 0.31 | T21: -180.67 | U21: -94.71 | V21: -275.38
G23: Ikke rutefordelt | S23: 0 | T23: 0 | U23: 0 | V23: 0
G24: Faste køretøjsomkostninger | H24: IR | I24: 0 | J24: 0 | K24: 0 | L24: 0 | M24: 0 | N24: 0 | O24: 0 | P24: 281278.4 | Q24: 0 | R24: 281278.4 | S24: 0 | T24: -7307.56 | U24: 288585.96 | V24: 281278.4
G25: Administrationstillæg | H25: IR | I25: 0 | J25: 0 | K25: 0 | L25: 116950.86 | M25: 116950.86 | N25: 0 | O25: 0 | P25: 0 | Q25: 180791.3 | R25: 180791.3 | S25: 0 | T25: -6664.52 | U25: 70504.96 | V25: 63840.44
G26: Bonus | H26: IR | I26: 0 | J26: 0 | K26: 0 | L26: 180686.52 | M26: 180686.52 | N26: 0 | O26: 0 | P26: 0 | Q26: 182068.29 | R26: 182068.29 | S26: 0 | T26: -6576.34 | U26: 7958.11 | V26: 1381.77
S27: 0 | T27: 0 | U27: 0 | V27: 0
S28: 0 | T28: 0 | U28: 0 | V28: 0
G29: Ikke rutefordelt i alt | I29: 0 | J29: 0 | K29: 0 | L29: 297637.38 | M29: 297637.38 | N29: 0 | O29: 0 | P29: 281278.4 | Q29: 362859.59 | R29: 644137.99 | S29: 0 | T29: -20548.42 | U29: 367049.03 | V29: 346500.61
G31: Total, Region Nordjylland | I31: 13286.13 | J31: 8248040.71 | K31: 1839294.08 | L31: 357367.18 | M31: 10444701.96 | N31: 13145.97 | O31: 8025306.26 | P31: 2617392.7 | Q31: 362859.59 | R31: 11005558.55 | S31: -140.16 | T31: -191854.82 | U31: 752711.41 | V31: 560856.59

Sheet ODD
G3: =titel -> Regnskab 2025
G7: Odder Kommune | I7: Budget 2025 (2025B-1) | O7: Regnskab 2025 (2025R) | U7: Afvigelse (2025R-2025B-1) | Y7: 2025R
G8: Rutetype | H8: Rute | I8: Timer | J8: Timeafhængige omkostninger | K8: Busafhængige omkostninger | L8: Ekstrakørsel | M8: Andet | N8: Udgifter i alt | O8: Timer | P8: Timeafhængige omkostninger | Q8: Busafhængige omkostninger | R8: Ekstrakørsel | S8: Andet | T8: Udgifter i alt | U8: Timer | V8: Anslået indekseffekt | W8: Anden afvigelse | X8: Udgifter i alt | Y8: Indtægter
G9: Bybus | H9: 1 OD | I9: 677.9 | J9: 387998.39 | K9: 143344.03 | L9: 0 | M9: 0 | N9: 531342.42 | O9: 944.3 | P9: 524934.86 | Q9: 177440.4 | R9: 0 | S9: 0 | T9: 702375.26 | U9: 266.4 | V9: -30215.01 | W9: 201247.85 | X9: 171032.84 | Y9: 209558.784
H10: 2 OD | I10: 326.4 | J10: 186223.94 | K10: 63645.82 | L10: 0 | M10: 0 | N10: 249869.76 | O10: 749.9 | P10: 417678.81 | Q10: 136993.19 | R10: 0 | S10: 0 | T10: 554672 | U10: 423.5 | V10: -23861.06 | W10: 328663.3 | X10: 304802.24 | Y10: 116272.0154
H11: 3 OD | I11: 351.51 | J11: 201195 | K11: 81405.24 | L11: 0 | M11: 0 | N11: 282600.24 | O11: 168 | P11: 92738.91 | Q11: 35866.91 | R11: 0 | S11: 0 | T11: 128605.82 | U11: -183.51 | V11: -5532.4 | W11: -148462.02 | X11: -153994.42 | Y11: 32984.43926
H12: 4 OD | I12: 669.54 | J12: 378655.42 | K12: 148068.52 | L12: 0 | M12: 0 | N12: 526723.93 | O12: 319.33 | P12: 175208.58 | Q12: 68260 | R12: 0 | S12: 0 | T12: 243468.58 | U12: -350.21 | V12: -10473.61 | W12: -272781.74 | X12: -283255.35 | Y12: 27358.40773
G14: Bybus i alt | I14: 2025.35 | J14: 1154072.75 | K14: 436463.61 | L14: 0 | M14: 0 | N14: 1590536.35 | O14: 2181.53 | P14: 1210561.16 | Q14: 418560.5 | R14: 0 | S14: 0 | T14: 1629121.66 | U14: 156.18 | V14: -70082.08 | W14: 108667.39 | X14: 38585.31 | Y14: =SUM(Y9:Y12) -> 386173.6464
G16: Regional- og lokalkørsel | H16: 1002 | I16: 765.55 | J16: 436044.74 | K16: 404018.05 | L16: 0 | M16: 0 | N16: 840062.79 | O16: 737.2 | P16: 408872.46 | Q16: 349713.24 | R16: 0 | S16: 0 | T16: 758585.7 | U16: -28.35 | V16: -32633.09 | W16: -48844 | X16: -81477.09 | Y16: 20355.30687
H17: 1003 | I17: 856.2 | J17: 490264.9 | K17: 376960.59 | L17: 0 | M17: 0 | N17: 867225.49 | O17: 835 | P17: 463875.01 | Q17: 362265.49 | R17: 0 | S17: 0 | T17: 826140.5 | U17: -21.2 | V17: -35539.19 | W17: -5545.8 | X17: -41084.99 | Y17: 145253.5297
H18: 1004 | I18: 960.29 | J18: 547588.27 | K18: 403115.82 | L18: 0 | M18: 0 | N18: 950704.09 | O18: 933.83 | P18: 518769.07 | Q18: 352345.01 | R18: 0 | S18: 0 | T18: 871114.08 | U18: -26.46 | V18: -37473.88 | W18: -42116.13 | X18: -79590.01 | Y18: 69474.56312
H19: 1005 | I19: 570.8 | J19: 326831.63 | K19: 345606.22 | L19: 0 | M19: 0 | N19: 672437.85 | O19: 558.93 | P19: 309926.43 | Q19: 281156.06 | R19: 0 | S19: 0 | T19: 591082.49 | U19: -11.87 | V19: -25427.39 | W19: -55927.97 | X19: -81355.36 | Y19: 45761.84534
H20: 1006 | I20: 1168.46 | J20: 665334.16 | K20: 559039.83 | L20: 246262.88 | M20: 0 | N20: 1470636.87 | O20: 1145.5 | P20: 634068.07 | Q20: 460436.15 | R20: 276137.96 | S20: 0 | T20: 1370642.18 | U20: -22.96 | V20: -58962.75 | W20: -41031.94 | X20: -99994.69 | Y20: 69406.20597
H21: 1007 | I21: 2102.52 | J21: 1191107.11 | K21: 966505.05 | L21: 0 | M21: 0 | N21: 2157612.16 | O21: 2044.71 | P21: 1132224.52 | Q21: 903119.82 | R21: 0 | S21: 0 | T21: 2035344.34 | U21: -57.81 | V21: -87557.13 | W21: -34710.69 | X21: -122267.82 | Y21: 145370.7273
H22: 1008 | I22: 590.95 | J22: 334042.81 | K22: 436463.67 | L22: 0 | M22: 0 | N22: 770506.48 | O22: 572.67 | P22: 317439.03 | Q22: 381745.88 | R22: 0 | S22: 0 | T22: 699184.91 | U22: -18.28 | V22: -30077.77 | W22: -41243.8 | X22: -71321.57 | Y22: 83480.34594
H23: 302 | I23: 718.14 | J23: 458748.7 | K23: 284472.42 | L23: 155121.71 | M23: 0 | N23: 898342.83 | O23: 714.07 | P23: 445493 | Q23: 293893.52 | R23: 129214.24 | S23: 0 | T23: 868600.76 | U23: -4.07 | V23: -18520.27 | W23: -11221.8 | X23: -29742.07 | Y23: 383794.5727
U24: 0 | V24: 0 | W24: 0 | X24: 0
G25: Regional- og lokalkørsel i alt | I25: 7732.91 | J25: 4449962.32 | K25: 3776181.65 | L25: 401384.59 | M25: 0 | N25: 8627528.56 | O25: 7541.91 | P25: 4230667.59 | Q25: 3384675.17 | R25: 405352.2 | S25: 0 | T25: 8020694.96 | U25: -191 | V25: -326191.47 | W25: -280642.13 | X25: -606833.6 | Y25: =SUM(Y16:Y23) -> 962897.0969
G27: Ikke rutefordelt | U27: 0 | V27: 0 | W27: 0 | X27: 0 | Y27: 314789.8829
G28: Faste køretøjsomkostninger | H28: IR | I28: 0 | J28: 0 | K28: 0 | L28: 0 | M28: 0 | N28: 0 | O28: 0 | P28: 0 | Q28: 257702.42 | R28: 0 | S28: 0 | T28: 257702.42 | U28: 0 | V28: -11085.93 | W28: 268788.35 | X28: 257702.42
G29: Administrationstillæg | H29: IR | I29: 0 | J29: 0 | K29: 0 | L29: 0 | M29: 149097.62 | N29: 149097.62 | O29: 0 | P29: 0 | Q29: 0 | R29: 0 | S29: 146094.41 | T29: 146094.41 | U29: 0 | V29: -6284.74 | W29: 3281.53 | X29: -3003.21
U30: 0 | V30: 0 | W30: 0 | X30: 0
U31: 0 | V31: 0 | W31: 0 | X31: 0
G32: Ikke rutefordelt i alt | I32: 0 | J32: 0 | K32: 0 | L32: 0 | M32: 149097.62 | N32: 149097.62 | O32: 0 | P32: 0 | Q32: 257702.42 | R32: 0 | S32: 146094.41 | T32: 403796.83 | U32: 0 | V32: -17370.67 | W32: 272069.88 | X32: 254699.21 | Y32: =+Y27 -> 314789.8829
G34: Total, Odder Kommune | I34: 9758.26 | J34: 5604035.07 | K34: 4212645.26 | L34: 401384.59 | M34: 149097.62 | N34: 10367162.53 | O34: 9723.44 | P34: 5441228.75 | Q34: 4060938.09 | R34: 405352.2 | S34: 146094.41 | T34: 10053613.45 | U34: -34.82 | V34: -413644.22 | W34: 100095.14 | X34: -313549.08 | Y34: =Y14+Y25+Y32 -> 1663860.626

Sheet RAN
G3: =titel -> Regnskab 2025
G7: Randers Kommune | I7: Budget 2025 (2025B-1) | O7: Regnskab 2025 (2025R) | U7: Afvigelse (2025R-2025B-1) | Y7: 2025R
G8: Rutetype | H8: Rute | I8: Timer | J8: Timeafhængige omkostninger | K8: Busafhængige omkostninger | L8: Ekstrakørsel | M8: Andet | N8: Udgifter i alt | O8: Timer | P8: Timeafhængige omkostninger | Q8: Busafhængige omkostninger | R8: Ekstrakørsel | S8: Andet | T8: Udgifter i alt | U8: Timer | V8: Anslået indekseffekt | W8: Anden afvigelse | X8: Udgifter i alt | Y8: Indtægter
G9: Bybus | H9: 1A RA | I9: 29240.63 | J9: 21671211.56 | K9: 553031.16 | L9: 0 | M9: 0 | N9: 22224242.72 | O9: 28902.97 | P9: 20965015.98 | Q9: 621808.3 | R9: 0 | S9: 0 | T9: 21586824.28 | U9: -337.66 | V9: -460273.44 | W9: -177145 | X9: -637418.44 | Y9: 6920480.821
H10: 2A RA | I10: 22701.79 | J10: 16436311.58 | K10: 449660.68 | L10: 0 | M10: 0 | N10: 16885972.26 | O10: 22654.79 | P10: 16173984.72 | Q10: 503453.94 | R10: 0 | S10: 0 | T10: 16677438.66 | U10: -47 | V10: -355595.71 | W10: 147062.11 | X10: -208533.6 | Y10: 5324536.336
H11: 3 RA | I11: 12835.37 | J11: 9539764.32 | K11: 241628.28 | L11: 0 | M11: 0 | N11: 9781392.59 | O11: 12732.59 | P11: 9291813.41 | Q11: 283595.51 | R11: 0 | S11: 0 | T11: 9575408.92 | U11: -102.78 | V11: -204166.5 | W11: -1817.17 | X11: -205983.67 | Y11: 2498869.314
H12: 4 RA | I12: 2276.33 | J12: 1943917.02 | K12: 207386.69 | L12: 0 | M12: 0 | N12: 2151303.71 | O12: 2027.75 | P12: 1623919.82 | Q12: 161542.09 | R12: 0 | S12: 0 | T12: 1785461.91 | U12: -248.58 | V12: -38069.55 | W12: -327772.25 | X12: -365841.8 | Y12: 335497.8197
U13: 0 | V13: 0 | W13: 0 | X13: 0
U14: 0 | V14: 0 | W14: 0 | X14: 0
G15: Bybus i alt | I15: 67054.12 | J15: 49591204.48 | K15: 1451706.81 | L15: 0 | M15: 0 | N15: 51042911.28 | O15: 66318.1 | P15: 48054733.93 | Q15: 1570399.84 | R15: 0 | S15: 0 | T15: 49625133.77 | U15: -736.02 | V15: -1058105.2 | W15: -359672.31 | X15: -1417777.51 | Y15: =SUM(Y9:Y13) -> 15079384.29
G17: Regional- og lokalkørsel | H17: 115 | I17: 596.3 | J17: 425880.6 | K17: 169043.09 | L17: 0 | M17: 0 | N17: 594923.68 | O17: 603.79 | P17: 413705.5 | Q17: 148672.07 | R17: 0 | S17: 0 | T17: 562377.57 | U17: 7.49 | V17: -11990.99 | W17: -20555.12 | X17: -32546.11 | Y17: 305108.7475
H18: 12 RA | I18: 2100.67 | J18: 1484772.81 | K18: 298330.39 | L18: 0 | M18: 0 | N18: 1783103.19 | O18: 2091.67 | P18: 1424362.08 | Q18: 316966.68 | R18: 0 | S18: 0 | T18: 1741328.76 | U18: -9 | V18: -37128.55 | W18: -4645.88 | X18: -41774.43 | Y18: 267721.2106
H19: 13 RA | I19: 889.78 | J19: 629292.2 | K19: 298330.39 | L19: 0 | M19: 0 | N19: 927622.59 | O19: 883.33 | P19: 602155.92 | Q19: 288928.74 | R19: 0 | S19: 0 | T19: 891084.66 | U19: -6.45 | V19: -18999.68 | W19: -17538.25 | X19: -36537.93 | Y19: 33689.74716
H20: 14 RA | I20: 671.53 | J20: 474939.03 | K20: 298330.39 | L20: 0 | M20: 0 | N20: 773269.42 | O20: 668.67 | P20: 454457.3 | Q20: 288928.74 | R20: 1366.46 | S20: 0 | T20: 744752.5 | U20: -2.86 | V20: -15879.6 | W20: -12637.32 | X20: -28516.92 | Y20: 36670.80906
H21: 15 RA | I21: 1044.23 | J21: 738530.55 | K21: 298330.39 | L21: 0 | M21: 0 | N21: 1036860.94 | O21: 1033.66 | P21: 703775.53 | Q21: 360046.35 | R21: 0 | S21: 0 | T21: 1063821.88 | U21: -10.57 | V21: -22682.77 | W21: 49643.71 | X21: 26960.94 | Y21: 172966.8157
H22: 16 RA | I22: 2895.74 | J22: 2046754.93 | K22: 596660.77 | L22: 0 | M22: 0 | N22: 2643415.7 | O22: 2975.68 | P22: 2024248.71 | Q22: 633933.35 | R22: 249263.83 | S22: 0 | T22: 2907445.89 | U22: 79.94 | V22: -61992.45 | W22: 326022.64 | X22: 264030.19 | Y22: 348171.6271
H23: 17 RA | I23: 349.2 | J23: 246961.91 | K23: 298330.39 | L23: 0 | M23: 0 | N23: 545292.29 | O23: 443.17 | P23: 300971.95 | Q23: 217811.12 | R23: 1366.46 | S23: 0 | T23: 520149.53 | U23: 93.97 | V23: -11090.61 | W23: -14052.15 | X23: -25142.76 | Y23: 74337.99575
H24: 18 RA | I24: 1514.82 | J24: 1070678.23 | K24: 298330.39 | L24: 0 | M24: 0 | N24: 1369008.62 | O24: 1508.33 | P24: 1027129.63 | Q24: 316966.68 | R24: 0 | S24: 0 | T24: 1344096.31 | U24: -6.49 | V24: -28658.77 | W24: 3746.46 | X24: -24912.31 | Y24: 88001.06754
H25: 202 | I25: 0 | J25: 0 | K25: 0 | L25: 0 | M25: 0 | N25: 0 | O25: 0 | P25: 0 | Q25: 0 | R25: 1579.54 | S25: 0 | T25: 1579.54 | U25: 0 | V25: -33.68 | W25: 1613.22 | X25: 1579.54
H26: 21 RA | I26: 171.78 | J26: 172016.87 | K26: 0 | L26: 0 | M26: 0 | N26: 172016.87 | O26: 173.8 | P26: 170921.82 | Q26: 0 | R26: 85983.88 | S26: 0 | T26: 256905.7 | U26: 2.02 | V26: -5477.73 | W26: 90366.56 | X26: 84888.83 | Y26: 44555.04986
H27: 230 | I27: 20.92 | J27: 12655.38 | K27: 3561.05 | L27: 0 | M27: 0 | N27: 16216.42 | O27: 64.51 | P27: 38390.06 | Q27: 11880.27 | R27: 0 | S27: 0 | T27: 50270.33 | U27: 43.59 | V27: -1071.87 | W27: 35125.78 | X27: 34053.91 | Y27: 19612.25067
H28: 231 | I28: 6919.47 | J28: 4353573.62 | K28: 1058383.16 | L28: 217995.38 | M28: 0 | N28: 5629952.16 | O28: 6787.09 | P28: 4158903.02 | Q28: 1246547.14 | R28: 274953.71 | S28: 0 | T28: 5680403.87 | U28: -132.38 | V28: -121117.35 | W28: 171569.06 | X28: 50451.71 | Y28: 2879869.267
H29: 237 | I29: 9099.9 | J29: 5481089.33 | K29: 1111287.24 | L29: 244798.73 | M29: 0 | N29: 6837175.3 | O29: 8993.93 | P29: 5312921.96 | Q29: 1202036.74 | R29: 317372.05 | S29: 0 | T29: 6832330.75 | U29: -105.97 | V29: -145678.69 | W29: 140834.14 | X29: -4844.55 | Y29: 2475389.616
H30: 238 | I30: 6063.18 | J30: 3657647.03 | K30: 730104.44 | L30: 253329.77 | M30: 0 | N30: 4641081.24 | O30: 6006.36 | P30: 3558970.5 | Q30: 821495.06 | R30: 272027.83 | S30: 0 | T30: 4652493.39 | U30: -56.82 | V30: -99200.3 | W30: 110612.45 | X30: 11412.15 | Y30: 1865021.009
H31: 73 | I31: 165.37 | J31: 98597.88 | K31: 32771.89 | L31: 0 | M31: 6486.86 | N31: 137856.63 | O31: 162.39 | P31: 93548.06 | Q31: 33520.3 | R31: 0 | S31: 0 | T31: 127068.36 | U31: -2.98 | V31: -3367.96 | W31: -7420.31 | X31: -10788.27
H32: Svm RA | I32: 0 | J32: 0 | K32: 0 | L32: 171657.45 | M32: 0 | N32: 171657.45 | O32: 0 | P32: 0 | Q32: 0 | R32: 240057.39 | S32: 0 | T32: 240057.39 | U32: 0 | V32: -5118.49 | W32: 73518.43 | X32: 68399.94 | Y32: 35523.81873
U34: 0 | V34: 0 | W34: 0 | X34: 0
G35: Regional- og lokalkørsel i alt | I35: 32502.89 | J35: 20893390.37 | K35: 5491793.98 | L35: 887781.33 | M35: 6486.86 | N35: 27279452.5 | O35: 32396.38 | P35: 20284462.04 | Q35: 5887733.24 | R35: 1443971.15 | S35: 0 | T35: 27616166.43 | U35: -106.51 | V35: -589489.49 | W35: 926203.42 | X35: 336713.93 | Y35: =SUM(Y17:Y32) -> 8646639.032
G37: Ikke rutefordelt | U37: 0 | V37: 0 | W37: 0 | X37: 0 | Y37: 138452.1925
G38: Faste køretøjsomkostninger | H38: IR | I38: 0 | J38: 0 | K38: 248874.16 | L38: 0 | M38: 0 | N38: 248874.16 | O38: 0 | P38: 0 | Q38: 1209696.48 | R38: 0 | S38: 0 | T38: 1209696.48 | U38: 0 | V38: -25793.11 | W38: 986615.43 | X38: 960822.32
G39: Administrationstillæg | H39: IR | I39: 0 | J39: 0 | K39: 0 | L39: 0 | M39: 1500080.19 | N39: 1500080.19 | O39: 0 | P39: 0 | Q39: 0 | R39: 0 | S39: 1480213.13 | T39: 1480213.13 | U39: 0 | V39: -31561.05 | W39: 11693.99 | X39: -19867.06
G40: Ekstrakørsel | H40: Grp. | I40: 0 | J40: 0 | K40: 0 | L40: 0 | M40: 0 | N40: 0 | O40: 0 | P40: 0 | Q40: 0 | R40: 50957.88 | S40: 0 | T40: 50957.88 | U40: 0 | V40: -1086.52 | W40: 52044.4 | X40: 50957.88
G41: Bonus | H41: IR | I41: 0 | J41: 0 | K41: 0 | L41: 0 | M41: 1316441.57 | N41: 1316441.57 | O41: 0 | P41: 0 | Q41: 0 | R41: 0 | S41: 1241025.16 | T41: 1241025.16 | U41: 0 | V41: -26461.09 | W41: -48955.32 | X41: -75416.41
G42: Andre fradrag | H42: IR | I42: 0 | J42: 0 | K42: 0 | L42: 0 | M42: 0 | N42: 0 | O42: 0 | P42: 0 | Q42: 0 | R42: 0 | S42: -750000 | T42: -750000 | U42: 0 | V42: 15991.47 | W42: -765991.47 | X42: -750000
U43: 0 | V43: 0 | W43: 0 | X43: 0
U44: 0 | V44: 0 | W44: 0 | X44: 0
G45: Ikke rutefordelt i alt | I45: 0 | J45: 0 | K45: 248874.16 | L45: 0 | M45: 2816521.76 | N45: 3065395.92 | O45: 0 | P45: 0 | Q45: 1209696.48 | R45: 50957.88 | S45: 1971238.29 | T45: 3231892.65 | U45: 0 | V45: -68910.3 | W45: 235407.03 | X45: 166496.73 | Y45: =+Y37 -> 138452.1925
G47: Skolekørsel | H47: 105 | I47: 109.33 | J47: 85678.04 | K47: 0 | L47: 0 | M47: 0 | N47: 85678.04 | O47: 109.34 | P47: 83916.62 | Q47: 0 | R47: 0 | S47: 0 | T47: 83916.62 | U47: 0.01 | V47: -1789.27 | W47: 27.85 | X47: -1761.42
H48: 205 | I48: 90.33 | J48: 70788.42 | K48: 0 | L48: 0 | M48: 0 | N48: 70788.42 | O48: 90.34 | P48: 69333.1 | Q48: 0 | R48: 0 | S48: 0 | T48: 69333.1 | U48: 0.01 | V48: -1478.32 | W48: 23 | X48: -1455.32
H49: 500 | I49: 646.5 | J49: 996383.75 | K49: 0 | L49: 0 | M49: 0 | N49: 996383.75 | O49: 652.63 | P49: 985031.89 | Q49: 0 | R49: 0 | S49: 0 | T49: 985031.89 | U49: 6.13 | V49: -21002.81 | W49: 9650.95 | X49: -11351.86
H50: 501A | I50: 566.56 | J50: 873183.28 | K50: 0 | L50: 0 | M50: 0 | N50: 873183.28 | O50: 571.93 | P50: 863235.05 | Q50: 0 | R50: 0 | S50: 0 | T50: 863235.05 | U50: 5.37 | V50: -18405.87 | W50: 8457.64 | X50: -9948.23
H51: 501B | I51: 102.92 | J51: 158620.6 | K51: 0 | L51: 0 | M51: 0 | N51: 158620.6 | O51: 103.9 | P51: 156813.42 | Q51: 0 | R51: 0 | S51: 0 | T51: 156813.42 | U51: 0.98 | V51: -3343.57 | W51: 1536.39 | X51: -1807.18
H52: 502 | I52: 1311.98 | J52: 2022027.6 | K52: 0 | L52: 0 | M52: 0 | N52: 2022027.6 | O52: 1143.79 | P52: 1728237.81 | Q52: 0 | R52: 0 | S52: 0 | T52: 1728237.81 | U52: -168.19 | V52: -36849.42 | W52: -256940.37 | X52: -293789.79
H53: 503 | I53: 332.74 | J53: 512821.93 | K53: 0 | L53: 0 | M53: 0 | N53: 512821.93 | O53: 335.9 | P53: 506979.32 | Q53: 0 | R53: 0 | S53: 0 | T53: 506979.32 | U53: 3.16 | V53: -10809.79 | W53: 4967.18 | X53: -5842.61
H54: 504 | I54: 647.49 | J54: 997923.75 | K54: 0 | L54: 0 | M54: 0 | N54: 997923.75 | O54: 653.19 | P54: 985879.15 | Q54: 0 | R54: 0 | S54: 0 | T54: 985879.15 | U54: 5.7 | V54: -21020.88 | W54: 8976.28 | X54: -12044.6
H55: 505 | I55: 82.94 | J55: 127820.48 | K55: 0 | L55: 0 | M55: 0 | N55: 127820.48 | O55: 83.72 | P55: 126364.21 | Q55: 0 | R55: 0 | S55: 0 | T55: 126364.21 | U55: 0.78 | V55: -2694.34 | W55: 1238.07 | X55: -1456.27
H56: 506 | I56: 399.69 | J56: 616002.32 | K56: 0 | L56: 0 | M56: 0 | N56: 616002.32 | O56: 454.86 | P56: 685262.39 | Q56: 0 | R56: 0 | S56: 0 | T56: 685262.39 | U56: 55.17 | V56: -14611.14 | W56: 83871.21 | X56: 69260.07
H57: 507 | I57: 532.58 | J57: 820823.09 | K57: 0 | L57: 0 | M57: 0 | N57: 820823.09 | O57: 578.18 | P57: 872238.84 | Q57: 0 | R57: 0 | S57: 0 | T57: 872238.84 | U57: 45.6 | V57: -18597.84 | W57: 70013.59 | X57: 51415.75
H58: 508 | I58: 502.61 | J58: 774622.91 | K58: 0 | L58: 0 | M58: 0 | N58: 774622.91 | O58: 543.41 | P58: 819813.09 | Q58: 0 | R58: 0 | S58: 0 | T58: 819813.09 | U58: 40.8 | V58: -17480.02 | W58: 62670.2 | X58: 45190.18
H59: 509 | I59: 652.97 | J59: 671399.61 | K59: 0 | L59: 0 | M59: 0 | N59: 671399.61 | O59: 653.05 | P59: 657471.64 | Q59: 0 | R59: 0 | S59: 0 | T59: 657471.64 | U59: 0.08 | V59: -14018.59 | W59: 90.62 | X59: -13927.97
H60: 510 | I60: 532.98 | J60: 577359.86 | K60: 0 | L60: 0 | M60: 0 | N60: 577359.86 | O60: 533.04 | P60: 565365.23 | Q60: 0 | R60: 0 | S60: 0 | T60: 565365.23 | U60: 0.06 | V60: -12054.69 | W60: 60.06 | X60: -11994.63
H61: 511 | I61: 466.98 | J61: 525638 | K61: 0 | L61: 0 | M61: 0 | N61: 525638 | O61: 466.59 | P61: 514358.64 | Q61: 0 | R61: 0 | S61: 0 | T61: 514358.64 | U61: -0.39 | V61: -10967.13 | W61: -312.23 | X61: -11279.36
H62: 512 | I62: 548.32 | J62: 589381.28 | K62: 0 | L62: 0 | M62: 0 | N62: 589381.28 | O62: 548.38 | P62: 577139.5 | Q62: 0 | R62: 0 | S62: 0 | T62: 577139.5 | U62: 0.06 | V62: -12305.74 | W62: 63.96 | X62: -12241.78
H63: 513 | I63: 666.97 | J63: 682370.91 | K63: 0 | L63: 0 | M63: 0 | N63: 682370.91 | O63: 667.05 | P63: 668217.39 | Q63: 0 | R63: 0 | S63: 0 | T63: 668217.39 | U63: 0.08 | V63: -14247.7 | W63: 94.18 | X63: -14153.52
H64: 514 | I64: 614.97 | J64: 641620.36 | K64: 0 | L64: 0 | M64: 0 | N64: 641620.36 | O64: 615.05 | P64: 628304.61 | Q64: 0 | R64: 0 | S64: 0 | T64: 628304.61 | U64: 0.08 | V64: -13396.69 | W64: 80.94 | X64: -13315.75
H65: 515 | I65: 649.02 | J65: 650784.06 | K65: 0 | L65: 0 | M65: 0 | N65: 650784.06 | O65: 714.54 | P65: 688942.71 | Q65: 0 | R65: 0 | S65: 0 | T65: 688942.71 | U65: 65.52 | V65: -14689.61 | W65: 52848.26 | X65: 38158.65
H66: 516 | I66: 540.85 | J66: 563628.67 | K66: 0 | L66: 0 | M66: 0 | N66: 563628.67 | O66: 632.02 | P66: 623824.43 | Q66: 0 | R66: 0 | S66: 0 | T66: 623824.43 | U66: 91.17 | V66: -13301.16 | W66: 73496.92 | X66: 60195.76
H67: 517 | I67: 647.01 | J67: 649170.07 | K67: 0 | L67: 0 | M67: 0 | N67: 649170.07 | O67: 674.61 | P67: 657427.2 | Q67: 0 | R67: 0 | S67: 0 | T67: 657427.2 | U67: 27.6 | V67: -14017.63 | W67: 22274.76 | X67: 8257.13
H68: 518 | I68: 627.89 | J68: 782641.32 | K68: 0 | L68: 0 | M68: 0 | N68: 782641.32 | O68: 617.46 | P68: 756721.57 | Q68: 0 | R68: 0 | S68: 0 | T68: 756721.57 | U68: -10.43 | V68: -16134.79 | W68: -9784.96 | X68: -25919.75
H69: 519 | I69: 639.85 | J69: 793813.04 | K69: 0 | L69: 0 | M69: 0 | N69: 793813.04 | O69: 629.87 | P69: 768076.07 | Q69: 0 | R69: 0 | S69: 0 | T69: 768076.07 | U69: -9.98 | V69: -16376.89 | W69: -9360.08 | X69: -25736.97
H70: A | I70: 363.75 | J70: 343383.49 | K70: 0 | L70: 0 | M70: 0 | N70: 343383.49 | O70: 335.9 | P70: 310162.88 | Q70: 0 | R70: 0 | S70: 0 | T70: 310162.88 | U70: -27.85 | V70: -6613.28 | W70: -26607.33 | X70: -33220.61
H71: B | I71: 168 | J71: 185661.84 | K71: 0 | L71: 0 | M71: 0 | N71: 185661.84 | O71: 154.84 | P71: 167619.93 | Q71: 0 | R71: 0 | S71: 0 | T71: 167619.93 | U71: -13.16 | V71: -3573.99 | W71: -14467.92 | X71: -18041.91
H72: C | I72: 89.5 | J72: 83602.85 | K72: 0 | L72: 0 | M72: 0 | N72: 83602.85 | O72: 85.48 | P72: 78229.37 | Q72: 0 | R72: 0 | S72: 0 | T72: 78229.37 | U72: -4.02 | V72: -1668 | W72: -3705.48 | X72: -5373.48
H73: D | I73: 140.17 | J73: 109848.62 | K73: 0 | L73: 0 | M73: 0 | N73: 109848.62 | O73: 129.5 | P73: 99422.99 | Q73: 0 | R73: 0 | S73: 0 | T73: 99422.99 | U73: -10.67 | V73: -2119.89 | W73: -8305.74 | X73: -10425.63
H74: E | I74: 140.17 | J74: 109848.62 | K74: 0 | L74: 0 | M74: 0 | N74: 109848.62 | O74: 129.48 | P74: 99407.6 | Q74: 0 | R74: 0 | S74: 0 | T74: 99407.6 | U74: -10.69 | V74: -2119.56 | W74: -8321.46 | X74: -10441.02
H75: Svømmekørsel | I75: 184.29 | J75: 148486.96 | K75: 0 | L75: 0 | M75: 0 | N75: 148486.96 | O75: 21 | P75: 22555.61 | Q75: 0 | R75: 0 | S75: 0 | T75: 22555.61 | U75: -163.29 | V75: -480.93 | W75: -125450.42 | X75: -125931.35
U76: 0 | V76: 0 | W76: 0 | X76: 0
U77: 0 | V77: 0 | W77: 0 | X77: 0
G78: Skolekørsel i alt | I78: 12999.36 | J78: 16165335.73 | K78: 0 | L78: 0 | M78: 0 | N78: 16165335.73 | O78: 12929.05 | P78: 15766352.26 | Q78: 0 | R78: 0 | S78: 0 | T78: 15766352.26 | U78: -70.31 | V78: -336169.54 | W78: -62813.93 | X78: -398983.47
G80: Total, Randers Kommune | I80: 112556.37 | J80: 86649930.58 | K80: 7192374.95 | L80: 887781.33 | M80: 2823008.62 | N80: 97553095.43 | O80: 111643.53 | P80: 84105548.23 | Q80: 8667829.56 | R80: 1494929.03 | S80: 1971238.29 | T80: 96239545.11 | U80: -912.84 | V80: -2052674.53 | W80: 739124.21 | X80: -1313550.32 | Y80: =Y15+Y35+Y45 -> 23864475.52
G81: Udgifter til skolekørsel er for nuværende ikke opdelt i timeafhængige og busafhængige omkostninger. Alle udgifter står således angivet som timeafhængige.

Sheet REG
G3: =titel -> Regnskab 2025
G7: Region Midtjylland | I7: Budget 2025 (2025B-1) | O7: Regnskab 2025 (2025R) | U7: Afvigelse (2025R-2025B-1) | Y7: 2025R
G8: Rutetype | H8: Rute | I8: Timer | J8: Timeafhængige omkostninger | K8: Busafhængige omkostninger | L8: Ekstrakørsel | M8: Andet | N8: Udgifter i alt | O8: Timer | P8: Timeafhængige omkostninger | Q8: Busafhængige omkostninger | R8: Ekstrakørsel | S8: Andet | T8: Udgifter i alt | U8: Timer | V8: Anslået indekseffekt | W8: Anden afvigelse | X8: Udgifter i alt | Y8: Indtægter
G10: Regional- og lokalkørsel | H10: 100 | I10: 53153.44 | J10: 33367211.11 | K10: 7873105.1 | L10: 1344538.48 | M10: 0 | N10: 42584854.69 | O10: 52818.97 | P10: 32892492.27 | Q10: 7793178.44 | R10: 1255266.11 | S10: 0 | T10: 41940936.82 | U10: -334.47 | V10: -894263.05 | W10: 250345.18 | X10: -643917.87 | Y10: 37761099.29
H11: 1013 | I11: 5722.78 | J11: 3442826.95 | K11: 1397879.63 | L11: 0 | M11: 0 | N11: 4840706.58 | O11: 5690.67 | P11: 3264476.87 | Q11: 1383828.8 | R11: 0 | S11: 0 | T11: 4648305.67 | U11: -32.11 | V11: -199962.38 | W11: 7561.47 | X11: -192400.91 | Y11: 1383025.477
H12: 1015 | I12: 1594.89 | J12: 980529.4 | K12: 390884.68 | L12: 0 | M12: 0 | N12: 1371414.08 | O12: 1601.43 | P12: 964832.5 | Q12: 280365.94 | R12: 0 | S12: 0 | T12: 1245198.44 | U12: 6.54 | V12: -26550.07 | W12: -99665.57 | X12: -126215.64 | Y12: 645820.3401
H13: 1024 | I13: 6493.76 | J13: 4055329.92 | K13: 7771.61 | L13: 0 | M13: 0 | N13: 4063101.53 | O13: 6476.04 | P13: 3923439.29 | Q13: 1263211.56 | R13: 0 | S13: 0 | T13: 5186650.85 | U13: -17.72 | V13: -223121.09 | W13: 1346670.41 | X13: 1123549.32 | Y13: 1232366.283
H14: 1026 | I14: 5781.94 | J14: 3478161 | K14: 1663113.44 | L14: 0 | M14: 0 | N14: 5141274.44 | O14: 5845.36 | P14: 3353927.11 | Q14: 1539391.92 | R14: 0 | S14: 0 | T14: 4893319.03 | U14: 63.42 | V14: -210502.45 | W14: -37452.96 | X14: -247955.41 | Y14: 671772.3154
H15: 1028 | I15: 8866.07 | J15: 5333901.13 | K15: 2193768.74 | L15: 0 | M15: 0 | N15: 7527669.87 | O15: 9105.72 | P15: 5227757.09 | Q15: 2051513.99 | R15: 0 | S15: 0 | T15: 7279271.08 | U15: 239.65 | V15: -313142.13 | W15: 64743.34 | X15: -248398.79 | Y15: 1667747.786
H16: 1029 | I16: 512.91 | J16: 308660.01 | K16: 179599.38 | L16: 0 | M16: 0 | N16: 488259.39 | O16: 512.25 | P16: 294334.52 | Q16: 155652.63 | R16: 0 | S16: 0 | T16: 449987.15 | U16: -0.66 | V16: -19357.7 | W16: -18914.54 | X16: -38272.24 | Y16: 44958.90587
H17: 103 | I17: 1952.1 | J17: 1233642.33 | K17: 521520.46 | L17: 0 | M17: 0 | N17: 1755162.79 | O17: 1962.19 | P17: 1224898.93 | Q17: 516296.29 | R17: 0 | S17: 0 | T17: 1741195.22 | U17: 10.09 | V17: -37125.69 | W17: 23158.12 | X17: -13967.57 | Y17: 1605596.096
H18: 1033 | I18: 5654.34 | J18: 3533333.21 | K18: 0 | L18: 0 | M18: 0 | N18: 3533333.21 | O18: 5613.83 | P18: 3401040.97 | Q18: 1125274.44 | R18: 0 | S18: 0 | T18: 4526315.41 | U18: -40.51 | V18: -194714.55 | W18: 1187696.75 | X18: 992982.2 | Y18: 823187.5654
H19: 1040 | I19: 6702.58 | J19: 4032169.82 | K19: 1340750.67 | L19: 0 | M19: 0 | N19: 5372920.49 | O19: 6678.93 | P19: 3833614.98 | Q19: 1253837.5 | R19: 157592.94 | S19: 0 | T19: 5245045.42 | U19: -23.65 | V19: -225633.12 | W19: 97758.05 | X19: -127875.07 | Y19: 1614712.567
H20: 105 | I20: 6873.72 | J20: 4316757.92 | K20: 980749.79 | L20: 25430.95 | M20: 0 | N20: 5322938.65 | O20: 6782.85 | P20: 4222776.38 | Q20: 828242.63 | R20: 194345.77 | S20: 0 | T20: 5245364.78 | U20: -90.87 | V20: -150220.62 | W20: 72646.75 | X20: -77573.87 | Y20: 2134224.48
H21: 110 | I21: 3673.44 | J21: 2313905.69 | K21: 541385.79 | L21: 84472.29 | M21: 0 | N21: 2939763.76 | O21: 3665.31 | P21: 2304005.85 | Q21: 529689.92 | R21: 39393.82 | S21: 0 | T21: 2873089.59 | U21: -8.13 | V21: -76903.93 | W21: 10229.76 | X21: -66674.17 | Y21: 1780940.199
H22: 113 | I22: 21534.82 | J22: 13174046.46 | K22: 2813574.35 | L22: 537686.61 | M22: 0 | N22: 16525307.42 | O22: 21625.66 | P22: 13064362.5 | Q22: 3191979.48 | R22: 507768.96 | S22: 0 | T22: 16764110.94 | U22: 90.84 | V22: -361436.33 | W22: 600239.85 | X22: 238803.52 | Y22: 12525908.83
H23: 114 | I23: 16294.2 | J23: 12421768.58 | K23: 3019241.88 | L23: 685217.72 | M23: 0 | N23: 16126228.17 | O23: 16508.18 | P23: 12281202.16 | Q23: 2994992.48 | R23: 801719.26 | S23: 0 | T23: 16077913.9 | U23: 213.98 | V23: -342812.67 | W23: 294498.4 | X23: -48314.27 | Y23: 10785780.75
H24: 116 | I24: 12387.78 | J24: 7781925.58 | K24: 1797105.78 | L24: 0 | M24: 0 | N24: 9579031.37 | O24: 12308.57 | P24: 7665927.18 | Q24: 1443962 | R24: 0 | S24: 0 | T24: 9109889.18 | U24: -79.21 | V24: -261723.94 | W24: -207418.25 | X24: -469142.19 | Y24: 2801756.588
H25: 116U | I25: 0 | J25: 0 | K25: 0 | L25: 799551.69 | M25: 0 | N25: 799551.69 | O25: 0 | P25: 0 | Q25: 0 | R25: 891482.54 | S25: 0 | T25: 891482.54 | U25: 0 | V25: -19008.16 | W25: 110939.01 | X25: 91930.85 | Y25: 8799.043819
H26: 118 | I26: 45539.69 | J26: 27357211.69 | K26: 5530995.71 | L26: 277506.29 | M26: 0 | N26: 33165713.69 | O26: 45525.87 | P26: 26993808.25 | Q26: 6267258.51 | R26: 616888.49 | S26: 0 | T26: 33877955.25 | U26: -13.82 | V26: -722344.46 | W26: 1434586.02 | X26: 712241.56 | Y26: 36328429.09
H27: 122 | I27: 4435.95 | J27: 3187524.67 | K27: 1409849.97 | L27: 0 | M27: 0 | N27: 4597374.64 | O27: 4385.79 | P27: 3086945.67 | Q27: 1383430.14 | R27: 0 | S27: 0 | T27: 4470375.81 | U27: -50.16 | V27: -95317.18 | W27: -31681.65 | X27: -126998.83 | Y27: 988209.3541
H28: 123 | I28: 39836.7 | J28: 28453046.51 | K28: 5068537.55 | L28: 582117.26 | M28: 0 | N28: 34103701.31 | O28: 39830.52 | P28: 28198125.51 | Q28: 5302056.19 | R28: 570229.85 | S28: 0 | T28: 34070411.55 | U28: -6.18 | V28: -723002.43 | W28: 689712.67 | X28: -33289.76 | Y28: 26222151.1
H29: 124 | I29: 33251.95 | J29: 20471615.86 | K29: 3955474.43 | L29: 277428.17 | M29: 0 | N29: 24704518.46 | O29: 34641.16 | P29: 20857682.11 | Q29: 5983359.24 | R29: 174384.09 | S29: 0 | T29: 27015425.44 | U29: 1389.21 | V29: -576021.87 | W29: 2886928.85 | X29: 2310906.98 | Y29: 21805169.46
H30: 200 | I30: 47468.98 | J30: 32269157.53 | K30: 6858215.42 | L30: 830626.62 | M30: 0 | N30: 39957999.57 | O30: 46231.68 | P30: 30789956.14 | Q30: 6589137.71 | R30: 1455779.54 | S30: 0 | T30: 38834873.39 | U30: -1237.3 | V30: -828035.66 | W30: -295090.52 | X30: -1123126.18 | Y30: 34097609.4
H31: 202 | I31: 15212.8 | J31: 9553584.92 | K31: 2201278.99 | L31: 547112.91 | M31: 0 | N31: 12301976.82 | O31: 14987.01 | P31: 9116122.96 | Q31: 1802844.37 | R31: 770862.44 | S31: 0 | T31: 11689829.77 | U31: -225.79 | V31: -372402.04 | W31: -239745.01 | X31: -612147.05 | Y31: 10201138.61
H32: 205 | I32: 4141.4 | J32: 2598808.38 | K32: 606305.22 | L32: 232659.6 | M32: 0 | N32: 3437773.2 | O32: 4070.6 | P32: 2532297.55 | Q32: 489304.95 | R32: 182788.01 | S32: 0 | T32: 3204390.51 | U32: -70.8 | V32: -90763.73 | W32: -142618.96 | X32: -233382.69 | Y32: 1334438.454
H33: 211 | I33: 5776.96 | J33: 3995015.24 | K33: 960222.43 | L33: 285624.57 | M33: 0 | N33: 5240862.24 | O33: 5733.71 | P33: 3889239.25 | Q33: 982698.49 | R33: 301377.54 | S33: 0 | T33: 5173315.28 | U33: -43.25 | V33: -110305.23 | W33: 42758.27 | X33: -67546.96 | Y33: 1908858.814
H34: 211U | I34: 603.3 | J34: 417428.08 | K34: 288196.31 | L34: 452492.46 | M34: 0 | N34: 1158116.86 | O34: 589.96 | P34: 400374.16 | Q34: 257018.83 | R34: 438971.48 | S34: 0 | T34: 1096364.47 | U34: -13.34 | V34: -23376.64 | W34: -38375.75 | X34: -61752.39 | Y34: 7913.639175
H35: 212 | I35: 6906.81 | J35: 4774402.73 | K35: 873693.33 | L35: 288296.28 | M35: 0 | N35: 5936392.34 | O35: 6916.22 | P35: 4691897.55 | Q35: 857320.78 | R35: 274940.88 | S35: 0 | T35: 5824159.21 | U35: 9.41 | V35: -124182.5 | W35: 11949.37 | X35: -112233.13 | Y35: 3877196.471
H36: 212U | I36: 276.09 | J36: 176308.56 | K36: 66032.25 | L36: 587641.95 | M36: 0 | N36: 829982.76 | O36: 270 | P36: 167867.58 | Q36: 85420.32 | R36: 642681.84 | S36: 0 | T36: 895969.74 | U36: -6.09 | V36: -19103.83 | W36: 85090.81 | X36: 65986.98 | Y36: 33552.21489
H37: 213U | I37: 644.2 | J37: 445744.82 | K37: 286801.35 | L37: 0 | M37: 0 | N37: 732546.18 | O37: 630 | P37: 427552.47 | Q37: 254342.81 | R37: 0 | S37: 0 | T37: 681895.28 | U37: -14.2 | V37: -14539.35 | W37: -36111.55 | X37: -50650.9 | Y37: 10750.19221
H38: 214 | I38: 4281.94 | J38: 2956613.95 | K38: 878626.35 | L38: 0 | M38: 0 | N38: 3835240.3 | O38: 4233.79 | P38: 2868429.6 | Q38: 862161.32 | R38: 0 | S38: 0 | T38: 3730590.92 | U38: -48.15 | V38: -79543.51 | W38: -25105.87 | X38: -104649.38 | Y38: 827456.0397
H39: 215 | I39: 9019.44 | J39: 5729651.77 | K39: 1166902.16 | L39: 235646.15 | M39: 0 | N39: 7132200.08 | O39: 8819.08 | P39: 5592847.66 | Q39: 854746.58 | R39: 153981.19 | S39: 0 | T39: 6601575.43 | U39: -200.36 | V39: -174835.59 | W39: -355789.06 | X39: -530624.65 | Y39: 3622553.456
H40: 217 | I40: 6683.36 | J40: 4621766.14 | K40: 1310539.99 | L40: 235355.27 | M40: 0 | N40: 6167661.41 | O40: 6664.5 | P40: 4519773.62 | Q40: 1285981.17 | R40: 228421.5 | S40: 0 | T40: 6034176.29 | U40: -18.86 | V40: -128660.47 | W40: -4824.65 | X40: -133485.12 | Y40: 2467934.247
H41: 221 | I41: 995.7 | J41: 635292.72 | K41: 192009.32 | L41: 0 | M41: 0 | N41: 827302.05 | O41: 983.44 | P41: 610608.36 | Q41: 505371.12 | R41: 0 | S41: 0 | T41: 1115979.48 | U41: -12.26 | V41: -23794.87 | W41: 312472.3 | X41: 288677.43 | Y41: 261934.4
H42: 223 | I42: 12324.33 | J42: 7492426.51 | K42: 1361512.62 | L42: 506659.55 | M42: 0 | N42: 9360598.67 | O42: 12320.01 | P42: 7304076.73 | Q42: 1570118.48 | R42: 816553.79 | S42: 0 | T42: 9690749 | U42: -4.32 | V42: -203390.67 | W42: 533541 | X42: 330150.33 | Y42: 4149655.351
H43: 230 | I43: 3535.7 | J43: 2136520.61 | K43: 532258.16 | L43: 253397.13 | M43: 0 | N43: 2922175.9 | O43: 3530.83 | P43: 2087764.02 | Q43: 582006.29 | R43: 203459.98 | S43: 0 | T43: 2873230.29 | U43: -4.87 | V43: -61262.92 | W43: 12317.31 | X43: -48945.61 | Y43: 2244352.198
H44: 235 | I44: 4991.87 | J44: 3013197.13 | K44: 728739.89 | L44: 0 | M44: 0 | N44: 3741937.02 | O44: 4893.88 | P44: 2899397.99 | Q44: 816590.61 | R44: 0 | S44: 0 | T44: 3715988.6 | U44: -97.99 | V44: -79232.17 | W44: 53283.75 | X44: -25948.42 | Y44: 1907829.935
H45: 302 | I45: 1259.87 | J45: 784703.42 | K45: 480905.18 | L45: 252924.36 | M45: 0 | N45: 1518532.97 | O45: 1267.59 | P45: 790891.05 | Q45: 523874.07 | R45: 251197.53 | S45: 0 | T45: 1565962.65 | U45: 7.72 | V45: -33389.39 | W45: 80819.07 | X45: 47429.68 | Y45: 682815.9121
H46: 306 | I46: 4736.03 | J46: 3021753.3 | K46: 924839.93 | L46: 0 | M46: 0 | N46: 3946593.24 | O46: 4709.51 | P46: 2938925.09 | Q46: 992961.03 | R46: 0 | S46: 0 | T46: 3931886.12 | U46: -26.52 | V46: -83835.53 | W46: 69128.41 | X46: -14707.12 | Y46: 2499235.122
H47: 331 | I47: 3299.99 | J47: 2108108.69 | K47: 953544.63 | L47: 246262.91 | M47: 0 | N47: 3307916.23 | O47: 3310.63 | P47: 2065928.72 | Q47: 935675.64 | R47: 519365.67 | S47: 0 | T47: 3520970.03 | U47: 10.64 | V47: -75073.98 | W47: 288127.78 | X47: 213053.8 | Y47: 1295202.494
H48: 351 | I48: 1749.34 | J48: 1210416.04 | K48: 825385 | L48: 0 | M48: 0 | N48: 2035801.04 | O48: 1734.07 | P48: 1177448.63 | Q48: 704353.41 | R48: 0 | S48: 0 | T48: 1881802.04 | U48: -15.27 | V48: -40123.72 | W48: -113875.28 | X48: -153999 | Y48: 700349.0684
H49: 400 | I49: 276.07 | J49: 176609.5 | K49: 10504.45 | L49: 0 | M49: 0 | N49: 187113.95 | O49: 362.7 | P49: 224968.01 | Q49: 0 | R49: 0 | S49: 0 | T49: 224968.01 | U49: 86.63 | V49: -4796.76 | W49: 42650.82 | X49: 37854.06 | Y49: 175877.7349
H50: 504 | I50: 12.69 | J50: 8067.15 | K50: 2891.72 | L50: 0 | M50: 0 | N50: 10958.87 | O50: 12.6 | P50: 7758.27 | Q50: 2584.07 | R50: 0 | S50: 0 | T50: 10342.34 | U50: -0.09 | V50: -298.94 | W50: -317.59 | X50: -616.53 | Y50: 7792.690996
H51: 509 | I51: 104.6 | J51: 66321.7 | K51: 15498.3 | L51: 182928.48 | M51: 0 | N51: 264748.48 | O51: 100.71 | P51: 62579.74 | Q51: 16875.65 | R51: 299160.13 | S51: 0 | T51: 378615.52 | U51: -3.89 | V51: -11212.99 | W51: 125080.03 | X51: 113867.04 | Y51: 38331.8537
H52: 513 | I52: 455.72 | J52: 290806.91 | K52: 88429.97 | L52: 0 | M52: 0 | N52: 379236.89 | O52: 443.41 | P52: 280568.26 | Q52: 109106.78 | R52: 0 | S52: 0 | T52: 389675.04 | U52: -12.31 | V52: -10699.6 | W52: 21137.75 | X52: 10438.15 | Y52: 99090.95997
H53: 523 | I53: 459.41 | J53: 294367.04 | K53: 92998.62 | L53: 0 | M53: 0 | N53: 387365.66 | O53: 466.74 | P53: 294791.04 | Q53: 115396.83 | R53: 0 | S53: 0 | T53: 410187.87 | U53: 7.33 | V53: -11150.53 | W53: 33972.74 | X53: 22822.21 | Y53: 87256.60319
H54: 53 | I54: 18349.47 | J54: 11032056.19 | K54: 3877339.76 | L54: 0 | M54: 0 | N54: 14909395.95 | O54: 18355.29 | P54: 10541020.41 | Q54: 3642310.96 | R54: 109979.53 | S54: 0 | T54: 14293310.9 | U54: 5.82 | V54: -614874.45 | W54: -1210.6 | X54: -616085.05 | Y54: 4990165.421
H55: 55 | I55: 443.67 | J55: 260592.25 | K55: 103560.25 | L55: 0 | M55: 0 | N55: 364152.5 | O55: 799.17 | P55: 460223.89 | Q55: 482626.7 | R55: 0 | S55: 0 | T55: 942850.59 | U55: 355.5 | V55: -20103.43 | W55: 598801.52 | X55: 578698.09 | Y55: 162300.7104
H56: 561 | I56: 995.88 | J56: 668796.05 | K56: 216828.89 | L56: 0 | M56: 0 | N56: 885624.94 | O56: 995.77 | P56: 662745.97 | Q56: 193944.98 | R56: 0 | S56: 0 | T56: 856690.95 | U56: -0.11 | V56: -18266.33 | W56: -10667.66 | X56: -28933.99 | Y56: 101962.1947
H57: 580 | I57: 112.4 | J57: 71658.11 | K57: 8174.13 | L57: 0 | M57: 0 | N57: 79832.25 | O57: 109.59 | P57: 69529.35 | Q57: 7979.16 | R57: 0 | S57: 0 | T57: 77508.51 | U57: -2.81 | V57: -1652.63 | W57: -671.11 | X57: -2323.74 | Y57: 22063.6981
H58: 60 | I58: 13628.09 | J58: 8121794.13 | K58: 2715723.46 | L58: 56725.75 | M58: 0 | N58: 10894243.35 | O58: 13599.21 | P58: 7829839.5 | Q58: 2399587.14 | R58: 259092.51 | S58: 0 | T58: 10488519.15 | U58: -28.88 | V58: -279748.55 | W58: -125975.65 | X58: -405724.2 | Y58: 5072263.25
H59: 61 | I59: 5034.51 | J59: 3241509.52 | K59: 562940.1 | L59: 71099.08 | M59: 0 | N59: 3875548.7 | O59: 5111.21 | P59: 3264329.21 | Q59: 903569.51 | R59: 0 | S59: 0 | T59: 4167898.72 | U59: 76.7 | V59: -26827.69 | W59: 319177.71 | X59: 292350.02 | Y59: 3901390.881
H60: 62 | I60: 11985.72 | J60: 7207077.58 | K60: 2026928.13 | L60: 0 | M60: 0 | N60: 9234005.72 | O60: 11814.71 | P60: 6778879.97 | Q60: 1815422 | R60: 554187.13 | S60: 0 | T60: 9148489.1 | U60: -171.01 | V60: -390426.14 | W60: 304909.52 | X60: -85516.62 | Y60: 3200495.052
H61: 64 | I61: 3480.89 | J61: 2074615.48 | K61: 693077.61 | L61: 0 | M61: 0 | N61: 2767693.1 | O61: 3325.19 | P61: 1913156.57 | Q61: 1006099.46 | R61: 0 | S61: 0 | T61: 2919256.03 | U61: -155.7 | V61: -76590.72 | W61: 228153.65 | X61: 151562.93 | Y61: 773506.8232
H62: 72 | I62: 3669.54 | J62: 2208273.12 | K62: 1367275.32 | L62: 0 | M62: 0 | N62: 3575548.44 | O62: 3654.79 | P62: 2100025.78 | Q62: 1106081.45 | R62: 0 | S62: 0 | T62: 3206107.23 | U62: -14.75 | V62: -137921.39 | W62: -231519.82 | X62: -369441.21 | Y62: 560339.7125
H63: 73 | I63: 11942.14 | J63: 7104207.43 | K63: 2519203.45 | L63: 261191.6 | M63: 0 | N63: 9884602.48 | O63: 11926.72 | P63: 6866354.31 | Q63: 2178000.57 | R63: 318885.2 | S63: 0 | T63: 9363240.08 | U63: -15.42 | V63: -249987.67 | W63: -271374.73 | X63: -521362.4 | Y63: 2975681.5
H64: 801 | I64: 0 | J64: 0 | K64: 0 | L64: 14181.43 | M64: 0 | N64: 14181.43 | O64: 0 | P64: 0 | Q64: 0 | R64: 19179.52 | S64: 0 | T64: 19179.52 | U64: 0 | V64: -408.94 | W64: 5407.03 | X64: 4998.09
H65: 81 | I65: 2844.59 | J65: 1711723.68 | K65: 843324.97 | L65: 0 | M65: 0 | N65: 2555048.65 | O65: 2751.34 | P65: 1581704.85 | Q65: 708405.55 | R65: 0 | S65: 0 | T65: 2290110.4 | U65: -93.25 | V65: -98516.74 | W65: -166421.51 | X65: -264938.25 | Y65: 732297.5546
H66: 835 | I66: 29.81 | J66: 18013.18 | K66: 4954.63 | L66: 0 | M66: 0 | N66: 22967.81 | O66: 0 | P66: 0 | Q66: 0 | R66: 0 | S66: 0 | T66: 0 | U66: -29.81 | V66: 0 | W66: -22967.81 | X66: -22967.81
H67: 836 | I67: 59.62 | J67: 35147.19 | K67: 10646.31 | L67: 0 | M67: 0 | N67: 45793.51 | O67: 0 | P67: 0 | Q67: 0 | R67: 0 | S67: 0 | T67: 0 | U67: -59.62 | V67: 0 | W67: -45793.51 | X67: -45793.51
H68: 851 | I68: 114.16 | J68: 68107.3 | K68: 47514.63 | L68: 0 | M68: 0 | N68: 115621.93 | O68: 73.33 | P68: 42700.81 | Q68: 35195.77 | R68: 0 | S68: 0 | T68: 77896.58 | U68: -40.83 | V68: -1660.9 | W68: -36064.45 | X68: -37725.35 | Y68: 5114.340606
U69: 0 | V69: 0 | W69: 0 | X69: 0
U70: 0 | V70: 0 | W70: 0 | X70: 0
G71: Regional- og lokalkørsel i alt | I71: 488170.15 | J71: 311844211.9 | K71: 77389132.19 | L71: 10154775.56 | M71: 0 | N71: 399388119.7 | O71: 487378.29 | P71: 304908225.2 | Q71: 80962636.66 | R71: 13009937.24 | S71: 0 | T71: 398880799.1 | U71: -791.86 | V71: -10194160.02 | W71: 9686839.41 | X71: -507320.61 | Y71: =SUM(Y10:Y68) -> 257868362.5
G73: X-bus | H73: 912X | I73: 11777.23 | J73: 8495308.76 | K73: 1698819.98 | L73: 0 | M73: 0 | N73: 10194128.74 | O73: 11734.77 | P73: 8292411 | Q73: 1666356.56 | R73: 9713.88 | S73: 0 | T73: 9968481.44 | U73: -42.46 | V73: -212547.58 | W73: -13099.72 | X73: -225647.3 | Y73: 15582015.07
H74: 925X | I74: 5860.13 | J74: 0 | K74: 0 | L74: 6041084.28 | M74: 0 | N74: 6041084.28 | O74: 4599.84 | P74: 0 | Q74: 0 | R74: 3959916.85 | S74: 0 | T74: 3959916.85 | U74: -1260.29 | V74: -84433.2 | W74: -1996734.23 | X74: -2081167.43 | Y74: 7771381.731
U75: 0 | V75: 0 | W75: 0 | X75: 0
G76: X-bus i alt | I76: 17637.36 | J76: 8495308.76 | K76: 1698819.98 | L76: 6041084.28 | M76: 0 | N76: 16235213.02 | O76: 16334.61 | P76: 8292411 | Q76: 1666356.56 | R76: 3969630.73 | S76: 0 | T76: 13928398.29 | U76: -1302.75 | V76: -296980.78 | W76: -2009833.95 | X76: -2306814.73 | Y76: =SUM(Y73:Y74) -> 23353396.8
G78: Natbus- og arrangementskørsel | H78: 13S | I78: 0 | J78: 0 | K78: 0 | L78: 0 | M78: 0 | N78: 0 | O78: 0 | P78: 0 | Q78: 0 | R78: 8291.04 | S78: 0 | T78: 8291.04 | U78: 0 | V78: -181.26 | W78: 8472.3 | X78: 8291.04 | Y78: 2274.371223
H79: 300S | I79: 833.35 | J79: 660996.42 | K79: 149144.04 | L79: 0 | M79: 0 | N79: 810140.46 | O79: 856.18 | P79: 623538.15 | Q79: 0 | R79: 0 | S79: 0 | T79: 623538.15 | U79: 22.83 | V79: -13295.05 | W79: -173307.26 | X79: -186602.31 | Y79: 731370.9889
H80: 307S | I80: 144.34 | J80: 121116.3 | K80: 0 | L80: 0 | M80: 0 | N80: 121116.3 | O80: 165.6 | P80: 152741.71 | Q80: 0 | R80: 0 | S80: 0 | T80: 152741.71 | U80: 21.26 | V80: -3256.75 | W80: 34882.16 | X80: 31625.41 | Y80: 60843.13643
H81: 311S | I81: 118.63 | J81: 101035.32 | K81: 0 | L81: 0 | M81: 0 | N81: 101035.32 | O81: 135.2 | P81: 127489.54 | Q81: 0 | R81: 0 | S81: 0 | T81: 127489.54 | U81: 16.57 | V81: -2718.33 | W81: 29172.55 | X81: 26454.22 | Y81: 98224.45701
H82: 331S | I82: 148.93 | J82: 124967.8 | K82: 0 | L82: 0 | M82: 0 | N82: 124967.8 | O82: 99.17 | P82: 91509.28 | Q82: 0 | R82: 0 | S82: 0 | T82: 91509.28 | U82: -49.76 | V82: -1951.16 | W82: -31507.36 | X82: -33458.52 | Y82: 48639.03128
H83: 332S | I83: 0 | J83: 0 | K83: 0 | L83: 0 | M83: 0 | N83: 0 | O83: 89.22 | P83: 82003.22 | Q83: 0 | R83: 0 | S83: 0 | T83: 82003.22 | U83: 89.22 | V83: -1748.47 | W83: 83751.69 | X83: 82003.22 | Y83: 30190.75787
H84: 40S | I84: 0 | J84: 0 | K84: 0 | L84: 0 | M84: 0 | N84: 0 | O84: 0 | P84: 0 | Q84: 0 | R84: 11400.18 | S84: 0 | T84: 11400.18 | U84: 0 | V84: -249.23 | W84: 11649.41 | X84: 11400.18 | Y84: 2785.698156
H85: 411S | I85: 0 | J85: 0 | K85: 0 | L85: 0 | M85: 0 | N85: 0 | O85: 0 | P85: 0 | Q85: 0 | R85: 4864.33 | S85: 0 | T85: 4864.33 | U85: 0 | V85: -106.34 | W85: 4970.67 | X85: 4864.33 | Y85: 1051.834327
H86: 72S | I86: 0 | J86: 0 | K86: 0 | L86: 0 | M86: 0 | N86: 0 | O86: 0 | P86: 0 | Q86: 0 | R86: 9845.61 | S86: 0 | T86: 9845.61 | U86: 0 | V86: -215.24 | W86: 10060.85 | X86: 9845.61 | Y86: 2249.468675
H87: 811 | I87: 60.16 | J87: 41764.15 | K87: 10034.33 | L87: 0 | M87: 0 | N87: 51798.48 | O87: 59.37 | P87: 40685.91 | Q87: 16317.46 | R87: 0 | S87: 0 | T87: 57003.37 | U87: -0.79 | V87: -1215.42 | W87: 6420.31 | X87: 5204.89 | Y87: 2499.395009
H88: 830 | I88: 59.89 | J88: 35306.95 | K88: 10694.71 | L88: 0 | M88: 0 | N88: 46001.66 | O88: 66.3 | P88: 38119.85 | Q88: 7149.97 | R88: 0 | S88: 0 | T88: 45269.82 | U88: 6.41 | V88: -1947.43 | W88: 1215.59 | X88: -731.84 | Y88: 2825.121357
H89: 833 | I89: 0 | J89: 0 | K89: 0 | L89: 0 | M89: 0 | N89: 0 | O89: 66 | P89: 37947.36 | Q89: 8923.22 | R89: 0 | S89: 0 | T89: 46870.58 | U89: 66 | V89: -2016.29 | W89: 48886.87 | X89: 46870.58 | Y89: 765.3691142
H90: 834 | I90: 29.81 | J90: 18013.18 | K90: 4954.63 | L90: 0 | M90: 0 | N90: 22967.81 | O90: 0 | P90: 0 | Q90: 0 | R90: 0 | S90: 0 | T90: 0 | U90: -29.81 | V90: 0 | W90: -22967.81 | X90: -22967.81
H91: 834A | I91: 0 | J91: 0 | K91: 0 | L91: 0 | M91: 0 | N91: 0 | O91: 33 | P91: 19456.44 | Q91: 3295.42 | R91: 0 | S91: 0 | T91: 22751.86 | U91: 33 | V91: -978.75 | W91: 23730.61 | X91: 22751.86 | Y91: 115.438657
H92: 834B | I92: 0 | J92: 0 | K92: 0 | L92: 0 | M92: 0 | N92: 0 | O92: 32.86 | P92: 19333.66 | Q92: 5097.96 | R92: 0 | S92: 0 | T92: 24431.62 | U92: 32.86 | V92: -1051.01 | W92: 25482.63 | X92: 24431.62
H93: 840 | I93: 27.39 | J93: 16562.34 | K93: 6193.09 | L93: 0 | M93: 0 | N93: 22755.42 | O93: 30.6 | P93: 17774.55 | Q93: 4771.26 | R93: 0 | S93: 0 | T93: 22545.81 | U93: 3.21 | V93: -969.88 | W93: 760.27 | X93: -209.61 | Y93: 347.2881931
H94: 853 | I94: 46.34 | J94: 27318.96 | K94: 8275.09 | L94: 0 | M94: 0 | N94: 35594.05 | O94: 65.33 | P94: 38438.43 | Q94: 10554.38 | R94: 0 | S94: 0 | T94: 48992.81 | U94: 18.99 | V94: -1852.53 | W94: 15251.29 | X94: 13398.76 | Y94: 1687.397188
H95: 860 | I95: 72.63 | J95: 43886.66 | K95: 12071.29 | L95: 0 | M95: 0 | N95: 55957.95 | O95: 116.47 | P95: 68031.82 | Q95: 14105.68 | R95: 0 | S95: 0 | T95: 82137.5 | U95: 43.84 | V95: -2956.84 | W95: 29136.39 | X95: 26179.55 | Y95: 4572.663683
H96: 862 | I96: 124.5 | J96: 75293.59 | K96: 28154.22 | L96: 0 | M96: 0 | N96: 103447.81 | O96: 146.37 | P96: 84346.77 | Q96: 25506.41 | R96: 0 | S96: 0 | T96: 109853.18 | U96: 21.87 | V96: -4725.7 | W96: 11131.07 | X96: 6405.37 | Y96: 787.0485979
H97: 892 | I97: 42.68 | J97: 26367.41 | K97: 8392.92 | L97: 0 | M97: 0 | N97: 34760.33 | O97: 47.25 | P97: 28797.92 | Q97: 10301.25 | R97: 0 | S97: 0 | T97: 39099.17 | U97: 4.57 | V97: -1333.02 | W97: 5671.86 | X97: 4338.84 | Y97: 1031.739537
U98: 0 | V98: 0 | W98: 0 | X98: 0
U99: 0 | V99: 0 | W99: 0 | X99: 0
G100: Natbus- og arrangementskørsel i alt | I100: 1708.65 | J100: 1292629.08 | K100: 237914.32 | L100: 0 | M100: 0 | N100: 1530543.39 | O100: 2008.92 | P100: 1470214.61 | Q100: 106023.01 | R100: 34401.16 | S100: 0 | T100: 1610638.78 | U100: 300.27 | V100: -42768.7 | W100: 122864.09 | X100: 80095.39 | Y100: =SUM(Y78:Y97) -> 992261.2052
G102: Ikke rutefordelt | U102: 0 | V102: 0 | W102: 0 | X102: 0 | Y102: 5446132.22
G103: Faste køretøjsomkostninger | H103: IR | I103: 0 | J103: 0 | K103: 5056418.33 | L103: 0 | M103: 0 | N103: 5056418.33 | O103: 0 | P103: 0 | Q103: 7358916.35 | R103: 0 | S103: 0 | T103: 7358916.35 | U103: 0 | V103: -194296.71 | W103: 2496794.73 | X103: 2302498.02
G104: Aarhus Tillæg | H104: IR | I104: 0 | J104: 2146944.52 | K104: 0 | L104: 0 | M104: 0 | N104: 2146944.52 | O104: 0 | P104: 2254152 | Q104: 0 | R104: 0 | S104: 0 | T104: 2254152 | U104: 0 | V104: 0 | W104: 107207.48 | X104: 107207.48
G105: Administrationstillæg | H105: IR | I105: 0 | J105: 0 | K105: 0 | L105: 0 | M105: 10710592.69 | N105: 10710592.69 | O105: 0 | P105: 0 | Q105: 0 | R105: 0 | S105: 10180020.74 | T105: 10180020.74 | U105: 0 | V105: -319585.06 | W105: -210986.89 | X105: -530571.95
G106: Omkørsel | H106: IR | I106: 0 | J106: 0 | K106: 0 | L106: 0 | M106: 0 | N106: 0 | O106: 0 | P106: 0 | Q106: 0 | R106: 170200.29 | S106: 0 | T106: 170200.29 | U106: 0 | V106: -3861.52 | W106: 174061.81 | X106: 170200.29
G107: Bonus | H107: IR | I107: 0 | J107: 0 | K107: 0 | L107: 0 | M107: 3217379.31 | N107: 3217379.31 | O107: 0 | P107: 0 | Q107: 0 | R107: 0 | S107: 3086725.9 | T107: 3086725.9 | U107: 0 | V107: -92159.19 | W107: -38494.22 | X107: -130653.41
G108: Andre udgifter | H108: IR | I108: 0 | J108: 0 | K108: 0 | L108: 0 | M108: 0 | N108: 0 | O108: 0 | P108: 0 | Q108: 0 | R108: 0 | S108: 120903.69 | T108: 120903.69 | U108: 0 | V108: -2577.92 | W108: 123481.61 | X108: 120903.69
U109: 0 | V109: 0 | W109: 0 | X109: 0
G110: Ikke rutefordelt i alt | I110: 0 | J110: 2146944.52 | K110: 5056418.33 | L110: 0 | M110: 13927972 | N110: 21131334.85 | O110: 0 | P110: 2254152 | Q110: 7358916.35 | R110: 170200.29 | S110: 13387650.33 | T110: 23170918.97 | U110: 0 | V110: -612480.4 | W110: 2652064.52 | X110: 2039584.12 | Y110: =+Y102 -> 5446132.22
G112: Dublering med B-kontrakt | H112: .Dub-B | I112: 0 | J112: 313000 | K112: 0 | L112: 0 | M112: 0 | N112: 313000 | O112: 0 | P112: 0 | Q112: 0 | R112: 191231.39 | S112: 0 | T112: 191231.39 | U112: 0 | V112: -4077.43 | W112: -117691.18 | X112: -121768.61
U113: 0 | V113: 0 | W113: 0 | X113: 0
G114: Dublering med B-kontrakt i alt | I114: 0 | J114: 313000 | K114: 0 | L114: 0 | M114: 0 | N114: 313000 | O114: 0 | P114: 0 | Q114: 0 | R114: 191231.39 | S114: 0 | T114: 191231.39 | U114: 0 | V114: -4077.43 | W114: -117691.18 | X114: -121768.61
G116: Total, Region Midtjylland | I116: 507516.16 | J116: 324092094.2 | K116: 84382284.82 | L116: 16195859.84 | M116: 13927972 | N116: 438598211 | O116: 505721.82 | P116: 316925002.8 | Q116: 90093932.58 | R116: 17375400.81 | S116: 13387650.33 | T116: 437781986.5 | U116: -1794.34 | V116: -11150467.33 | W116: 10334242.89 | X116: -816224.44 | Y116: =Y71+Y76+Y100+Y110 -> 287660152.7

Sheet RKS
G3: =titel -> Regnskab 2025
G7: Ringkøbing-Skjern Kommune | I7: Budget 2025 (2025B-1) | O7: Regnskab 2025 (2025R) | U7: Afvigelse (2025R-2025B-1) | Y7: 2025R
G8: Rutetype | H8: Rute | I8: Timer | J8: Timeafhængige omkostninger | K8: Busafhængige omkostninger | L8: Ekstrakørsel | M8: Andet | N8: Udgifter i alt | O8: Timer | P8: Timeafhængige omkostninger | Q8: Busafhængige omkostninger | R8: Ekstrakørsel | S8: Andet | T8: Udgifter i alt | U8: Timer | V8: Anslået indekseffekt | W8: Anden afvigelse | X8: Udgifter i alt | Y8: Indtægter
G9: Regional- og lokalkørsel | H9: 515 | I9: 2208.67 | J9: 1408692.15 | K9: 478788.9 | L9: 0 | M9: 0 | N9: 1887481.06 | O9: 2145.49 | P9: 1359425.26 | Q9: 428462.5 | R9: 0 | S9: 0 | T9: 1787887.76 | U9: -63.18 | V9: -38121.27 | W9: -61472.03 | X9: -99593.3 | Y9: 184861.8826
H10: 560 | I10: 2709.63 | J10: 1728215.25 | K10: 579064.76 | L10: 0 | M10: 0 | N10: 2307280.02 | O10: 2640.48 | P10: 1674094.45 | Q10: 513581.12 | R10: 0 | S10: 0 | T10: 2187675.57 | U10: -69.15 | V10: -46645.54 | W10: -72958.91 | X10: -119604.45 | Y10: 470860.2831
H11: 567 | I11: 1447.15 | J11: 971856.62 | K11: 246628.2 | L11: 0 | M11: 0 | N11: 1218484.82 | O11: 1403.63 | P11: 934460.98 | Q11: 218137.92 | R11: 0 | S11: 0 | T11: 1152598.9 | U11: -43.52 | V11: -24575.67 | W11: -41310.25 | X11: -65885.92 | Y11: 190538.6536
H12: 568 | I12: 1196 | J12: 800771.84 | K12: 187029.58 | L12: 0 | M12: 0 | N12: 987801.42 | O12: 1179.63 | P12: 784775.21 | Q12: 167818.71 | R12: 0 | S12: 0 | T12: 952593.92 | U12: -16.37 | V12: -20311.17 | W12: -14896.33 | X12: -35207.5 | Y12: 64036.06595
H13: 569 | I13: 2619.55 | J13: 1737516.8 | K13: 388969.76 | L13: 0 | M13: 0 | N13: 2126486.56 | O13: 2623.28 | P13: 1748130.44 | Q13: 374547.52 | R13: 0 | S13: 0 | T13: 2122677.96 | U13: 3.73 | V13: -45259.66 | W13: 41451.06 | X13: -3808.6 | Y13: 267732.6606
H14: 570 | I14: 1786.27 | J14: 1139296.95 | K14: 430190.22 | L14: 0 | M14: 0 | N14: 1569487.17 | O14: 1749.37 | P14: 1109210.81 | Q14: 384559.04 | R14: 0 | S14: 0 | T14: 1493769.85 | U14: -36.9 | V14: -31850.1 | W14: -43867.22 | X14: -75717.32 | Y14: 60840.76079
H15: 580 | I15: 6512.45 | J15: 4149239.19 | K15: 658205.38 | L15: 0 | M15: 0 | N15: 4807444.57 | O15: 6420.86 | P15: 4076499.02 | Q15: 626385.08 | R15: 0 | S15: 0 | T15: 4702884.1 | U15: -91.59 | V15: -100274.72 | W15: -4285.75 | X15: -104560.47 | Y15: 1199880.091
H16: 590 | I16: 1108.03 | J16: 742360.99 | K16: 289758.11 | L16: 0 | M16: 0 | N16: 1032119.1 | O16: 1160.67 | P16: 772808.19 | Q16: 279940.79 | R16: 0 | S16: 0 | T16: 1052748.98 | U16: 52.64 | V16: -22446.68 | W16: 43076.56 | X16: 20629.88 | Y16: 116240.9544
H17: 596 | I17: 1242.33 | J17: 834293.64 | K17: 216828.89 | L17: 0 | M17: 0 | N17: 1051122.53 | O17: 1284.63 | P17: 854629.35 | Q17: 238994.4 | R17: 0 | S17: 0 | T17: 1093623.75 | U17: 42.3 | V17: -23318.2 | W17: 65819.42 | X17: 42501.22 | Y17: 105301.0405
U18: 0 | V18: 0 | W18: 0 | X18: 0
G19: Regional- og lokalkørsel i alt | I19: 20830.08 | J19: 13512243.43 | K19: 3475463.8 | L19: 0 | M19: 0 | N19: 16987707.25 | O19: 20608.04 | P19: 13314033.71 | Q19: 3232427.08 | R19: 0 | S19: 0 | T19: 16546460.79 | U19: -222.04 | V19: -352803.01 | W19: -88443.45 | X19: -441246.46 | Y19: =SUM(Y9:Y17) -> 2660292.393
G21: Ikke rutefordelt | U21: 0 | V21: 0 | W21: 0 | X21: 0 | Y21: -5604.328203
G22: Faste køretøjsomkostninger | H22: IR | I22: 0 | J22: 0 | K22: 0 | L22: 0 | M22: 0 | N22: 0 | O22: 0 | P22: 0 | Q22: 559448.01 | R22: 0 | S22: 0 | T22: 559448.01 | U22: 0 | V22: -11928.53 | W22: 571376.54 | X22: 559448.01
G23: Administrationstillæg | H23: IR | I23: 0 | J23: 0 | K23: 0 | L23: 0 | M23: 474033.87 | N23: 474033.87 | O23: 0 | P23: 0 | Q23: 0 | R23: 0 | S23: 467755.8 | T23: 467755.8 | U23: 0 | V23: -9973.47 | W23: 3695.4 | X23: -6278.07
G24: Omkørsel | H24: IR | I24: 0 | J24: 0 | K24: 0 | L24: 0 | M24: 0 | N24: 0 | O24: 0 | P24: 0 | Q24: 0 | R24: 140252.63 | S24: 0 | T24: 140252.63 | U24: 0 | V24: -2990.45 | W24: 143243.08 | X24: 140252.63
U25: 0 | V25: 0 | W25: 0 | X25: 0
G27: Ikke rutefordelt i alt | I27: 0 | J27: 0 | K27: 0 | L27: 0 | M27: 474033.87 | N27: 474033.88 | O27: 0 | P27: 0 | Q27: 559448.01 | R27: 140252.63 | S27: 467755.8 | T27: 1167456.44 | U27: 0 | V27: -24892.45 | W27: 718315.02 | X27: 693422.57 | Y27: =+Y21 -> -5604.328203
G29: Skolekørsel | H29: 517 RS | I29: 632.87 | J29: 418651.91 | K29: 277441.01 | L29: 0 | M29: 0 | N29: 696092.92 | O29: 684.97 | P29: 444772.7 | Q29: 248160.2 | R29: 0 | S29: 0 | T29: 692932.9 | U29: 52.1 | V29: -14774.69 | W29: 11614.67 | X29: -3160.02
H30: 518 RS | I30: 951.56 | J30: 629481.84 | K30: 277441.01 | L30: 0 | M30: 0 | N30: 906922.84 | O30: 807.37 | P30: 523867 | Q30: 248160.2 | R30: 0 | S30: 0 | T30: 772027.2 | U30: -144.19 | V30: -16461.13 | W30: -118434.51 | X30: -134895.64
H31: 551 RS | I31: 854.68 | J31: 567190.41 | K31: 235371.64 | L31: 0 | M31: 0 | N31: 802562.05 | O31: 840.2 | P31: 548817.99 | Q31: 193944.98 | R31: 0 | S31: 0 | T31: 742762.97 | U31: -14.48 | V31: -15837.17 | W31: -43961.91 | X31: -59799.08
H32: 562 RS | I32: 643.24 | J32: 426858.49 | K32: 198286.1 | L32: 0 | M32: 0 | N32: 625144.59 | O32: 659.55 | P32: 431238.56 | Q32: 193944.98 | R32: 0 | S32: 0 | T32: 625183.54 | U32: 16.31 | V32: -13330.14 | W32: 13369.09 | X32: 38.95
H33: 564 RS | I33: 449.09 | J33: 298012.2 | K33: 216828.89 | L33: 0 | M33: 0 | N33: 514841.09 | O33: 494 | P33: 321899.06 | Q33: 193944.98 | R33: 0 | S33: 0 | T33: 515844.04 | U33: 44.91 | V33: -10998.81 | W33: 12001.76 | X33: 1002.95
H34: 566 RS | I34: 663.58 | J34: 440372.69 | K34: 216828.89 | L34: 0 | M34: 0 | N34: 657201.58 | O34: 664.37 | P34: 434088.92 | Q34: 193944.98 | R34: 0 | S34: 0 | T34: 628033.9 | U34: 0.79 | V34: -13390.92 | W34: -15776.76 | X34: -29167.68
H35: 572 RS | I35: 533.12 | J35: 352669.42 | K35: 277441.01 | L35: 0 | M35: 0 | N35: 630110.43 | O35: 559.3 | P35: 363060.51 | Q35: 248160.2 | R35: 0 | S35: 0 | T35: 611220.71 | U35: 26.18 | V35: -13032.42 | W35: -5857.3 | X35: -18889.72
H36: 573 RS | I36: 683.39 | J36: 422816.85 | K36: 277441.01 | L36: 0 | M36: 0 | N36: 700257.85 | O36: 750.73 | P36: 404786.95 | Q36: 248160.2 | R36: 82615.93 | S36: 0 | T36: 735563.08 | U36: 67.34 | V36: -15683.64 | W36: 50988.87 | X36: 35305.23
H37: 574 RS | I37: 746.07 | J37: 495123.6 | K37: 216828.89 | L37: 0 | M37: 0 | N37: 711952.48 | O37: 700.77 | P37: 456062.39 | Q37: 174871.25 | R37: 0 | S37: 0 | T37: 630933.64 | U37: -45.3 | V37: -13452.74 | W37: -67566.1 | X37: -81018.84
H38: 575 RS | I38: 539.67 | J38: 358120.21 | K38: 216828.89 | L38: 0 | M38: 0 | N38: 574949.1 | O38: 417.9 | P38: 272538.88 | Q38: 193944.98 | R38: 0 | S38: 0 | T38: 466483.86 | U38: -121.77 | V38: -9946.35 | W38: -98518.89 | X38: -108465.24
H39: 577 RS | I39: 709.24 | J39: 470675.03 | K39: 216828.89 | L39: 0 | M39: 0 | N39: 687503.91 | O39: 679.25 | P39: 442133.08 | Q39: 193944.98 | R39: 0 | S39: 0 | T39: 636078.06 | U39: -29.99 | V39: -13562.43 | W39: -37863.42 | X39: -51425.85
H40: 578 RS | I40: 780.32 | J40: 517855.11 | K40: 216828.89 | L40: 0 | M40: 0 | N40: 734683.99 | O40: 790.4 | P40: 515001.25 | Q40: 213018.71 | R40: 0 | S40: 0 | T40: 728019.96 | U40: 10.08 | V40: -15522.82 | W40: 8858.79 | X40: -6664.03
H41: 592 RS | I41: 0 | J41: 0 | K41: 0 | L41: 0 | M41: 0 | N41: 0 | O41: 109.86 | P41: 74253.58 | Q41: 20912.79 | R41: 0 | S41: 0 | T41: 95166.37 | U41: 109.86 | V41: -2029.13 | W41: 97195.5 | X41: 95166.37
H42: 593 RS | I42: 553.1 | J42: 367039.39 | K42: 216828.89 | L42: 0 | M42: 0 | N42: 583868.27 | O42: 507.01 | P42: 331496.01 | Q42: 175330.17 | R42: 0 | S42: 0 | T42: 506826.18 | U42: -46.09 | V42: -10806.53 | W42: -66235.56 | X42: -77042.09
H43: 594 RS | I43: 418.36 | J43: 277626.81 | K43: 216828.89 | L43: 0 | M43: 0 | N43: 494455.7 | O43: 684.94 | P43: 446721.74 | Q43: 193944.98 | R43: 0 | S43: 0 | T43: 640666.72 | U43: 266.58 | V43: -13660.27 | W43: 159871.29 | X43: 146211.02
H44: 597 RS | I44: 433.27 | J44: 290958.56 | K44: 102619.79 | L44: 0 | M44: 0 | N44: 393578.35 | O44: 0 | P44: 0 | Q44: 0 | R44: 0 | S44: 0 | T44: 0 | U44: -433.27 | V44: 0 | W44: -393578.35 | X44: -393578.35
U45: 0 | V45: 0 | W45: 0 | X45: 0
G46: Skolekørsel i alt | I46: 9591.56 | J46: 6333452.52 | K46: 3380672.69 | L46: 0 | M46: 0 | N46: 9714125.15 | O46: 9350.62 | P46: 6010738.62 | Q46: 2934388.58 | R46: 82615.93 | S46: 0 | T46: 9027743.13 | U46: -240.94 | V46: -192489.19 | W46: -493892.83 | X46: -686382.02
G48: Total, Ringkøbing-Skjern Kommune | I48: 30421.64 | J48: 19845695.95 | K48: 6856136.49 | L48: 0 | M48: 474033.87 | N48: 27175866.27 | O48: 29958.66 | P48: 19324772.33 | Q48: 6726263.67 | R48: 222868.56 | S48: 467755.8 | T48: 26741660.36 | U48: -462.98 | V48: -570184.65 | W48: 135978.74 | X48: -434205.91 | Y48: =Y19+Y27 -> 2654688.065

Sheet SIL
G3: =titel -> Regnskab 2025
G7: Silkeborg Kommune | I7: Budget 2025 (2025B-1) | O7: Regnskab 2025 (2025R) | U7: Afvigelse (2025R-2025B-1) | Y7: 2025R
G8: Rutetype | H8: Rute | I8: Timer | J8: Timeafhængige omkostninger | K8: Busafhængige omkostninger | L8: Ekstrakørsel | M8: Andet | N8: Udgifter i alt | O8: Timer | P8: Timeafhængige omkostninger | Q8: Busafhængige omkostninger | R8: Ekstrakørsel | S8: Andet | T8: Udgifter i alt | U8: Timer | V8: Anslået indekseffekt | W8: Anden afvigelse | X8: Udgifter i alt | Y8: Indtægter
G9: Bybus | H9: 1 SI | I9: 701.75 | J9: 386601.21 | K9: 282701.29 | L9: 0 | M9: 0 | N9: 669302.5 | O9: 700.73 | P9: 371983.37 | Q9: 167434.72 | R9: 0 | S9: 0 | T9: 539418.09 | U9: -1.02 | V9: -2664.73 | W9: -127219.68 | X9: -129884.41 | Y9: 135099.8067
H10: 10 SI | I10: 1811.1 | J10: 997615.52 | K10: 632519.12 | L10: 0 | M10: 0 | N10: 1630134.64 | O10: 1797.87 | P10: 957654.51 | Q10: 542126.34 | R10: 0 | S10: 0 | T10: 1499780.85 | U10: -13.23 | V10: -7408.94 | W10: -122944.85 | X10: -130353.79 | Y10: 335013.8409
H11: 11 SI | I11: 6964.99 | J11: 3839086.09 | K11: 2224978.59 | L11: 88563.8 | M11: 0 | N11: 6152628.48 | O11: 6848.71 | P11: 3650547.33 | Q11: 2011301.36 | R11: 314486.88 | S11: 0 | T11: 5976335.57 | U11: -116.28 | V11: -31845.87 | W11: -144447.04 | X11: -176292.91 | Y11: 1684803.902
H12: 12 SI | I12: 2321.92 | J12: 1289971.36 | K12: 673073.18 | L12: 0 | M12: 0 | N12: 1963044.54 | O12: 2309.21 | P12: 1228671.19 | Q12: 744242.93 | R12: 0 | S12: 0 | T12: 1972914.12 | U12: -12.71 | V12: -9746.22 | W12: 19615.8 | X12: 9869.58 | Y12: 369594.0934
H13: 2 SI | I13: 4698.38 | J13: 2586025.38 | K13: 1013319.33 | L13: 0 | M13: 0 | N13: 3599344.72 | O13: 4675.8 | P13: 2486481.09 | Q13: 1358423.01 | R13: 0 | S13: 0 | T13: 3844904.1 | U13: -22.58 | V13: -18993.88 | W13: 264553.26 | X13: 245559.38 | Y13: 850364.8748
H14: 3 SI | I14: 1921.8 | J14: 1057457.47 | K14: 680554.33 | L14: 0 | M14: 0 | N14: 1738011.8 | O14: 1908.55 | P14: 1016872.54 | Q14: 567056.69 | R14: 0 | S14: 0 | T14: 1583929.23 | U14: -13.25 | V14: -7824.63 | W14: -146257.94 | X14: -154082.57 | Y14: 371569.44
H15: 4 SI | I15: 2226.34 | J15: 1225079.7 | K15: 716636.5 | L15: 0 | M15: 0 | N15: 1941716.2 | O15: 2211.04 | P15: 1176871.72 | Q15: 608887.62 | R15: 0 | S15: 0 | T15: 1785759.34 | U15: -15.3 | V15: -8821.67 | W15: -147135.19 | X15: -155956.86 | Y15: 395864.5041
H16: 5 SI | I16: 3544.24 | J16: 1950140.3 | K16: 1247868.4 | L16: 0 | M16: 0 | N16: 3198008.7 | O16: 3530.59 | P16: 1878206.53 | Q16: 989149.16 | R16: 0 | S16: 0 | T16: 2867355.69 | U16: -13.65 | V16: -14164.78 | W16: -316488.23 | X16: -330653.01 | Y16: 700296.1837
H17: 6 SI | I17: 3219.47 | J17: 1771834.09 | K17: 1122818.16 | L17: 0 | M17: 0 | N17: 2894652.25 | O17: 3381.67 | P17: 1798964.66 | Q17: 1017060.33 | R17: 0 | S17: 0 | T17: 2816024.99 | U17: 162.2 | V17: -13911.2 | W17: -64716.06 | X17: -78627.26 | Y17: 729164.5871
H18: 7 SI | I18: 5101.01 | J18: 2803200.69 | K18: 1629129.57 | L18: 0 | M18: 0 | N18: 4432330.26 | O18: 5048.82 | P18: 2687495.87 | Q18: 1435804.14 | R18: 0 | S18: 0 | T18: 4123300.01 | U18: -52.19 | V18: -20369.15 | W18: -288661.1 | X18: -309030.25 | Y18: 1251375.446
H19: 8 SI | I19: 5243.23 | J19: 2886523.65 | K19: 1698029.62 | L19: 0 | M19: 0 | N19: 4584553.27 | O19: 5232.58 | P19: 2784955.96 | Q19: 1464097.05 | R19: 0 | S19: 0 | T19: 4249053.01 | U19: -10.65 | V19: -20990.38 | W19: -314509.88 | X19: -335500.26 | Y19: 958509.275
H20: 9 SI | I20: 6731.94 | J20: 3710825.47 | K20: 2288635.63 | L20: 0 | M20: 0 | N20: 5999461.1 | O20: 6641.93 | P20: 3543962.27 | Q20: 1943984.07 | R20: 0 | S20: 0 | T20: 5487946.34 | U20: -90.01 | V20: -28341.1 | W20: -483173.66 | X20: -511514.76 | Y20: 1862576.71
G22: Bybus i alt | I22: 44486.17 | J22: 24504360.93 | K22: 14210263.72 | L22: 88563.8 | M22: 0 | N22: 38803188.46 | O22: 44287.5 | P22: 23582667.04 | Q22: 12849567.42 | R22: 314486.88 | S22: 0 | T22: 36746721.34 | U22: -198.67 | V22: -185082.55 | W22: -1871384.57 | X22: -2056467.12 | Y22: =SUM(Y9:Y20) -> 9644232.663
G24: Regional- og lokalkørsel | H24: 113 | I24: 2092.99 | J24: 1289034.11 | K24: 269291.67 | L24: 0 | M24: 0 | N24: 1558325.78 | O24: 2103.26 | P24: 1267642.94 | Q24: 308794.84 | R24: 0 | S24: 0 | T24: 1576437.78 | U24: 10.27 | V24: -33612.74 | W24: 51724.74 | X24: 18112 | Y24: 1175467.747
H25: 215 | I25: 640.45 | J25: 405674.9 | K25: 81513.03 | L25: 100991.21 | M25: 26487.17 | N25: 614666.31 | O25: 692.6 | P25: 432779.55 | Q25: 65357.56 | R25: 65991.94 | S25: 0 | T25: 564129.05 | U25: 52.15 | V25: -15672.45 | W25: -34864.81 | X25: -50537.26 | Y25: 226158.2191
H26: 31 SI | I26: 1991.85 | J26: 1153479.87 | K26: 495935.41 | L26: 0 | M26: 0 | N26: 1649415.27 | O26: 2015.16 | P26: 1224782.97 | Q26: 360309.31 | R26: 0 | S26: 0 | T26: 1585092.28 | U26: 23.31 | V26: -33797.26 | W26: -30525.73 | X26: -64322.99 | Y26: 249414.4815
H27: 313 | I27: 3203.48 | J27: 2224675.79 | K27: 600939.35 | L27: 260396.64 | M27: 0 | N27: 3086011.78 | O27: 3215.11 | P27: 2113900.89 | Q27: 497744.86 | R27: 277754.41 | S27: 0 | T27: 2889400.16 | U27: 11.63 | V27: -58372.56 | W27: -138239.06 | X27: -196611.62 | Y27: 2371973.117
H28: 32 SI | I28: 1982.81 | J28: 1162292.71 | K28: 564641.86 | L28: 0 | M28: 0 | N28: 1726934.57 | O28: 1987.19 | P28: 1213431.21 | Q28: 379586.68 | R28: 0 | S28: 0 | T28: 1593017.89 | U28: 4.38 | V28: -33966.27 | W28: -99950.41 | X28: -133916.68 | Y28: 334927.9431
H29: 34 SI | I29: 832.7 | J29: 482348.73 | K29: 514862.83 | L29: 0 | M29: 0 | N29: 997211.56 | O29: 745.67 | P29: 447426.59 | Q29: 342482.33 | R29: 0 | S29: 0 | T29: 789908.92 | U29: -87.03 | V29: -16842.42 | W29: -190460.22 | X29: -207302.64 | Y29: 127321.6803
H30: 35 SI | I30: 520.67 | J30: 301596.73 | K30: 257431.41 | L30: 0 | M30: 0 | N30: 559028.14 | O30: 520.67 | P30: 295775.21 | Q30: 248190.38 | R30: 0 | S30: 0 | T30: 543965.59 | U30: 0 | V30: -11598.42 | W30: -3464.13 | X30: -15062.55 | Y30: 11144.8221
H31: 60 | I31: 0 | J31: 0 | K31: 0 | L31: 10010.43 | M31: 0 | N31: 10010.43 | O31: 0 | P31: 0 | Q31: 0 | R31: 13425.67 | S31: 0 | T31: 13425.67 | U31: 0 | V31: -286.26 | W31: 3701.5 | X31: 3415.24
H32: 801 | I32: 1597.63 | J32: 910218.87 | K32: 564143.64 | L32: 2502.61 | M32: 0 | N32: 1476865.12 | O32: 1579.93 | P32: 947008.74 | Q32: 386083.73 | R32: 55804.74 | S32: 0 | T32: 1388897.21 | U32: -17.7 | V32: -30390.64 | W32: -57577.27 | X32: -87967.91 | Y32: 273005.3307
H33: 802 | I33: 1198.68 | J33: 681987.26 | K33: 483897.36 | L33: 0 | M33: 0 | N33: 1165884.62 | O33: 1190 | P33: 711497.91 | Q33: 330402.73 | R33: 0 | S33: 0 | T33: 1041900.64 | U33: -8.68 | V33: -22215.36 | W33: -101768.62 | X33: -123983.98 | Y33: 90903.60591
H34: 803 | I34: 936.79 | J34: 533918.68 | K34: 456082.17 | L34: 0 | M34: 0 | N34: 990000.85 | O34: 929.44 | P34: 555889.23 | Q34: 311299.66 | R34: 0 | S34: 0 | T34: 867188.89 | U34: -7.35 | V34: -18490.17 | W34: -104321.79 | X34: -122811.96 | Y34: 121827.9689
H35: 804 | I35: 1061.02 | J35: 604718.3 | K35: 469989.77 | L35: 0 | M35: 0 | N35: 1074708.06 | O35: 1048.83 | P35: 625504.06 | Q35: 320851.19 | R35: 0 | S35: 0 | T35: 946355.25 | U35: -12.19 | V35: -20178.15 | W35: -108174.66 | X35: -128352.81 | Y35: 89482.28589
H36: 805 | I36: 408.83 | J36: 233009.65 | K36: 197803.61 | L36: 0 | M36: 0 | N36: 430813.25 | O36: 408 | P36: 226267.03 | Q36: 190392.07 | R36: 0 | S36: 0 | T36: 416659.1 | U36: -0.83 | V36: -8883.98 | W36: -5270.17 | X36: -14154.15 | Y36: 51251.73172
H37: 806 | I37: 311.67 | J37: 176554.6 | K37: 149286.02 | L37: 0 | M37: 0 | N37: 325840.62 | O37: 311.67 | P37: 173063.77 | Q37: 144315.65 | R37: 0 | S37: 0 | T37: 317379.42 | U37: 0 | V37: -6767.15 | W37: -1694.05 | X37: -8461.2 | Y37: 6937.246311
U38: 0 | V38: 0 | W38: 0 | X38: 0
U39: 0 | V39: 0 | W39: 0 | X39: 0
G40: Regional- og lokalkørsel i alt | I40: 16779.57 | J40: 10159510.2 | K40: 5105818.13 | L40: 373900.89 | M40: 26487.17 | N40: 15665716.36 | O40: 16747.53 | P40: 10234970.1 | Q40: 3885810.99 | R40: 412976.76 | S40: 0 | T40: 14533757.85 | U40: -32.04 | V40: -311073.83 | W40: -820884.68 | X40: -1131958.51 | Y40: =SUM(Y24:Y37) -> 5129816.179
G42: Natbus- og arrangementskørsel | H42: 823 | I42: 26.42 | J42: 16277.27 | K42: 3814.82 | L42: 0 | M42: 0 | N42: 20092.09 | O42: 42.25 | P42: 25253.71 | Q42: 3879.33 | R42: 0 | S42: 0 | T42: 29133.04 | U42: 15.83 | V42: -621.17 | W42: 9662.12 | X42: 9040.95
G44: Natbus- og arrangementskørsel i alt | I44: 26.42 | J44: 16277.27 | K44: 3814.82 | L44: 0 | M44: 0 | N44: 20092.09 | O44: 42.25 | P44: 25253.71 | Q44: 3879.33 | R44: 0 | S44: 0 | T44: 29133.04 | U44: 15.83 | V44: -621.17 | W44: 9662.12 | X44: 9040.95 | Y44: =Y42 -> 0
G46: Ikke rutefordelt | U46: 0 | V46: 0 | W46: 0 | X46: 0 | Y46: 441643.75
G47: Faste køretøjsomkostninger | H47: IR | I47: 0 | J47: 0 | K47: 0 | L47: 0 | M47: 0 | N47: 0 | O47: 0 | P47: 0 | Q47: 723048.83 | R47: 0 | S47: 0 | T47: 723048.83 | U47: 0 | V47: -5297.06 | W47: 728345.89 | X47: 723048.83
G48: Administrationstillæg | H48: IR | I48: 0 | J48: 0 | K48: 0 | L48: 0 | M48: 67819.35 | N48: 67819.35 | O48: 0 | P48: 0 | Q48: 0 | R48: 0 | S48: 450174.13 | T48: 450174.13 | U48: 0 | V48: -9783.99 | W48: 392138.77 | X48: 382354.78
G49: Ekstrakørsel | H49: Grp. | I49: 0 | J49: 0 | K49: 0 | L49: 0 | M49: 0 | N49: 0 | O49: 0 | P49: 0 | Q49: 0 | R49: 23967.1 | S49: 0 | T49: 23967.1 | U49: 0 | V49: -511.03 | W49: 24478.13 | X49: 23967.1
G50: Omkørsel | H50: IR | I50: 0 | J50: 0 | K50: 0 | L50: 0 | M50: 0 | N50: 0 | O50: 0 | P50: 0 | Q50: 0 | R50: 17613.18 | S50: 0 | T50: 17613.18 | U50: 0 | V50: -375.55 | W50: 17988.73 | X50: 17613.18
G51: Bonus | H51: IR | I51: 0 | J51: 0 | K51: 0 | L51: 0 | M51: 21288.24 | N51: 21288.24 | O51: 0 | P51: 0 | Q51: 0 | R51: 0 | S51: 20032.6 | T51: 20032.6 | U51: 0 | V51: -427.13 | W51: -828.51 | X51: -1255.64
U52: 0 | V52: 0 | W52: 0 | X52: 0
U53: 0 | V53: 0 | W53: 0 | X53: 0
G54: Ikke rutefordelt i alt | I54: 0 | J54: 0 | K54: 0 | L54: 0 | M54: 89107.59 | N54: 89107.59 | O54: 0 | P54: 0 | Q54: 723048.83 | R54: 41580.28 | S54: 470206.73 | T54: 1234835.84 | U54: 0 | V54: -16394.76 | W54: 1162123.01 | X54: 1145728.25 | Y54: =+Y46 -> 441643.75
G56: Total, Silkeborg Kommune | I56: 61292.16 | J56: 34680148.4 | K56: 19319896.67 | L56: 462464.69 | M56: 115594.76 | N56: 54578104.5 | O56: 61077.28 | P56: 33842890.85 | Q56: 17462306.57 | R56: 769043.92 | S56: 470206.73 | T56: 52544448.07 | U56: -214.88 | V56: -513172.31 | W56: -1520484.12 | X56: -2033656.43 | Y56: =Y22+Y40+Y44+Y54 -> 15215692.59

Sheet SKA
G3: =titel -> Regnskab 2025
G7: Skanderborg Kommune | I7: Budget 2025 (2025B-1) | O7: Regnskab 2025 (2025R) | U7: Afvigelse (2025R-2025B-1) | Y7: 2025R
G8: Rutetype | H8: Rute | I8: Timer | J8: Timeafhængige omkostninger | K8: Busafhængige omkostninger | L8: Ekstrakørsel | M8: Andet | N8: Udgifter i alt | O8: Timer | P8: Timeafhængige omkostninger | Q8: Busafhængige omkostninger | R8: Ekstrakørsel | S8: Andet | T8: Udgifter i alt | U8: Timer | V8: Anslået indekseffekt | W8: Anden afvigelse | X8: Udgifter i alt | Y8: Indtægter
G9: Bybus | H9: 21 SKA | I9: 6749.47 | J9: 3962283.98 | K9: 1529222.47 | L9: 0 | M9: 0 | N9: 5491506.45 | O9: 6736.75 | P9: 3734705.42 | Q9: 1466495.79 | R9: 0 | S9: 0 | T9: 5201201.21 | U9: -12.72 | V9: -223747.03 | W9: -66558.21 | X9: -290305.24 | Y9: 1757015.186
G11: Bybus i alt | I11: 6749.47 | J11: 3962283.98 | K11: 1529222.47 | L11: 0 | M11: 0 | N11: 5491506.45 | O11: 6736.75 | P11: 3734705.42 | Q11: 1466495.79 | R11: 0 | S11: 0 | T11: 5201201.21 | U11: -12.72 | V11: -223747.03 | W11: -66558.21 | X11: -290305.24 | Y11: =Y9 -> 1757015.186
G13: Regional- og lokalkørsel | H13: 107 | I13: 1345.64 | J13: 904812.9 | K13: 516103.99 | L13: 0 | M13: 0 | N13: 1420916.89 | O13: 1362.71 | P13: 898580.52 | Q13: 496220.66 | R13: 0 | S13: 0 | T13: 1394801.18 | U13: 17.07 | V13: -29739.9 | W13: 3624.19 | X13: -26115.71 | Y13: 415756.7369
H14: 1112 | I14: 79.51 | J14: 49968.28 | K14: 10904.16 | L14: 0 | M14: 0 | N14: 60872.44 | O14: 78.55 | P14: 47589.41 | Q14: 10409.28 | R14: 0 | S14: 0 | T14: 57998.69 | U14: -0.96 | V14: -1866.2 | W14: -1007.55 | X14: -2873.75 | Y14: 24919.7179
H15: 309 | I15: 4530.69 | J15: 3459540.63 | K15: 737588.25 | L15: 464541.86 | M15: 0 | N15: 4661670.74 | O15: 4494.06 | P15: 3308567.25 | Q15: 704672.4 | R15: 481454.25 | S15: 0 | T15: 4494693.9 | U15: -36.63 | V15: -95835.7 | W15: -71141.14 | X15: -166976.84 | Y15: 1919237.746
H16: 311 | I16: 818.45 | J16: 721653.43 | K16: 115177.75 | L16: 182210.54 | M16: 0 | N16: 1019041.71 | O16: 915.06 | P16: 663870.33 | Q16: 244386.67 | R16: 129605.72 | S16: 0 | T16: 1037862.72 | U16: 96.61 | V16: -22129.26 | W16: 40950.27 | X16: 18821.01 | Y16: 817093.2776
H17: 313 | I17: 0 | J17: 0 | K17: 0 | L17: 0 | M17: 0 | N17: 0 | O17: 0 | P17: 0 | Q17: 0 | R17: 126027.36 | S17: 0 | T17: 126027.36 | U17: 0 | V17: -2687.15 | W17: 128714.51 | X17: 126027.36
H18: 330 | I18: 2373.9 | J18: 1831162.04 | K18: 614409.41 | L18: 0 | M18: 0 | N18: 2445571.45 | O18: 2409.62 | P18: 1794050.02 | Q18: 602895.66 | R18: 0 | S18: 0 | T18: 2396945.68 | U18: 35.72 | V18: -51107.59 | W18: 2481.82 | X18: -48625.77 | Y18: 558000.314
H19: 502 | I19: 998.68 | J19: 626177.6 | K19: 237903.48 | L19: 0 | M19: 0 | N19: 864081.08 | O19: 974.45 | P19: 611642.5 | Q19: 320552.21 | R19: 0 | S19: 0 | T19: 932194.71 | U19: -24.23 | V19: -25278.65 | W19: 93392.28 | X19: 68113.63 | Y19: 330716.2487
U20: 0 | V20: 0 | W20: 0 | X20: 0
G21: Regional- og lokalkørsel i alt | I21: 10146.87 | J21: 7593314.88 | K21: 2232087.04 | L21: 646752.4 | M21: 0 | N21: 10472154.31 | O21: 10234.45 | P21: 7324300.03 | Q21: 2379136.88 | R21: 737087.33 | S21: 0 | T21: 10440524.24 | U21: 87.58 | V21: -228644.45 | W21: 197014.38 | X21: -31630.07 | Y21: =SUM(Y13:Y19) -> 4065724.042
G23: Natbus- og arrangementskørsel | H23: 25S | I23: 246.69 | J23: 216937.43 | K23: 0 | L23: 0 | M23: 0 | N23: 216937.43 | O23: 242.75 | P23: 232571.49 | Q23: 0 | R23: 0 | S23: 0 | T23: 232571.49 | U23: -3.94 | V23: -4958.88 | W23: 20592.94 | X23: 15634.06 | Y23: 379192.9285
H24: 26S | I24: 188.37 | J24: 165655.89 | K24: 0 | L24: 0 | M24: 0 | N24: 165655.89 | O24: 185.37 | P24: 177594.25 | Q24: 0 | R24: 0 | S24: 0 | T24: 177594.25 | U24: -3 | V24: -3786.66 | W24: 15725.02 | X24: 11938.36 | Y24: 378331.918
H25: 309S | I25: 45.32 | J25: 38602.3 | K25: 0 | L25: 0 | M25: 0 | N25: 38602.3 | O25: 55.33 | P25: 52177.67 | Q25: 0 | R25: 0 | S25: 0 | T25: 52177.67 | U25: 10.01 | V25: -1112.53 | W25: 14687.9 | X25: 13575.37 | Y25: 62065.61406
H26: 311S | I26: 19.65 | J26: 16733.43 | K26: 0 | L26: 0 | M26: 0 | N26: 16733.43 | O26: 6 | P26: 5657.82 | Q26: 0 | R26: 0 | S26: 0 | T26: 5657.82 | U26: -13.65 | V26: -120.64 | W26: -10954.97 | X26: -11075.61 | Y26: 4326.590747
G28: Natbus- og arrangementskørsel i alt | I28: 500.03 | J28: 437929.05 | K28: 0 | L28: 0 | M28: 0 | N28: 437929.05 | O28: 489.45 | P28: 468001.23 | Q28: 0 | R28: 0 | S28: 0 | T28: 468001.23 | U28: -10.58 | V28: -9978.71 | W28: 40050.89 | X28: 30072.18 | Y28: =SUM(Y23:Y26) -> 823917.0513
G30: Ikke rutefordelt | U30: 0 | V30: 0 | W30: 0 | X30: 0 | Y30: 62871.15411
G31: Faste køretøjsomkostninger | H31: IR | I31: 0 | J31: 0 | K31: 0 | L31: 0 | M31: 0 | N31: 0 | O31: 0 | P31: 0 | Q31: 40951.7 | R31: 0 | S31: 0 | T31: 40951.7 | U31: 0 | V31: -1170.24 | W31: 42121.94 | X31: 40951.7
G32: Administrationstillæg | H32: IR | I32: 0 | J32: 0 | K32: 0 | L32: 0 | M32: 623706.98 | N32: 623706.98 | O32: 0 | P32: 0 | Q32: 0 | R32: 0 | S32: 624810.76 | T32: 624810.76 | U32: 0 | V32: -26878.31 | W32: 27982.09 | X32: 1103.78
G33: Ekstrakørsel | H33: Grp. | I33: 0 | J33: 0 | K33: 0 | L33: 0 | M33: 0 | N33: 0 | O33: 0 | P33: 0 | Q33: 0 | R33: 51018.85 | S33: 0 | T33: 51018.85 | U33: 0 | V33: -1087.83 | W33: 52106.68 | X33: 51018.85
G34: Omkørsel | H34: IR | I34: 0 | J34: 0 | K34: 0 | L34: 0 | M34: 0 | N34: 0 | O34: 0 | P34: 0 | Q34: 0 | R34: 39886.12 | S34: 0 | T34: 39886.12 | U34: 0 | V34: -850.45 | W34: 40736.57 | X34: 39886.12
G35: Bonus | H35: IR | I35: 0 | J35: 0 | K35: 0 | L35: 0 | M35: 10751.24 | N35: 10751.24 | O35: 0 | P35: 0 | Q35: 0 | R35: 0 | S35: 11090.32 | T35: 11090.32 | U35: 0 | V35: -236.47 | W35: 575.55 | X35: 339.08
G36: Andre udgifter | H36: IR | I36: 0 | J36: 0 | K36: 0 | L36: 0 | M36: 0 | N36: 0 | O36: 0 | P36: 0 | Q36: 0 | R36: 0 | S36: 44668.23 | T36: 44668.23 | U36: 0 | V36: -952.42 | W36: 45620.65 | X36: 44668.23
G37: Ikke rutefordelt i alt | I37: 0 | J37: 0 | K37: 0 | L37: 0 | M37: 634458.22 | N37: 634458.22 | O37: 0 | P37: 0 | Q37: 40951.7 | R37: 90904.97 | S37: 680569.31 | T37: 812425.98 | U37: 0 | V37: -31175.72 | W37: 209143.48 | X37: 177967.76 | Y37: =+Y30 -> 62871.15411
G39: Dublering med B-kontrakt | H39: 309 | I39: 0 | J39: 656520 | K39: 0 | L39: 0 | M39: 0 | N39: 656520 | O39: 0 | P39: 698016.56 | Q39: 0 | R39: 0 | S39: 0 | T39: 698016.56 | U39: 0 | V39: -14883.08 | W39: 56379.64 | X39: 41496.56
H40: 311 | I40: 0 | J40: 288360 | K40: 0 | L40: 0 | M40: 0 | N40: 288360 | O40: 0 | P40: 291759.52 | Q40: 0 | R40: 0 | S40: 0 | T40: 291759.52 | U40: 0 | V40: -6220.89 | W40: 9620.41 | X40: 3399.52
U41: 0 | V41: 0 | W41: 0 | X41: 0
G42: Dublering med B-kontrakt i alt | I42: 0 | J42: 944880 | K42: 0 | L42: 0 | M42: 0 | N42: 944880 | O42: 0 | P42: 989776.08 | Q42: 0 | R42: 0 | S42: 0 | T42: 989776.08 | U42: 0 | V42: -21103.97 | W42: 66000.05 | X42: 44896.08 | Y42: =SUM(Y39:Y40) -> 0
G44: Skolekørsel | H44: 410 | I44: 1481.27 | J44: 1657546.82 | K44: 0 | L44: 0 | M44: 0 | N44: 1657546.82 | O44: 1454.35 | P44: 1600630.58 | Q44: 0 | R44: 0 | S44: 0 | T44: 1600630.58 | U44: -26.92 | V44: -34128.59 | W44: -22787.65 | X44: -56916.24
H45: 411 | I45: 585.48 | J45: 867301.51 | K45: 0 | L45: 0 | M45: 0 | N45: 867301.51 | O45: 708.42 | P45: 955187.2 | Q45: 0 | R45: 0 | S45: 0 | T45: 955187.2 | U45: 122.94 | V45: -20366.46 | W45: 108252.15 | X45: 87885.69
H46: 412 | I46: 409.84 | J46: 712351.45 | K46: 0 | L46: 0 | M46: 0 | N46: 712351.45 | O46: 452.18 | P46: 733842.34 | Q46: 0 | R46: 0 | S46: 0 | T46: 733842.34 | U46: 42.34 | V46: -15646.96 | W46: 37137.85 | X46: 21490.89
H47: 413 | I47: 501.56 | J47: 793269.81 | K47: 0 | L47: 0 | M47: 0 | N47: 793269.81 | O47: 492.88 | P47: 768859.06 | Q47: 0 | R47: 0 | S47: 0 | T47: 768859.06 | U47: -8.68 | V47: -16393.58 | W47: -8017.17 | X47: -24410.75
H48: 420 | I48: 1138.61 | J48: 875490.11 | K48: 0 | L48: 0 | M48: 0 | N48: 875490.11 | O48: 1027.98 | P48: 801356.42 | Q48: 0 | R48: 0 | S48: 0 | T48: 801356.42 | U48: -110.63 | V48: -17086.49 | W48: -57047.2 | X48: -74133.69
H49: 421 | I49: 1108.46 | J49: 859956.68 | K49: 0 | L49: 0 | M49: 0 | N49: 859956.68 | O49: 1078.23 | P49: 826708.81 | Q49: 0 | R49: 0 | S49: 0 | T49: 826708.81 | U49: -30.23 | V49: -17627.05 | W49: -15620.82 | X49: -33247.87
H50: 422 | I50: 981.84 | J50: 794716.27 | K50: 0 | L50: 0 | M50: 0 | N50: 794716.27 | O50: 998.7 | P50: 786570.15 | Q50: 0 | R50: 0 | S50: 0 | T50: 786570.15 | U50: 16.86 | V50: -16771.22 | W50: 8625.1 | X50: -8146.12
H51: 423 | I51: 1122.53 | J51: 867205.61 | K51: 0 | L51: 0 | M51: 0 | N51: 867205.61 | O51: 1183.84 | P51: 880228.78 | Q51: 0 | R51: 0 | S51: 0 | T51: 880228.78 | U51: 61.31 | V51: -18768.2 | W51: 31791.37 | X51: 13023.17
H52: 425 | I52: 489.41 | J52: 541003.58 | K52: 0 | L52: 0 | M52: 0 | N52: 541003.58 | O52: 418.7 | P52: 493625.09 | Q52: 0 | R52: 0 | S52: 0 | T52: 493625.09 | U52: -70.71 | V52: -10525.06 | W52: -36853.43 | X52: -47378.49
H53: 450 | I53: 743.7 | J53: 767087.99 | K53: 0 | L53: 0 | M53: 0 | N53: 767087.99 | O53: 773.92 | P53: 774093.97 | Q53: 0 | R53: 0 | S53: 0 | T53: 774093.97 | U53: 30.22 | V53: -16505.2 | W53: 23511.18 | X53: 7005.98
H54: 451 | I54: 475.36 | J54: 568477.94 | K54: 0 | L54: 0 | M54: 0 | N54: 568477.94 | O54: 493.56 | P54: 570493.06 | Q54: 0 | R54: 0 | S54: 0 | T54: 570493.06 | U54: 18.2 | V54: -12164.03 | W54: 14179.15 | X54: 2015.12
H55: 452 | I55: 821.08 | J55: 824365.05 | K55: 0 | L55: 0 | M55: 0 | N55: 824365.05 | O55: 818.9 | P55: 806783.66 | Q55: 0 | R55: 0 | S55: 0 | T55: 806783.66 | U55: -2.18 | V55: -17202.21 | W55: -379.18 | X55: -17581.39
H56: 454 | I56: 504.51 | J56: 590049.82 | K56: 0 | L56: 0 | M56: 0 | N56: 590049.82 | O56: 570.77 | P56: 626139.52 | Q56: 0 | R56: 0 | S56: 0 | T56: 626139.52 | U56: 66.26 | V56: -13350.52 | W56: 49440.22 | X56: 36089.7
H57: 810 | I57: 19.14 | J57: 16880.82 | K57: 0 | L57: 0 | M57: 0 | N57: 16880.82 | O57: 19.75 | P57: 17051.57 | Q57: 0 | R57: 0 | S57: 0 | T57: 17051.57 | U57: 0.61 | V57: -363.57 | W57: 534.32 | X57: 170.75
H58: 811 | I58: 26.34 | J58: 23232.23 | K58: 0 | L58: 0 | M58: 0 | N58: 23232.23 | O58: 27.18 | P58: 23468.19 | Q58: 0 | R58: 0 | S58: 0 | T58: 23468.19 | U58: 0.84 | V58: -500.39 | W58: 736.35 | X58: 235.96
H59: 812 | I59: 14.67 | J59: 12938.64 | K59: 0 | L59: 0 | M59: 0 | N59: 12938.64 | O59: 18.66 | P59: 7422.74 | Q59: 0 | R59: 0 | S59: 0 | T59: 7422.74 | U59: 3.99 | V59: -158.27 | W59: -5357.63 | X59: -5515.9
H60: 813 | I60: 29.33 | J60: 25875.6 | K60: 0 | L60: 0 | M60: 0 | N60: 25875.6 | O60: 23.46 | P60: 20205.63 | Q60: 0 | R60: 0 | S60: 0 | T60: 20205.63 | U60: -5.87 | V60: -430.83 | W60: -5239.14 | X60: -5669.97
H61: 820 | I61: 15 | J61: 7728.45 | K61: 0 | L61: 0 | M61: 0 | N61: 7728.45 | O61: 19 | P61: 9582.04 | Q61: 0 | R61: 0 | S61: 0 | T61: 9582.04 | U61: 4 | V61: -204.31 | W61: 2057.9 | X61: 1853.59
H62: 821 | I62: 42.5 | J62: 164397.24 | K62: 0 | L62: 0 | M62: 0 | N62: 164397.24 | O62: 59.72 | P62: 161457.34 | Q62: 0 | R62: 0 | S62: 0 | T62: 161457.34 | U62: 17.22 | V62: -3442.59 | W62: 502.69 | X62: -2939.9
H63: 822 | I63: 26.15 | J63: 13475.06 | K63: 0 | L63: 0 | M63: 0 | N63: 13475.06 | O63: 28.96 | P63: 13540.35 | Q63: 0 | R63: 0 | S63: 0 | T63: 13540.35 | U63: 2.81 | V63: -288.71 | W63: 354 | X63: 65.29
H64: 826 | I64: 25.06 | J64: 12913.6 | K64: 0 | L64: 0 | M64: 0 | N64: 12913.6 | O64: 25.67 | P64: 11819.76 | Q64: 0 | R64: 0 | S64: 0 | T64: 11819.76 | U64: 0.61 | V64: -252.02 | W64: -841.82 | X64: -1093.84
H65: 830 | I65: 8.43 | J65: 34524.96 | K65: 0 | L65: 0 | M65: 0 | N65: 34524.96 | O65: 11.71 | P65: 40097.89 | Q65: 0 | R65: 0 | S65: 0 | T65: 40097.89 | U65: 3.28 | V65: -854.97 | W65: 6427.9 | X65: 5572.93
H66: 850 | I66: 105.1 | J66: 115870.85 | K66: 0 | L66: 0 | M66: 0 | N66: 115870.85 | O66: 101.4 | P66: 129732.1 | Q66: 0 | R66: 0 | S66: 0 | T66: 129732.1 | U66: -3.7 | V66: -2766.15 | W66: 16627.4 | X66: 13861.25
H67: 851 | I67: 18.93 | J67: 14009.19 | K67: 0 | L67: 0 | M67: 0 | N67: 14009.19 | O67: 19.96 | P67: 9428.3 | Q67: 0 | R67: 0 | S67: 0 | T67: 9428.3 | U67: 1.03 | V67: -201.03 | W67: -4379.86 | X67: -4580.89
H68: 852 | I68: 17.87 | J68: 109796.58 | K68: 0 | L68: 0 | M68: 0 | N68: 109796.58 | O68: 24.96 | P68: 90301.42 | Q68: 0 | R68: 0 | S68: 0 | T68: 90301.42 | U68: 7.09 | V68: -1925.4 | W68: -17569.76 | X68: -19495.16
H69: 853 | I69: 24.18 | J69: 17895.88 | K69: 0 | L69: 0 | M69: 0 | N69: 17895.88 | O69: 21.1 | P69: 15280.65 | Q69: 0 | R69: 0 | S69: 0 | T69: 15280.65 | U69: -3.08 | V69: -325.81 | W69: -2289.42 | X69: -2615.23
H70: 854 | I70: 18.9 | J70: 13989.02 | K70: 0 | L70: 0 | M70: 0 | N70: 13989.02 | O70: 14.18 | P70: 15134.42 | Q70: 0 | R70: 0 | S70: 0 | T70: 15134.42 | U70: -4.72 | V70: -322.7 | W70: 1468.1 | X70: 1145.4
H71: 855 | I71: 26.28 | J71: 19447.71 | K71: 0 | L71: 0 | M71: 0 | N71: 19447.71 | O71: 23.56 | P71: 15222.26 | Q71: 0 | R71: 0 | S71: 0 | T71: 15222.26 | U71: -2.72 | V71: -324.57 | W71: -3900.88 | X71: -4225.45
H72: Bod | I72: 0 | J72: 0 | K72: 0 | L72: 0 | M72: 0 | N72: 0 | O72: 0 | P72: 0 | Q72: 0 | R72: 0 | S72: -1500 | T72: -1500 | U72: 0 | V72: 31.98 | W72: -1531.98 | X72: -1500
U73: 0 | V73: 0 | W73: 0 | X73: 0
U74: 0 | V74: 0 | W74: 0 | X74: 0
G75: Skolekørsel i alt | I75: 10781.53 | J75: 11321798.47 | K75: 0 | L75: 0 | M75: 0 | N75: 11321798.47 | O75: 10911.7 | P75: 11204263.3 | Q75: 0 | R75: 0 | S75: -1500 | T75: 11202763.3 | U75: 130.17 | V75: -238864.91 | W75: 119829.74 | X75: -119035.17
G77: Total, Skanderborg Kommune | I77: 28177.9 | J77: 24260206.38 | K77: 3761309.51 | L77: 646752.4 | M77: 634458.22 | N77: 29302726.5 | O77: 28372.35 | P77: 23721046.06 | Q77: 3886584.37 | R77: 827992.3 | S77: 679069.31 | T77: 29114692.04 | U77: 194.45 | V77: -753514.79 | W77: 565480.33 | X77: -188034.46 | Y77: =Y11+Y21+Y28+Y42+Y37 -> 6709527.433
G78: Udgifter til skolekørsel er for nuværende ikke opdelt i timeafhængige og busafhængige omkostninger. Alle udgifter står således angivet som timeafhængige.

Sheet SKI
G3: =titel -> Regnskab 2025
G7: Skive Kommune | I7: Budget 2025 (2025B-1) | O7: Regnskab 2025 (2025R) | U7: Afvigelse (2025R-2025B-1) | Y7: 2025R
G8: Rutetype | H8: Rute | I8: Timer | J8: Timeafhængige omkostninger | K8: Busafhængige omkostninger | L8: Ekstrakørsel | M8: Andet | N8: Udgifter i alt | O8: Timer | P8: Timeafhængige omkostninger | Q8: Busafhængige omkostninger | R8: Ekstrakørsel | S8: Andet | T8: Udgifter i alt | U8: Timer | V8: Anslået indekseffekt | W8: Anden afvigelse | X8: Udgifter i alt | Y8: Indtægter
G9: Bybus | H9: 401 | I9: 2923.67 | J9: 1674663.07 | K9: 489112.01 | L9: 0 | M9: 0 | N9: 2163775.08 | O9: 2907.6 | P9: 1630861.29 | Q9: 473289.93 | R9: 0 | S9: 0 | T9: 2104151.22 | U9: -16.07 | V9: -46000.48 | W9: -13623.38 | X9: -59623.86 | Y9: 383621.3977
H10: 402 | I10: 1337.86 | J10: 766321.16 | K10: 222905.05 | L10: 0 | M10: 0 | N10: 989226.22 | O10: 1330.43 | P10: 745504.63 | Q10: 220574.33 | R10: 0 | S10: 0 | T10: 966078.96 | U10: -7.43 | V10: -21120.21 | W10: -2027.05 | X10: -23147.26 | Y10: 141224.3861
H11: 402B | I11: 1423.91 | J11: 815603.12 | K11: 238864.1 | L11: 0 | M11: 0 | N11: 1054467.22 | O11: 1416.36 | P11: 794089.02 | Q11: 231563.49 | R11: 0 | S11: 0 | T11: 1025652.51 | U11: -7.55 | V11: -22422.58 | W11: -6392.13 | X11: -28814.71 | Y11: 104387.2179
H12: 403 | I12: 1722.33 | J12: 986531.33 | K12: 327186.84 | L12: 0 | M12: 0 | N12: 1313718.17 | O12: 1712.92 | P12: 960296.05 | Q12: 318715.72 | R12: 0 | S12: 0 | T12: 1279011.77 | U12: -9.41 | V12: -27961.47 | W12: -6744.93 | X12: -34706.4 | Y12: 317489.2005
H13: 404 | I13: 1815.15 | J13: 1039709.92 | K13: 343005.35 | L13: 0 | M13: 0 | N13: 1382715.27 | O13: 1803.23 | P13: 1010273.9 | Q13: 341198.99 | R13: 0 | S13: 0 | T13: 1351472.89 | U13: -11.92 | V13: -29545.6 | W13: -1696.78 | X13: -31242.38 | Y13: 408663.4763
U14: 0 | V14: 0 | W14: 0 | X14: 0
G15: Bybus i alt | I15: 9222.92 | J15: 5282828.6 | K15: 1621073.35 | L15: 0 | M15: 0 | N15: 6903901.96 | O15: 9170.54 | P15: 5141024.89 | Q15: 1585342.46 | R15: 0 | S15: 0 | T15: 6726367.35 | U15: -52.38 | V15: -147050.34 | W15: -30484.27 | X15: -177534.61 | Y15: =SUM(Y9:Y13) -> 1355385.678
G17: Regional- og lokalkørsel | H17: 1040 | I17: 255.18 | J17: 145839.77 | K17: 59566.09 | L17: 0 | M17: 0 | N17: 205405.86 | O17: 253.23 | P17: 139305.1 | Q17: 49568.7 | R17: 0 | S17: 0 | T17: 188873.8 | U17: -1.95 | V17: -6768.88 | W17: -9763.18 | X17: -16532.06 | Y17: 51954.6419
H18: 1041 | I18: 1311.47 | J18: 855241.92 | K18: 227524.65 | L18: 0 | M18: 0 | N18: 1082766.57 | O18: 1302.5 | P18: 833256.03 | Q18: 209375.08 | R18: 0 | S18: 0 | T18: 1042631.11 | U18: -8.97 | V18: -22246.14 | W18: -17889.32 | X18: -40135.46 | Y18: 63144.25675
H19: 410 | I19: 2454.79 | J19: 1251259.63 | K19: 701568.37 | L19: 0 | M19: 0 | N19: 1952828 | O19: 2440.83 | P19: 1219787.02 | Q19: 649543.74 | R19: 0 | S19: 0 | T19: 1869330.76 | U19: -13.96 | V19: -40866.89 | W19: -42630.35 | X19: -83497.24 | Y19: 220814.0052
H20: 411 | I20: 2696.52 | J20: 1387598.9 | K20: 1064580.14 | L20: 0 | M20: 0 | N20: 2452179.03 | O20: 2681.67 | P20: 1352753.35 | Q20: 982923.23 | R20: 0 | S20: 0 | T20: 2335676.58 | U20: -14.85 | V20: -51062.04 | W20: -65440.41 | X20: -116502.45 | Y20: 391604.6216
H21: 412 | I21: 529.17 | J21: 286267.69 | K21: 526658.61 | L21: 0 | M21: 0 | N21: 812926.3 | O21: 524.43 | P21: 272882.91 | Q21: 472561.29 | R21: 0 | S21: 0 | T21: 745444.2 | U21: -4.74 | V21: -16296.73 | W21: -51185.37 | X21: -67482.1 | Y21: 6730.434142
H22: 420 | I22: 6977.53 | J22: 4390536.66 | K22: 677103.71 | L22: 0 | M22: 0 | N22: 5067640.37 | O22: 6997.18 | P22: 4345324.79 | Q22: 1463351.31 | R22: 0 | S22: 0 | T22: 5808676.1 | U22: 19.65 | V22: -123852.37 | W22: 864888.1 | X22: 741035.73 | Y22: 896226.652
H23: 441 | I23: 1739.27 | J23: 1245500.69 | K23: 191313.21 | L23: 0 | M23: 0 | N23: 1436813.9 | O23: 1707.17 | P23: 1213282.65 | Q23: 402814.41 | R23: 0 | S23: 0 | T23: 1616097.06 | U23: -32.1 | V23: -34458.37 | W23: 213741.53 | X23: 179283.16 | Y23: 82638.75046
H24: 443 | I24: 4402.54 | J24: 2346443.54 | K24: 1155711.29 | L24: 0 | M24: 0 | N24: 3502154.83 | O24: 4376.8 | P24: 2278817.09 | Q24: 1152575.93 | R24: 0 | S24: 0 | T24: 3431393.02 | U24: -25.74 | V24: -75016.35 | W24: 4254.54 | X24: -70761.81 | Y24: 730908.0245
H25: 444 | I25: 4584.8 | J25: 2446420.83 | K25: 1487827.69 | L25: 0 | M25: 0 | N25: 3934248.52 | O25: 4561.27 | P25: 2372436.41 | Q25: 1426715.04 | R25: 0 | S25: 0 | T25: 3799151.45 | U25: -23.53 | V25: -83056.21 | W25: -52040.86 | X25: -135097.07 | Y25: 888660.0697
H26: 740 | I26: 221.78 | J26: 127263.25 | K26: 51232.32 | L26: 0 | M26: 0 | N26: 178495.57 | O26: 208.21 | P26: 116305.27 | Q26: 109990.93 | R26: 0 | S26: 0 | T26: 226296.2 | U26: -13.57 | V26: -9734.88 | W26: 57535.51 | X26: 47800.63 | Y26: 50888.62521
U27: 0 | V27: 0 | W27: 0 | X27: 0
U28: 0 | V28: 0 | W28: 0 | X28: 0
G29: Regional- og lokalkørsel i alt | I29: 25173.05 | J29: 14482372.88 | K29: 6143086.08 | L29: 0 | M29: 0 | N29: 20625458.95 | O29: 25053.29 | P29: 14144150.62 | Q29: 6919419.66 | R29: 0 | S29: 0 | T29: 21063570.28 | U29: -119.76 | V29: -463358.86 | W29: 901470.19 | X29: 438111.33 | Y29: =SUM(Y17:Y26) -> 3383570.082
G31: Natbus- og arrangementskørsel | H31: 404S | I31: 0 | J31: 0 | K31: 0 | L31: 0 | M31: 0 | N31: 0 | O31: 0 | P31: 0 | Q31: 0 | R31: 20047.32 | S31: 0 | T31: 20047.32 | U31: 0 | V31: -438.27 | W31: 20485.59 | X31: 20047.32
H32: 411S | I32: 0 | J32: 0 | K32: 0 | L32: 0 | M32: 0 | N32: 0 | O32: 0 | P32: 0 | Q32: 0 | R32: 9033.75 | S32: 0 | T32: 9033.75 | U32: 0 | V32: -197.49 | W32: 9231.24 | X32: 9033.75 | Y32: 2047.178496
H33: 420S | I33: 0 | J33: 0 | K33: 0 | L33: 0 | M33: 0 | N33: 0 | O33: 0 | P33: 0 | Q33: 0 | R33: 9867.52 | S33: 0 | T33: 9867.52 | U33: 0 | V33: -210.39 | W33: 10077.91 | X33: 9867.52 | Y33: 730.472941
H34: 443S | I34: 0 | J34: 0 | K34: 0 | L34: 0 | M34: 0 | N34: 0 | O34: 0 | P34: 0 | Q34: 0 | R34: 8291.04 | S34: 0 | T34: 8291.04 | U34: 0 | V34: -181.26 | W34: 8472.3 | X34: 8291.04 | Y34: 866.9371828
H35: 740S | I35: 0 | J35: 0 | K35: 0 | L35: 0 | M35: 0 | N35: 0 | O35: 0 | P35: 0 | Q35: 0 | R35: 4145.52 | S35: 0 | T35: 4145.52 | U35: 0 | V35: -90.63 | W35: 4236.15 | X35: 4145.52 | Y35: 1017.045727
G37: Natbus- og arrangementskørsel i alt | I37: 0 | J37: 0 | K37: 0 | L37: 0 | M37: 0 | N37: 0 | O37: 0 | P37: 0 | Q37: 0 | R37: 51385.15 | S37: 0 | T37: 51385.15 | U37: 0 | V37: -1118.04 | W37: 52503.19 | X37: 51385.15 | Y37: =SUM(Y31:Y35) -> 4661.634346
G39: Ikke rutefordelt | U39: 0 | V39: 0 | W39: 0 | X39: 0 | Y39: 606811.1695
G40: Faste køretøjsomkostninger | H40: IR | I40: 0 | J40: 0 | K40: 0 | L40: 0 | M40: 0 | N40: 0 | O40: 0 | P40: 0 | Q40: 198469.54 | R40: 0 | S40: 0 | T40: 198469.54 | U40: 0 | V40: -4322.91 | W40: 202792.45 | X40: 198469.54
G41: Omkørsel | H41: IR | I41: 0 | J41: 0 | K41: 0 | L41: 0 | M41: 0 | N41: 0 | O41: 0 | P41: 0 | Q41: 0 | R41: 458.25 | S41: 0 | T41: 458.25 | U41: 0 | V41: -10.02 | W41: 468.27 | X41: 458.25
G42: Bonus | H42: IR | I42: 0 | J42: 0 | K42: 0 | L42: 0 | M42: 330435.74 | N42: 330435.74 | O42: 0 | P42: 0 | Q42: 0 | R42: 0 | S42: 355914.27 | T42: 355914.27 | U42: 0 | V42: -6161.24 | W42: 31639.77 | X42: 25478.53
U43: 0 | V43: 0 | W43: 0 | X43: 0
G44: Ikke rutefordelt i alt | I44: 0 | J44: 0 | K44: 0 | L44: 0 | M44: 330435.74 | N44: 330435.74 | O44: 0 | P44: 0 | Q44: 198469.54 | R44: 458.25 | S44: 355914.27 | T44: 554842.06 | U44: 0 | V44: -10494.17 | W44: 234900.49 | X44: 224406.32 | Y44: =+Y39 -> 606811.1695
G46: Total, Skive Kommune | I46: 34395.97 | J46: 19765201.48 | K46: 7764159.43 | L46: 0 | M46: 330435.74 | N46: 27859796.65 | O46: 34223.83 | P46: 19285175.51 | Q46: 8703231.66 | R46: 51843.4 | S46: 355914.27 | T46: 28396164.84 | U46: -172.14 | V46: -622021.41 | W46: 1158389.6 | X46: 536368.19 | Y46: =Y15+Y29+Y37+Y44 -> 5350428.564

Sheet STR
G3: =titel -> Regnskab 2025
G7: Struer Kommune | I7: Budget 2025 (2025B-1) | O7: Regnskab 2025 (2025R) | U7: Afvigelse (2025R-2025B-1) | Y7: 2025R
G8: Rutetype | H8: Rute | I8: Timer | J8: Timeafhængige omkostninger | K8: Busafhængige omkostninger | L8: Ekstrakørsel | M8: Andet | N8: Udgifter i alt | O8: Timer | P8: Timeafhængige omkostninger | Q8: Busafhængige omkostninger | R8: Ekstrakørsel | S8: Andet | T8: Udgifter i alt | U8: Timer | V8: Anslået indekseffekt | W8: Anden afvigelse | X8: Udgifter i alt | Y8: Indtægter
G9: Bybus | H9: 1 ST | I9: 1255.38 | J9: 759390.49 | K9: 354605.07 | L9: 0 | M9: 0 | N9: 1113995.56 | O9: 1270.22 | P9: 726222.55 | Q9: 219350.74 | R9: 11721.72 | S9: 0 | T9: 957295.01 | U9: 14.84 | V9: -41181.24 | W9: -115519.31 | X9: -156700.55
H10: 2 ST | I10: 790.89 | J10: 478492.08 | K10: 223401.19 | L10: 0 | M10: 0 | N10: 701893.28 | O10: 804.17 | P10: 467203.18 | Q10: 141115.64 | R10: 0 | S10: 0 | T10: 608318.82 | U10: 13.28 | V10: -26168.86 | W10: -67405.6 | X10: -93574.46
U11: 0 | V11: 0 | W11: 0 | X11: 0
G12: Bybus i alt | I12: 2046.27 | J12: 1237882.57 | K12: 578006.26 | L12: 0 | M12: 0 | N12: 1815888.84 | O12: 2074.39 | P12: 1193425.73 | Q12: 360466.38 | R12: 11721.72 | S12: 0 | T12: 1565613.83 | U12: 28.12 | V12: -67350.1 | W12: -182924.91 | X12: -250275.01
G14: Regional- og lokalkørsel | H14: 335 | I14: 1332.99 | J14: 808379.54 | K14: 329948.94 | L14: 0 | M14: 0 | N14: 1138328.47 | O14: 1322.37 | P14: 768523.16 | Q14: 331443.17 | R14: 0 | S14: 0 | T14: 1099966.33 | U14: -10.62 | V14: -47318.71 | W14: 8956.57 | X14: -38362.14
H15: 342 | I15: 1111.38 | J15: 673987.79 | K15: 275095.96 | L15: 0 | M15: 0 | N15: 949083.75 | O15: 1099.17 | P15: 637677.73 | Q15: 329482.94 | R15: 0 | S15: 0 | T15: 967160.67 | U15: -12.21 | V15: -41605.64 | W15: 59682.56 | X15: 18076.92
H16: 346 | I16: 1638.51 | J16: 992285.43 | K16: 461688.41 | L16: 0 | M16: 0 | N16: 1453973.84 | O16: 1623.93 | P16: 945503.13 | Q16: 363406.73 | R16: 0 | S16: 0 | T16: 1308909.86 | U16: -14.58 | V16: -56307.12 | W16: -88756.86 | X16: -145063.98
H17: 349 | I17: 1007.3 | J17: 610871.59 | K17: 249331.69 | L17: 0 | M17: 0 | N17: 860203.28 | O17: 996.8 | P17: 578484.5 | Q17: 328502.83 | R17: 0 | S17: 0 | T17: 906987.33 | U17: -10.5 | V17: -39017.09 | W17: 85801.14 | X17: 46784.05
G19: Regional- og lokalkørsel i alt | I19: 5090.18 | J19: 3085524.35 | K19: 1316065 | L19: 0 | M19: 0 | N19: 4401589.34 | O19: 5042.27 | P19: 2930188.52 | Q19: 1352835.67 | R19: 0 | S19: 0 | T19: 4283024.19 | U19: -47.91 | V19: -184248.56 | W19: 65683.41 | X19: -118565.15
G21: Ikke rutefordelt | U21: 0 | V21: 0 | W21: 0 | X21: 0 | Y21: 49234
G22: Faste køretøjsomkostninger | H22: IR | I22: 0 | J22: 0 | K22: 372803.11 | L22: 0 | M22: 0 | N22: 372803.11 | O22: 0 | P22: 0 | Q22: 459297.42 | R22: 0 | S22: 0 | T22: 459297.42 | U22: 0 | V22: -19758.21 | W22: 106252.52 | X22: 86494.31
G23: Administrationstillæg | H23: IR | I23: 0 | J23: 0 | K23: 0 | L23: 0 | M23: 933952.91 | N23: 933952.91 | O23: 0 | P23: 0 | Q23: 0 | R23: 0 | S23: 915140.97 | T23: 915140.97 | U23: 0 | V23: -39367.84 | W23: 20555.9 | X23: -18811.94
G24: Andre fradrag | H24: IR | I24: 0 | J24: 0 | K24: 0 | L24: 0 | M24: 0 | N24: 0 | O24: 0 | P24: 0 | Q24: 0 | R24: 0 | S24: -4000 | T24: -4000 | U24: 0 | V24: 172.07 | W24: -4172.07 | X24: -4000
U25: 0 | V25: 0 | W25: 0 | X25: 0
U26: 0 | V26: 0 | W26: 0 | X26: 0
G27: Ikke rutefordelt i alt | I27: 0 | J27: 0 | K27: 372803.11 | L27: 0 | M27: 933952.91 | N27: 1306756.02 | O27: 0 | P27: 0 | Q27: 459297.42 | R27: 0 | S27: 911140.97 | T27: 1370438.39 | U27: 0 | V27: -58953.98 | W27: 122636.35 | X27: 63682.37 | Y27: =+Y21 -> 49234
G29: Total, Struer Kommune | I29: 7136.45 | J29: 4323406.92 | K29: 2266874.37 | L29: 0 | M29: 933952.91 | N29: 7524234.2 | O29: 7116.66 | P29: 4123614.25 | Q29: 2172599.47 | R29: 11721.72 | S29: 911140.97 | T29: 7219076.41 | U29: -19.79 | V29: -310552.64 | W29: 5394.85 | X29: -305157.79 | Y29: =+Y12+Y19+Y27 -> 49234

Sheet SYD
G3: =titel -> Regnskab 2025
G7: Syddjurs Kommune | I7: Budget 2025 (2025B-1) | N7: Regnskab 2025 (2025R) | T7: Afvigelse (2025R-2025B-1) | X7: 2025R
G8: Rutetype | H8: Rute | I8: Timer | J8: Timeafhængige omkostninger | K8: Busafhængige omkostninger | L8: Ekstrakørsel | M8: Udgifter i alt | N8: Timer | O8: Timeafhængige omkostninger | P8: Busafhængige omkostninger | Q8: Ekstrakørsel | R8: Andet | S8: Udgifter i alt | T8: Timer | U8: Anslået indekseffekt | V8: Anden afvigelse | W8: Udgifter i alt | X8: Indtægter
G9: Regional- og lokalkørsel | H9: 1 EB | I9: 4508.03 | J9: 2986657.14 | K9: 679119.15 | L9: 0 | M9: 3665776.29 | N9: 4388.77 | O9: 2880058.03 | P9: 679319.52 | Q9: 0 | R9: 0 | S9: 3559377.55 | T9: -119.26 | U9: -75892.91 | V9: -30505.83 | W9: -106398.74 | X9: 191907.1663
H10: 11 KNE | I10: 132.28 | J10: 87695.27 | K10: 30187.91 | L10: 0 | M10: 117883.18 | N10: 122.9 | O10: 80660.94 | P10: 24721.31 | Q10: 0 | R10: 0 | S10: 105382.25 | T10: -9.38 | U10: -2246.96 | V10: -10253.97 | W10: -12500.93 | X10: 416.2584805
H11: 12 KNE | I11: 94.3 | J11: 62518.24 | K11: 19589.16 | L11: 0 | M11: 82107.4 | N11: 93 | O11: 61113.71 | P11: 18352.64 | Q11: 0 | R11: 0 | S11: 79466.35 | T11: -1.3 | U11: -1694.37 | V11: -946.68 | W11: -2641.05 | X11: 252.5202626
H12: 120 | I12: 979.2 | J12: 703608.1 | K12: 474034.62 | L12: 0 | M12: 1177642.71 | N12: 958.89 | O12: 674660.79 | P12: 466619.28 | Q12: 0 | R12: 0 | S12: 1141280.07 | T12: -20.31 | U12: -24334.33 | V12: -12028.31 | W12: -36362.64 | X12: 175614.8817
H13: 121 | I13: 7835.47 | J13: 5630227.87 | K13: 1409849.97 | L13: 0 | M13: 7040077.84 | N13: 7708.54 | O13: 5430249.79 | P13: 1383430.14 | Q13: 0 | R13: 0 | S13: 6813679.93 | T13: -126.93 | U13: -145281.02 | V13: -81116.89 | W13: -226397.91 | X13: 1400862.445
H14: 2 EB | I14: 2285.54 | J14: 1514813.78 | K14: 367566.75 | L14: 0 | M14: 1882380.53 | N14: 2237.56 | O14: 1468517.97 | P14: 399044.09 | Q14: 0 | R14: 0 | S14: 1867562.06 | T14: -47.98 | U14: -39820.08 | V14: 25001.61 | W14: -14818.47 | X14: 86060.11322
H15: 3 EB | I15: 982.15 | J15: 651088.03 | K15: 166051.95 | L15: 0 | M15: 817139.98 | N15: 693.86 | O15: 451618.29 | P15: 117418.52 | Q15: 0 | R15: 0 | S15: 569036.81 | T15: -288.29 | U15: -12132.98 | V15: -235970.19 | W15: -248103.17 | X15: 32434.59123
H16: 312 | I16: 1439.5 | J16: 995439.87 | K16: 441779.69 | L16: 0 | M16: 1437219.56 | N16: 1416.13 | O16: 960515.91 | P16: 433500.93 | Q16: 0 | R16: 0 | S16: 1394016.84 | T16: -23.37 | U16: -29723.18 | V16: -13479.54 | W16: -43202.72 | X16: 235057.3103
H17: 351 | I17: 318.1 | J17: 218502.34 | K17: 57156.58 | L17: 0 | M17: 275658.92 | N17: 307.26 | O17: 208519.87 | P17: 103007.92 | Q17: 0 | R17: 0 | S17: 311527.79 | T17: -10.84 | U17: -6642.38 | V17: 42511.25 | W17: 35868.87 | X17: 122306.1038
G19: Regional- og lokalkørsel i alt | I19: 18574.57 | J19: 12850550.64 | K19: 3645335.78 | L19: 0 | M19: 16495886.41 | N19: 17926.91 | O19: 12215915.3 | P19: 3625414.35 | Q19: 0 | R19: 0 | S19: 15841329.65 | T19: -647.66 | U19: -337768.21 | V19: -316788.55 | W19: -654556.76 | X19: =SUM(X9:X17) -> 2244911.39
G21: Ikke rutefordelt | X21: 462124.4713
G22: Ekstrakørsel | H22: Grp. | I22: 0 | J22: 0 | K22: 0 | L22: 0 | M22: 0 | N22: 0 | O22: 0 | P22: 0 | Q22: 28898.44 | R22: 0 | S22: 28898.44 | T22: 0 | U22: -616.17 | V22: 29514.61 | W22: 28898.44
G23: Andre udgifter | H23: (tom) | I23: 0 | J23: 0 | K23: 0 | L23: 0 | M23: 0 | N23: 0 | O23: 0 | P23: 0 | Q23: 0 | R23: 1318.19 | S23: 1318.19 | T23: 0 | U23: -28.11 | V23: 1346.3 | W23: 1318.19
G24: Andre udgifter | H24: IR | I24: 0 | J24: 0 | K24: 0 | L24: 0 | M24: 0 | N24: 0 | O24: 0 | P24: 0 | Q24: 0 | R24: 30465 | S24: 30465 | T24: 0 | U24: -649.57 | V24: 31114.57 | W24: 30465
G26: Ikke rutefordelt i alt | I26: 0 | J26: 0 | K26: 0 | L26: 0 | M26: 0 | N26: 0 | O26: 0 | P26: 0 | Q26: 28898.44 | R26: 1318.19 | S26: 30216.63 | T26: 0 | U26: -644.28 | V26: 30860.91 | W26: 30216.63 | X26: =+X21 -> 462124.4713
G28: Skolekørsel | H28: Rute 1 | I28: 1192.67 | J28: 1265699 | K28: 0 | L28: 0 | M28: 1265699 | N28: 1173.11 | O28: 1228055.19 | P28: 0 | Q28: 0 | R28: 0 | S28: 1228055.19 | T28: -19.56 | U28: -26184.55 | V28: -11459.26 | W28: -37643.81
H29: Rute 10 | I29: 82.67 | J29: 77544.64 | K29: 0 | L29: 0 | M29: 77544.64 | N29: 82.67 | O29: 75918.52 | P29: 0 | Q29: 0 | R29: 0 | S29: 75918.52 | T29: 0 | U29: -1618.73 | V29: -7.39 | W29: -1626.12
H30: Rute 2 | I30: 762.92 | J30: 1023201.43 | K30: 0 | L30: 0 | M30: 1023201.43 | N30: 785.63 | O30: 1011062.32 | P30: 0 | Q30: 0 | R30: 0 | S30: 1011062.32 | T30: 22.71 | U30: -21557.83 | V30: 9418.72 | W30: -12139.11
H31: Rute 3 | I31: 520.21 | J31: 577244.3 | K31: 0 | L31: 0 | M31: 577244.3 | N31: 500.41 | O31: 553400.9 | P31: 0 | Q31: 0 | R31: 0 | S31: 553400.9 | T31: -19.8 | U31: -11799.59 | V31: -12043.81 | W31: -23843.4
H32: Rute 4 | I32: 466.55 | J32: 537768.45 | K32: 0 | L32: 0 | M32: 537768.45 | N32: 478.73 | O32: 535245.82 | P32: 0 | Q32: 0 | R32: 0 | S32: 535245.82 | T32: 12.18 | U32: -11412.49 | V32: 8889.86 | W32: -2522.63
H33: Rute 5 | I33: 1149.89 | J33: 1149911.16 | K33: 0 | L33: 0 | M33: 1149911.16 | N33: 1068.73 | O33: 1070873.37 | P33: 0 | Q33: 0 | R33: 0 | S33: 1070873.37 | T33: -81.16 | U33: -22833.13 | V33: -56204.66 | W33: -79037.79
H34: Rute 6 | I34: 985.04 | J34: 982124.94 | K34: 0 | L34: 0 | M34: 982124.94 | N34: 966.03 | O34: 947663.01 | P34: 0 | Q34: 0 | R34: 0 | S34: 947663.01 | T34: -19.01 | U34: -20206.03 | V34: -14255.9 | W34: -34461.93
H35: Rute 7 | I35: 952.97 | J35: 965369.76 | K35: 0 | L35: 0 | M35: 965369.76 | N35: 981.23 | O35: 965725.44 | P35: 0 | Q35: 0 | R35: 0 | S35: 965725.44 | T35: 28.26 | U35: -20591.16 | V35: 20946.84 | W35: 355.68
H36: Rute 8 | I36: 670.33 | J36: 738575.14 | K36: 0 | L36: 0 | M36: 738575.14 | N36: 661.38 | O36: 716126.34 | P36: 0 | Q36: 0 | R36: 0 | S36: 716126.34 | T36: -8.95 | U36: -15269.22 | V36: -7179.58 | W36: -22448.8
H37: Rute 9 | I37: 689.2 | J37: 753663.62 | K37: 0 | L37: 0 | M37: 753663.62 | N37: 689.16 | O37: 737941.28 | P37: 0 | Q37: 0 | R37: 0 | S37: 737941.28 | T37: -0.04 | U37: -15734.36 | V37: 12.02 | W37: -15722.34
H38: Rute A+B+C | I38: 429.33 | J38: 371313.23 | K38: 0 | L38: 0 | M38: 371313.23 | N38: 429.33 | O38: 363582.44 | P38: 0 | Q38: 0 | R38: 0 | S38: 363582.44 | T38: 0 | U38: -7752.29 | V38: 21.5 | W38: -7730.79
T39: 0 | U39: 0 | V39: 0 | W39: 0
T40: 0 | U40: 0 | V40: 0 | W40: 0
G41: Skolekørsel i alt | I41: 7901.78 | J41: 8442415.67 | K41: 0 | L41: 0 | M41: 8442415.67 | N41: 7816.41 | O41: 8205594.63 | P41: 0 | Q41: 0 | R41: 0 | S41: 8205594.63 | T41: -85.37 | U41: -174959.38 | V41: -61861.66 | W41: -236821.04
G43: Total, Syddjurs Kommune | I43: 26476.35 | J43: 21292966.31 | K43: 3645335.78 | L43: 0 | M43: 24938302.08 | N43: 25743.32 | O43: 20421509.93 | P43: 3625414.35 | Q43: 28898.44 | R43: 31783.19 | S43: 24107605.91 | T43: -733.03 | U43: -514021.44 | V43: -316674.73 | W43: -830696.17 | X43: =X19+X26 -> 2707035.861
G44: Udgifter til skolekørsel er for nuværende ikke opdelt i timeafhængige og busafhængige omkostninger. Alle udgifter står således angivet som timeafhængige.

Sheet Sydtrafik
G3: =titel -> Regnskab 2025
G7: Region Syddanmark | I7: Budget 2025 (2025B-1) | O7: Regnskab 2025 (2025R) | U7: Afvigelse (2025R-2025B-1)
G8: Rutetype | H8: Rute | I8: Timer | J8: Timeafhængige omkostninger | K8: Busafhængige omkostninger | L8: Ekstrakørsel | M8: Andet | N8: Udgifter i alt | O8: Timer | P8: Timeafhængige omkostninger | Q8: Busafhængige omkostninger | R8: Ekstrakørsel | S8: Andet | T8: Udgifter i alt | U8: Timer | V8: Anslået indekseffekt | W8: Anden afvigelse | X8: Udgifter i alt
G9: Regional- og lokalkørsel | H9: 105 | I9: 0 | J9: 0 | K9: 0 | L9: 32366.67 | M9: 0 | N9: 32366.67 | O9: 0 | P9: 0 | Q9: 0 | R9: 19786.63 | S9: 0 | T9: 19786.63 | U9: 0 | V9: -421.89 | W9: -12158.15 | X9: -12580.04
H10: 202 | I10: 4768.54 | J10: 2995836.13 | K10: 692606.35 | L10: 358839.33 | M10: 153249.28 | N10: 4200531.09 | O10: 4675.49 | P10: 2844994.83 | Q10: 570173.76 | R10: 459475.88 | S10: 0 | T10: 3874644.47 | U10: -93.05 | V10: -124556.95 | W10: -201329.67 | X10: -325886.62
H11: 205 | I11: 2902.64 | J11: 1825562.66 | K11: 414791.17 | L11: 285504.9 | M11: 89461.86 | N11: 2615320.59 | O11: 2964.68 | P11: 1843726.07 | Q11: 357532.48 | R11: 357403.59 | S11: 0 | T11: 2558662.14 | U11: 62.04 | V11: -74193.29 | W11: 17534.84 | X11: -56658.45
H12: 215 | I12: 2868.04 | J12: 1823572.22 | K12: 400865.15 | L12: 0 | M12: 109100.89 | N12: 2333538.26 | O12: 2911.97 | P12: 1845265.09 | Q12: 330573.15 | R12: 0 | S12: 0 | T12: 2175838.24 | U12: 43.93 | V12: -58346.97 | W12: -99353.05 | X12: -157700.02
H13: 513 | I13: 1269.13 | J13: 811538.98 | K13: 237186.27 | L13: 0 | M13: 42260.88 | N13: 1090986.13 | O13: 1267.68 | P13: 801128.94 | Q13: 311111.61 | R13: 0 | S13: 0 | T13: 1112240.55 | U13: -1.45 | V13: -30708.75 | W13: 51963.17 | X13: 21254.42
H14: 569 | I14: 285.81 | J14: 189754.32 | K14: 44688.01 | L14: 0 | M14: 0 | N14: 234442.34 | O14: 292.49 | P14: 194767.36 | Q14: 40985.66 | R14: 0 | S14: 0 | T14: 235753.02 | U14: 6.68 | V14: -5026.71 | W14: 6337.39 | X14: 1310.68
H15: 590 | I15: 177.96 | J15: 118457.56 | K15: 41279.88 | L15: 0 | M15: 0 | N15: 159737.43 | O15: 178.39 | P15: 118690.92 | Q15: 51779.2 | R15: 0 | S15: 0 | T15: 170470.12 | U15: 0.43 | V15: -3634.76 | W15: 14367.45 | X15: 10732.69
H16: 81 | I16: 1076.53 | J16: 647843.68 | K16: 319816.75 | L16: 0 | M16: 0 | N16: 967660.43 | O16: 1061.87 | P16: 610318.39 | Q16: 274451.96 | R16: 0 | S16: 0 | T16: 884770.35 | U16: -14.66 | V16: -38061.36 | W16: -44828.72 | X16: -82890.08
U17: 0 | V17: 0 | W17: 0 | X17: 0
U18: 0 | V18: 0 | W18: 0 | X18: 0
G19: Regional- og lokalkørsel i alt | I19: 13348.65 | J19: 8412565.55 | K19: 2151233.58 | L19: 676710.9 | M19: 394072.91 | N19: 11634582.94 | O19: 13352.57 | P19: 8258891.6 | Q19: 1936607.82 | R19: 836666.1 | S19: 0 | T19: 11032165.52 | U19: 3.92 | V19: -334950.68 | W19: -267466.74 | X19: -602417.42
G21: X-bus | H21: 912X | I21: 4226.51 | J21: 3043834.81 | K21: 588885.89 | L21: 0 | M21: 0 | N21: 3632720.71 | O21: 4061.81 | P21: 2873486.95 | Q21: 578106.56 | R21: 0 | S21: 0 | T21: 3451593.51 | U21: -164.7 | V21: -73594.74 | W21: -107532.46 | X21: -181127.2
G22: X-bus i alt | I22: 4226.51 | J22: 3043834.81 | K22: 588885.89 | L22: 0 | M22: 0 | N22: 3632720.71 | O22: 4061.81 | P22: 2873486.95 | Q22: 578106.56 | R22: 0 | S22: 0 | T22: 3451593.51 | U22: -164.7 | V22: -73594.74 | W22: -107532.46 | X22: -181127.2
G24: Ikke rutefordelt | U24: 0 | V24: 0 | W24: 0 | X24: 0
G25: Faste køretøjsomkostninger | H25: IR | I25: 0 | J25: 0 | K25: 0 | L25: 0 | M25: 0 | N25: 0 | O25: 0 | P25: 0 | Q25: 187670.58 | R25: 0 | S25: 0 | T25: 187670.58 | U25: 0 | V25: -6488.59 | W25: 194159.17 | X25: 187670.58
G26: Administrationstillæg | H26: IR | I26: 0 | J26: 0 | K26: 0 | L26: 0 | M26: 552080.89 | N26: 552080.89 | O26: 0 | P26: 0 | Q26: 0 | R26: 0 | S26: 333267.22 | T26: 333267.22 | U26: 0 | V26: -14336.6 | W26: -204477.07 | X26: -218813.67
G27: Bonus | H27: IR | I27: 0 | J27: 0 | K27: 0 | L27: 0 | M27: 26556.78 | N27: 26556.78 | O27: 0 | P27: 0 | Q27: 0 | R27: 0 | S27: 27595.88 | T27: 27595.88 | U27: 0 | V27: -1187.13 | W27: 2226.23 | X27: 1039.1
U28: 0 | V28: 0 | W28: 0 | X28: 0
G29: Ikke rutefordelt i alt | I29: 0 | J29: 0 | K29: 0 | L29: 0 | M29: 578637.67 | N29: 578637.67 | O29: 0 | P29: 0 | Q29: 187670.58 | R29: 0 | S29: 360863.1 | T29: 548533.68 | U29: 0 | V29: -22012.32 | W29: -8091.67 | X29: -30103.99
G31: Total, Region Syddanmark | I31: 17575.16 | J31: 11456400.36 | K31: 2740119.47 | L31: 676710.9 | M31: 972710.58 | N31: 15845941.32 | O31: 17414.38 | P31: 11132378.55 | Q31: 2702384.96 | R31: 836666.1 | S31: 360863.1 | T31: 15032292.71 | U31: -160.78 | V31: -430557.74 | W31: -383090.87 | X31: -813648.61

Sheet VIB
G3: =titel -> Regnskab 2025
G7: Viborg Kommune | I7: Budget 2025 (2025B-1) | O7: Regnskab 2025 (2025R) | U7: Afvigelse (2025R-2025B-1) | Y7: 2025R
G8: Rutetype | H8: Rute | I8: Timer | J8: Timeafhængige omkostninger | K8: Busafhængige omkostninger | L8: Ekstrakørsel | M8: Andet | N8: Udgifter i alt | O8: Timer | P8: Timeafhængige omkostninger | Q8: Busafhængige omkostninger | R8: Ekstrakørsel | S8: Andet | T8: Udgifter i alt | U8: Timer | V8: Anslået indekseffekt | W8: Anden afvigelse | X8: Udgifter i alt | Y8: Indtægter
G9: Bybus | H9: 1 VI | I9: 13808.83 | J9: 7923783.8 | K9: 3189874.59 | L9: 0 | M9: 0 | N9: 11113658.39 | O9: 13573.92 | P9: 7580668.42 | Q9: 1808225.49 | R9: 0 | S9: 0 | T9: 9388893.91 | U9: -234.91 | V9: -403894.59 | W9: -1320869.89 | X9: -1724764.48 | Y9: 2142463.287
H10: 2 VI | I10: 10894.38 | J10: 6251412.13 | K10: 2516628.57 | L10: 0 | M10: 0 | N10: 8768040.69 | O10: 10712.34 | P10: 5982348.58 | Q10: 1447479.26 | R10: 0 | S10: 0 | T10: 7429827.84 | U10: -182.04 | V10: -319618.83 | W10: -1018594.02 | X10: -1338212.85 | Y10: 2779013.631
H11: 3 VI | I11: 7267.35 | J11: 4170152.54 | K11: 1678776.7 | L11: 0 | M11: 0 | N11: 5848929.23 | O11: 7063.53 | P11: 3943812.45 | Q11: 832225.85 | R11: 0 | S11: 0 | T11: 4776038.3 | U11: -203.82 | V11: -205457.22 | W11: -867433.71 | X11: -1072890.93 | Y11: 880685.9827
U12: 0 | V12: 0 | W12: 0 | X12: 0
U13: 0 | V13: 0 | W13: 0 | X13: 0
G14: Bybus i alt | I14: 31970.56 | J14: 18345348.47 | K14: 7385279.86 | L14: 0 | M14: 0 | N14: 25730628.31 | O14: 31349.79 | P14: 17506829.45 | Q14: 4087930.6 | R14: 0 | S14: 0 | T14: 21594760.05 | U14: -620.77 | V14: -928970.64 | W14: -3206897.62 | X14: -4135868.26 | Y14: =SUM(Y9:Y11) -> 5802162.901
G16: Regional- og lokalkørsel | H16: 711 | I16: 1662.21 | J16: 953809.33 | K16: 383974.65 | L16: 0 | M16: 0 | N16: 1337783.98 | O16: 1636.5 | P16: 913898.13 | Q16: 327187.55 | R16: 0 | S16: 0 | T16: 1241085.68 | U16: -25.71 | V16: -53389.44 | W16: -43308.86 | X16: -96698.3 | Y16: 152935.3728
H17: 712 | I17: 893.14 | J17: 512499.86 | K17: 206316.87 | L17: 0 | M17: 0 | N17: 718816.73 | O17: 917.9 | P17: 512107.41 | Q17: 341126.48 | R17: 0 | S17: 0 | T17: 853233.89 | U17: 24.76 | V17: -36704.7 | W17: 171121.86 | X17: 134417.16 | Y17: 66591.20175
H18: 722 | I18: 332.63 | J18: 196088.62 | K18: 71329.01 | L18: 0 | M18: 3192.75 | N18: 270610.38 | O18: 348.24 | P18: 199001.21 | Q18: 94280.46 | R18: 0 | S18: 0 | T18: 293281.67 | U18: 15.61 | V18: -11112.44 | W18: 33783.73 | X18: 22671.29 | Y18: 126167.1858
H19: 723 | I19: 0 | J19: 0 | K19: 0 | L19: 0 | M19: 0 | N19: 0 | O19: 12 | P19: 6736.99 | Q19: 6307.27 | R19: 0 | S19: 0 | T19: 13044.26 | U19: 12 | V19: -561.15 | W19: 13605.41 | X19: 13044.26 | Y19: 27744.39296
H20: 740 | I20: 1317.41 | J20: 755953.91 | K20: 304324.07 | L20: 0 | M20: 0 | N20: 1060277.98 | O20: 1320.49 | P20: 737923.57 | Q20: 698049.27 | R20: 0 | S20: 0 | T20: 1435972.84 | U20: 3.08 | V20: -61773.17 | W20: 437468.03 | X20: 375694.86 | Y20: 316454.9604
H21: 745 | I21: 936.79 | J21: 537546.84 | K21: 216400.02 | L21: 0 | M21: 0 | N21: 753946.87 | O21: 949.5 | P21: 530325.69 | Q21: 424181.12 | R21: 0 | S21: 0 | T21: 954506.81 | U21: 12.71 | V21: -41061.3 | W21: 241621.24 | X21: 200559.94 | Y21: 142524.821
H22: 750 | I22: 1213.78 | J22: 696492.4 | K22: 280386.68 | L22: 0 | M22: 0 | N22: 976879.08 | O22: 1398.7 | P22: 781267.05 | Q22: 337258.35 | R22: 0 | S22: 0 | T22: 1118525.4 | U22: 184.92 | V22: -48117.1 | W22: 189763.42 | X22: 141646.32 | Y22: 235462.7862
H23: 751 | I23: 3434.35 | J23: 1970701.12 | K23: 793344.39 | L23: 0 | M23: 0 | N23: 2764045.51 | O23: 3418.53 | P23: 1907291.1 | Q23: 631225.39 | R23: 0 | S23: 0 | T23: 2538516.49 | U23: -15.82 | V23: -109202.76 | W23: -116326.26 | X23: -225529.02 | Y23: 363753.7972
H24: 752 | I24: 3166.85 | J24: 1817204.68 | K24: 731551.38 | L24: 0 | M24: 0 | N24: 2548756.06 | O24: 3065.4 | P24: 1711310.64 | Q24: 599953.65 | R24: 0 | S24: 0 | T24: 2311264.29 | U24: -101.45 | V24: -99426.75 | W24: -138065.02 | X24: -237491.77 | Y24: 133030.88
H25: 766 | I25: 1699.14 | J25: 975002.93 | K25: 392506.55 | L25: 0 | M25: 0 | N25: 1367509.48 | O25: 1686.84 | P25: 942046.66 | Q25: 837060.05 | R25: 0 | S25: 0 | T25: 1779106.71 | U25: -12.3 | V25: -76534.21 | W25: 488131.44 | X25: 411597.23 | Y25: 304004.941
H26: 770 | I26: 5041.39 | J26: 2892849.9 | K26: 1164573.47 | L26: 0 | M26: 0 | N26: 4057423.37 | O26: 4898.79 | P26: 2735253.64 | Q26: 1021062.36 | R26: 0 | S26: 0 | T26: 3756316 | U26: -142.6 | V26: -161590.46 | W26: -139516.91 | X26: -301107.37 | Y26: 834642.4251
H27: 771 | I27: 1309.49 | J27: 751409.56 | K27: 302494.66 | L27: 0 | M27: 0 | N27: 1053904.22 | O27: 1325.96 | P27: 739706.03 | Q27: 806136.64 | R27: 0 | S27: 0 | T27: 1545842.67 | U27: 16.47 | V27: -66499.58 | W27: 558438.03 | X27: 491938.45 | Y27: 127499.1142
H28: 774 | I28: 470.07 | J28: 269736.77 | K28: 108587.83 | L28: 0 | M28: 0 | N28: 378324.59 | O28: 470 | P28: 262481.39 | Q28: 403068.32 | R28: 0 | S28: 0 | T28: 665549.71 | U28: -0.07 | V28: -28630.84 | W28: 315855.96 | X28: 287225.12 | Y28: 100505.7117
H29: 775 | I29: 853.66 | J29: 489845.65 | K29: 197196.97 | L29: 0 | M29: 0 | N29: 687042.62 | O29: 811.16 | P29: 452831.64 | Q29: 441939.24 | R29: 0 | S29: 0 | T29: 894770.88 | U29: -42.5 | V29: -38491.56 | W29: 246219.82 | X29: 207728.26 | Y29: 82662.88795
U30: 0 | V30: 0 | W30: 0 | X30: 0
U31: 0 | V31: 0 | W31: 0 | X31: 0
G32: Regional- og lokalkørsel i alt | I32: 22330.91 | J32: 12819141.57 | K32: 5152986.55 | L32: 0 | M32: 3192.75 | N32: 17975320.87 | O32: 22260.01 | P32: 12432181.15 | Q32: 6968836.15 | R32: 0 | S32: 0 | T32: 19401017.3 | U32: -70.9 | V32: -833095.46 | W32: 2258791.89 | X32: 1425696.43 | Y32: =SUM(Y16:Y29) -> 3013980.478
G34: Natbus- og arrangementskørsel | H34: 740S | I34: 0 | J34: 0 | K34: 0 | L34: 0 | M34: 0 | N34: 0 | O34: 0 | P34: 0 | Q34: 0 | R34: 4145.52 | S34: 0 | T34: 4145.52 | U34: 0 | V34: -90.63 | W34: 4236.15 | X34: 4145.52 | Y34: 981.1495445
U35: 0 | V35: 0 | W35: 0 | X35: 0
U36: 0 | V36: 0 | W36: 0 | X36: 0
G37: Natbus- og arrangementskørsel i alt | I37: 0 | J37: 0 | K37: 0 | L37: 0 | M37: 0 | N37: 0 | O37: 0 | P37: 0 | Q37: 0 | R37: 4145.52 | S37: 0 | T37: 4145.52 | U37: 0 | V37: -90.63 | W37: 4236.15 | X37: 4145.52 | Y37: =Y34 -> 981.1495445
G39: Ikke rutefordelt | U39: 0 | V39: 0 | W39: 0 | X39: 0 | Y39: 239163.1037
G40: Faste køretøjsomkostninger | H40: IR | I40: 0 | J40: 0 | K40: 2170682.37 | L40: 0 | M40: 0 | N40: 2170682.37 | O40: 0 | P40: 0 | Q40: 1394223.27 | R40: 0 | S40: 0 | T40: 1394223.27 | U40: 0 | V40: -59977.16 | W40: -716481.94 | X40: -776459.1
G41: Administrationstillæg | H41: IR | I41: 0 | J41: 0 | K41: 0 | L41: 0 | M41: 1774552.78 | N41: 1774552.78 | O41: 0 | P41: 0 | Q41: 0 | R41: 0 | S41: 1701762.74 | T41: 1701762.74 | U41: 0 | V41: -73207 | W41: 416.96 | X41: -72790.04
G42: Omkørsel | H42: IR | I42: 0 | J42: 0 | K42: 0 | L42: 0 | M42: 0 | N42: 0 | O42: 0 | P42: 0 | Q42: 0 | R42: 189163.73 | S42: 0 | T42: 189163.73 | U42: 0 | V42: -8137.51 | W42: 197301.24 | X42: 189163.73
G43: Bonus | H43: IR | I43: 0 | J43: 0 | K43: 0 | L43: 0 | M43: 1183626.53 | N43: 1183626.53 | O43: 0 | P43: 0 | Q43: 0 | R43: 0 | S43: 881522.31 | T43: 881522.31 | U43: 0 | V43: -37921.62 | W43: -264182.6 | X43: -302104.22
U44: 0 | V44: 0 | W44: 0 | X44: 0
G45: Ikke rutefordelt i alt | I45: 0 | J45: 0 | K45: 2170682.37 | L45: 0 | M45: 2958179.31 | N45: 5128861.68 | O45: 0 | P45: 0 | Q45: 1394223.27 | R45: 189163.73 | S45: 2583285.05 | T45: 4166672.05 | U45: 0 | V45: -179243.29 | W45: -782946.34 | X45: -962189.63 | Y45: =+Y39 -> 239163.1037
G47: Total, Viborg Kommune | I47: 54301.47 | J47: 31164490.04 | K47: 14708948.78 | L47: 0 | M47: 2961372.06 | N47: 48834810.86 | O47: 53609.8 | P47: 29939010.6 | Q47: 12450990.02 | R47: 193309.25 | S47: 2583285.05 | T47: 45166594.92 | U47: -691.67 | V47: -1941400.02 | W47: -1726815.92 | X47: -3668215.94 | Y47: =Y14+Y32+Y37+Y45 -> 9056287.632

Sheet AAR
G3: =titel -> Regnskab 2025
G7: Aarhus Kommune | I7: Budget 2025 (2025B-1) | O7: Regnskab 2025 (2025R) | U7: Afvigelse (2025R-2025B-1) | Y7: 2025R
G8: Rutetype | H8: Rute | I8: Timer | J8: Timeafhængige omkostninger | K8: Busafhængige omkostninger | L8: Ekstrakørsel | M8: Andet | N8: Udgifter i alt | O8: Timer | P8: Timeafhængige omkostninger | Q8: Busafhængige omkostninger | R8: Ekstrakørsel | S8: Andet | T8: Udgifter i alt | U8: Timer | V8: Anslået indekseffekt | W8: Anden afvigelse | X8: Udgifter i alt | Y8: Indtægter
G9: Bybus | H9: 11 | I9: 41132.54 | J9: 29850558.77 | K9: 11410713.23 | L9: 0 | M9: 0 | N9: 41261272.01 | O9: 40799.61 | P9: 30203182.73 | Q9: 7082855.45 | R9: 0 | S9: 0 | T9: 37286038.18 | U9: -332.93 | V9: 182136.96 | W9: -4157370.79 | X9: -3975233.83 | Y9: 18358112.57
H10: 12 | I10: 27877.41 | J10: 20240654.39 | K10: 7560508.72 | L10: 0 | M10: 0 | N10: 27801163.11 | O10: 27633 | P10: 20367683.73 | Q10: 4826179.91 | R10: 0 | S10: 0 | T10: 25193863.64 | U10: -244.41 | V10: -64663.13 | W10: -2542636.34 | X10: -2607299.47 | Y10: 13848957.44
H11: 13 | I11: 15235.64 | J11: 11068789.87 | K11: 2957050.88 | L11: 0 | M11: 0 | N11: 14025840.75 | O11: 15088.75 | P11: 11162152.25 | Q11: 1917197.44 | R11: 0 | S11: 0 | T11: 13079349.69 | U11: -146.89 | V11: 63890.76 | W11: -1010381.82 | X11: -946491.06 | Y11: 7943774.886
H12: 14 | I12: 25150.13 | J12: 19058693.13 | K12: 4599053 | L12: 819623.49 | M12: 0 | N12: 24477369.62 | O12: 24963.6 | P12: 18482109.27 | Q12: 5254960.28 | R12: 940878.86 | S12: 0 | T12: 24677948.41 | U12: -186.53 | V12: 120548.25 | W12: 80030.54 | X12: 200578.79 | Y12: 12003412.52
H13: 15 | I13: 20686.3 | J13: 15654583.21 | K13: 2382835.12 | L13: 0 | M13: 0 | N13: 18037418.33 | O13: 20454.71 | P13: 15057200.89 | Q13: 3066472.15 | R13: 0 | S13: 0 | T13: 18123673.04 | U13: -231.59 | V13: -144061.61 | W13: 230316.32 | X13: 86254.71 | Y13: 9988849.516
H14: 16 | I14: 29705.52 | J14: 21589591.66 | K14: 6945122.02 | L14: 0 | M14: 0 | N14: 28534713.68 | O14: 29467.78 | P14: 21742529.02 | Q14: 4439130.68 | R14: 0 | S14: 0 | T14: 26181659.7 | U14: -237.74 | V14: -33194.52 | W14: -2319859.46 | X14: -2353053.98 | Y14: 15381908.68
H15: 17 | I15: 32746.29 | J15: 23791138.14 | K15: 6764429.61 | L15: 329120.98 | M15: 0 | N15: 30884688.73 | O15: 32478.69 | P15: 24036749.07 | Q15: 4404747.64 | R15: 363980.3 | S15: 0 | T15: 28805477.01 | U15: -267.6 | V15: 140710.63 | W15: -2219922.35 | X15: -2079211.72 | Y15: 15023669.74
H16: 18 | I16: 30776.04 | J16: 22364083.8 | K16: 8470757.81 | L16: 0 | M16: 0 | N16: 30834841.62 | O16: 30498.99 | P16: 22422641.1 | Q16: 5112752.22 | R16: 0 | S16: 0 | T16: 27535393.32 | U16: -277.05 | V16: -219525.58 | W16: -3079922.72 | X16: -3299448.3 | Y16: 22348887.49
H17: 1A | I17: 61033.74 | J17: 46221776.68 | K17: 6601744.29 | L17: 0 | M17: 0 | N17: 52823520.97 | O17: 60557.61 | P17: 44326213.3 | Q17: 8583354.24 | R17: 0 | S17: 0 | T17: 52909567.54 | U17: -476.13 | V17: -1064322.61 | W17: 1150369.18 | X17: 86046.57 | Y17: 40684927.43
H18: 23 | I18: 613.49 | J18: 445093.52 | K18: 911062.45 | L18: 0 | M18: 0 | N18: 1356155.97 | O18: 0 | P18: 0 | Q18: 0 | R18: 0 | S18: 0 | T18: 0 | U18: -613.49 | V18: 0 | W18: -1356155.97 | X18: -1356155.97 | Y18: 3.149293812
H19: 2A | I19: 59950.24 | J19: 45409990.59 | K19: 7053439.57 | L19: 0 | M19: 0 | N19: 52463430.16 | O19: 59411.13 | P19: 43748262.23 | Q19: 9301293.44 | R19: 0 | S19: 0 | T19: 53049555.67 | U19: -539.11 | V19: -427156.64 | W19: 1013282.15 | X19: 586125.51 | Y19: 33382246
H20: 31 | I20: 737.09 | J20: 559641.06 | K20: 77747.14 | L20: 0 | M20: 0 | N20: 637388.21 | O20: 725.3 | P20: 534094.69 | Q20: 166754 | R20: 0 | S20: 0 | T20: 700848.69 | U20: -11.79 | V20: -1818.87 | W20: 65279.35 | X20: 63460.48 | Y20: 318136.955
H21: 32 | I21: 392.46 | J21: 291149.51 | K21: 135301.1 | L21: 0 | M21: 0 | N21: 426450.62 | O21: 389.36 | P21: 287633.42 | Q21: 91309.1 | R21: 0 | S21: 0 | T21: 378942.52 | U21: -3.1 | V21: -403.87 | W21: -47104.23 | X21: -47508.1 | Y21: 106913.5056
H22: 35 | I22: 600.21 | J22: 436656.9 | K22: 173076.39 | L22: 0 | M22: 0 | N22: 609733.29 | O22: 593.4 | P22: 439773.21 | Q22: 174758.63 | R22: 0 | S22: 0 | T22: 614531.84 | U22: -6.81 | V22: 3001.9 | W22: 1796.65 | X22: 4798.55 | Y22: 143135.9933
H23: 3A | I23: 45156.36 | J23: 33050796.39 | K23: 10855004.4 | L23: 0 | M23: 0 | N23: 43905800.78 | O23: 46545.68 | P23: 34284505.96 | Q23: 8139574.76 | R23: 0 | S23: 0 | T23: 42424080.72 | U23: 1389.32 | V23: -197473.22 | W23: -1284246.84 | X23: -1481720.06 | Y23: 20327550.55
H24: 4A | I24: 63585.92 | J24: 48171632.14 | K24: 8674099.78 | L24: 0 | M24: 0 | N24: 56845731.92 | O24: 64777.49 | P24: 47708541.02 | Q24: 12879434.44 | R24: 0 | S24: 0 | T24: 60587975.46 | U24: 1191.57 | V24: -461931.39 | W24: 4204174.93 | X24: 3742243.54 | Y24: 28009699.38
H25: 5A | I25: 24765.8 | J25: 18767447.95 | K25: 4528772.63 | L25: 0 | M25: 0 | N25: 23296220.58 | O25: 24561.26 | P25: 18183132.05 | Q25: 5300674.87 | R25: 0 | S25: 0 | T25: 23483806.92 | U25: -204.54 | V25: 114715.04 | W25: 72871.3 | X25: 187586.34 | Y25: 13927433.74
H26: 6A | I26: 57220.29 | J26: 41255666.45 | K26: 6386346.21 | L26: 1613016.04 | M26: 0 | N26: 49255028.7 | O26: 56747.03 | P26: 42012628.43 | Q26: 13677005.32 | R26: 2285696.73 | S26: 0 | T26: 57975330.48 | U26: -473.26 | V26: 283201.19 | W26: 8437100.59 | X26: 8720301.78 | Y26: 19104809.92
U27: 0 | V27: 0 | W27: 0 | X27: 0
G28: Bybus i alt | I28: 537365.47 | J28: 398227944.2 | K28: 96487064.35 | L28: 2761760.51 | M28: 0 | N28: 497476769.1 | O28: 535693.39 | P28: 394999032.4 | Q28: 94418454.57 | R28: 3590555.89 | S28: 0 | T28: 493008042.8 | U28: -1672.08 | V28: -1706346.71 | W28: -2762379.51 | X28: -4468726.22 | Y28: =SUM(Y9:Y26) -> 270902429.5
G30: Regional- og lokalkørsel | H30: 302 | I30: 451.1 | J30: 288177.38 | K30: 176089.67 | L30: 77443.4 | M30: 0 | N30: 541710.45 | O30: 448.32 | P30: 279719.1 | Q30: 184069.49 | R30: 64549.22 | S30: 0 | T30: 528337.81 | U30: -2.78 | V30: -11265.2 | W30: -2107.44 | X30: -13372.64 | Y30: 238162.9314
G31: Regional- og lokalkørsel i alt | I31: 451.1 | J31: 288177.38 | K31: 176089.67 | L31: 77443.4 | M31: 0 | N31: 541710.45 | O31: 448.32 | P31: 279719.1 | Q31: 184069.49 | R31: 64549.22 | S31: 0 | T31: 528337.81 | U31: -2.78 | V31: -11265.2 | W31: -2107.44 | X31: -13372.64 | Y31: =Y30 -> 238162.9314
G33: Natbus- og arrangementskørsel | H33: 40 | I33: 312.27 | J33: 236808.9 | K33: 21231.17 | L33: 0 | M33: 0 | N33: 258040.07 | O33: 310 | P33: 228543.2 | Q33: 37886.64 | R33: 0 | S33: 0 | T33: 266429.84 | U33: -2.27 | V33: -2469.85 | W33: 10859.62 | X33: 8389.77 | Y33: 459504.0097
H34: 41 | I34: 337.25 | J34: 255768.22 | K34: 30730.25 | L34: 0 | M34: 0 | N34: 286498.47 | O34: 334.8 | P34: 246826.67 | Q34: 37943.51 | R34: 0 | S34: 0 | T34: 284770.18 | U34: -2.45 | V34: -2639.76 | W34: 911.47 | X34: -1728.29 | Y34: 76546.37322
H35: 42 | I35: 291.97 | J35: 219612.64 | K35: 26430.73 | L35: 0 | M35: 0 | N35: 246043.37 | O35: 289.85 | P35: 213687.9 | Q35: 33186.53 | R35: 0 | S35: 0 | T35: 246874.43 | U35: -2.12 | V35: -2288.24 | W35: 3119.3 | X35: 831.06 | Y35: 43191.09807
H36: 43 | I36: 232.64 | J36: 169267.97 | K36: 39302.14 | L36: 0 | M36: 0 | N36: 208570.12 | O36: 230.91 | P36: 170133.51 | Q36: 23321.62 | R36: 0 | S36: 0 | T36: 193455.13 | U36: -1.73 | V36: -1388.97 | W36: -13726.02 | X36: -15114.99 | Y36: 87570.22443
H37: 44 | I37: 279.48 | J37: 202243.17 | K37: 58503.4 | L37: 0 | M37: 0 | N37: 260746.57 | O37: 271.75 | P37: 200235.46 | Q37: 32785.82 | R37: 0 | S37: 0 | T37: 233021.28 | U37: -7.73 | V37: -1594.64 | W37: -26130.65 | X37: -27725.29 | Y37: 65258.20003
H38: 45 | I38: 610.83 | J38: 463218.33 | K38: 38807.44 | L38: 0 | M38: 0 | N38: 502025.77 | O38: 606.72 | P38: 445881.38 | Q38: 65288.01 | R38: 0 | S38: 0 | T38: 511169.39 | U38: -4.11 | V38: -7841.07 | W38: 16984.69 | X38: 9143.62 | Y38: 329058.1539
H39: 46 | I39: 407.51 | J39: 308831.59 | K39: 36987.17 | L39: 0 | M39: 0 | N39: 345818.77 | O39: 404.21 | P39: 296054.72 | Q39: 42666.93 | R39: 0 | S39: 0 | T39: 338721.65 | U39: -3.3 | V39: -7222.21 | W39: 125.09 | X39: -7097.12 | Y39: 131418.6916
G40: Natbus- og arrangementskørsel i alt | I40: 2471.95 | J40: 1855750.82 | K40: 251992.3 | L40: 0 | M40: 0 | N40: 2107743.14 | O40: 2448.24 | P40: 1801362.84 | Q40: 273079.06 | R40: 0 | S40: 0 | T40: 2074441.9 | U40: -23.71 | V40: -25444.74 | W40: -7856.5 | X40: -33301.24 | Y40: =SUM(Y33:Y39) -> 1192546.751
G42: Ikke rutefordelt | U42: 0 | V42: 0 | W42: 0 | X42: 0 | Y42: 40551337.87
G43: Faste køretøjsomkostninger | H43: IR | I43: 0 | J43: 0 | K43: 0 | L43: 0 | M43: 0 | N43: 0 | O43: 0 | P43: 0 | Q43: 3634079.9 | R43: 0 | S43: 0 | T43: 3634079.9 | U43: 0 | V43: 5655.5 | W43: 3628424.4 | X43: 3634079.9
G44: Administrationstillæg | H44: IR | I44: 0 | J44: 0 | K44: 0 | L44: 0 | M44: 56436105.01 | N44: 56436105.01 | O44: 0 | P44: 0 | Q44: 0 | R44: 0 | S44: 55962155.61 | T44: 55962155.61 | U44: 0 | V44: -158816.32 | W44: -315133.08 | X44: -473949.4
G45: Ekstrakørsel | H45: Grp. | I45: 0 | J45: 0 | K45: 0 | L45: 0 | M45: 0 | N45: 0 | O45: 0 | P45: 0 | Q45: 0 | R45: 157994.17 | S45: 0 | T45: 157994.17 | U45: 0 | V45: -3368.74 | W45: 161362.91 | X45: 157994.17
G46: Ekstrakørsel | H46: IR | I46: 0 | J46: 0 | K46: 0 | L46: 4000000 | M46: 0 | N46: 4000000 | O46: 0 | P46: 0 | Q46: 0 | R46: 0 | S46: 0 | T46: 0 | U46: 0 | V46: 0 | W46: -4000000 | X46: -4000000
U47: 0 | V47: 0 | W47: 0 | X47: 0
U48: 0 | V48: 0 | W48: 0 | X48: 0
G49: Ikke rutefordelt i alt | I49: 0 | J49: 0 | K49: 0 | L49: 4000000 | M49: 56436105.01 | N49: 60436105.01 | O49: 0 | P49: 0 | Q49: 3634079.9 | R49: 157994.17 | S49: 55962155.61 | T49: 59754229.68 | U49: 0 | V49: -156529.56 | W49: -525345.77 | X49: -681875.33 | Y49: =+Y42 -> 40551337.87
G51: Total, Aarhus Kommune | I51: 540288.52 | J51: 400371872.4 | K51: 96915146.32 | L51: 6839203.91 | M51: 56436105.01 | N51: 560562327.6 | O51: 538589.95 | P51: 397080114.3 | Q51: 98509683.02 | R51: 3813099.28 | S51: 55962155.61 | T51: 555365052.2 | U51: -1698.57 | V51: -1899586.21 | W51: -3297689.22 | X51: -5197275.43 | Y51: =Y28+Y31+Y40+Y49 -> 312884477
